Body_Code,Body_Name,Service,Posting Date,GL Code,GL Code Desc,Doc Number,Doc Net Amount,Supplier Name
http://statistics.data.gov.uk/id/local-authority/38,Oxfordshire County Council,COMM DRAWDOWN FUNDNG,18/11/2022,8511,Legal Fees & expenses,2201051165,"-1,200,000.00",Highways England Company Ltd
http://statistics.data.gov.uk/id/local-authority/38,Oxfordshire County Council,ELECTRICAL ENERGY,15/11/2022,3951,Non System - Electricity,2201049359,"-222,562.06",EDF Energy Customers Ltd
http://statistics.data.gov.uk/id/local-authority/38,Oxfordshire County Council,DR INITS - SEAS MORT,07/11/2022,4859,Medical and Counselling Fees,2201044595,"-210,000.00",The National Energy Foundation
http://statistics.data.gov.uk/id/local-authority/38,Oxfordshire County Council,Hub Beds - Short Stay OCC,10/11/2022,5687,,3111292127,"-84,150.00",Banbury Heights Nursing Home
http://statistics.data.gov.uk/id/local-authority/38,Oxfordshire County Council,NURSERY ED FUND,04/11/2022,5537,Payments to Other Establishments,3111279634,"-54,810.00",Annabelles Nursery
http://statistics.data.gov.uk/id/local-authority/38,Oxfordshire County Council,CHC Fast Track - Care Homes - Over 65,10/11/2022,5687,,3111292344,"-54,600.00",Bondcare (Henley) Ltd
http://statistics.data.gov.uk/id/local-authority/38,Oxfordshire County Council,Continuing Care - Care Homes - Under 65,10/11/2022,5687,,3111295270,"-52,407.16",MARIA MALLABAND CARE GROUP
http://statistics.data.gov.uk/id/local-authority/38,Oxfordshire County Council,CHC Fast Track - Care Homes - Over 65,10/11/2022,5687,,3111295184,"-47,894.99",SANCTUARY CARE LTD
http://statistics.data.gov.uk/id/local-authority/38,Oxfordshire County Council,NURSERY ED FUND,04/11/2022,5537,Payments to Other Establishments,3111279787,"-43,453.89",Hanwell Field School - Academy
http://statistics.data.gov.uk/id/local-authority/38,Oxfordshire County Council,Homes2Inspire Block,28/11/2022,5558,,3111303116,"-43,435.00",Homes 2 Inspire Limited
http://statistics.data.gov.uk/id/local-authority/38,Oxfordshire County Council,NURSERY ED FUND,04/11/2022,5537,Payments to Other Establishments,3111279732,"-40,773.42",Child First (Banbury)
http://statistics.data.gov.uk/id/local-authority/38,Oxfordshire County Council,CHC Fast Track - Care Homes - Over 65,10/11/2022,5687,,3111293992,"-40,350.00",Huntercombe Hall Ltd
http://statistics.data.gov.uk/id/local-authority/38,Oxfordshire County Council,NURSERY ED FUND,04/11/2022,5537,Payments to Other Establishments,3111279652,"-39,463.20",Banbury School Day Nurse
http://statistics.data.gov.uk/id/local-authority/38,Oxfordshire County Council,NURSERY ED FUND,04/11/2022,5537,Payments to Other Establishments,3111279888,"-38,915.10",Robin Playgroup
http://statistics.data.gov.uk/id/local-authority/38,Oxfordshire County Council,NURSERY ED FUND,04/11/2022,5537,Payments to Other Establishments,3111279672,"-37,604.88",Bright Horizon Didcot Day Nursery
http://statistics.data.gov.uk/id/local-authority/38,Oxfordshire County Council,SEN Additional Funding,17/11/2022,5537,Payments to Other Establishments,3111298150,"-37,575.94",The Oxford Academy
http://statistics.data.gov.uk/id/local-authority/38,Oxfordshire County Council,NURSERY ED FUND,04/11/2022,5537,Payments to Other Establishments,3111279855,"-37,304.73",Mongewell Park Nursery S
http://statistics.data.gov.uk/id/local-authority/38,Oxfordshire County Council,DEFECT REPAIRS,25/11/2022,5526,Payments to Private Contractors,2201053682,"-36,939.27",Milestone Infrastructure Limited
http://statistics.data.gov.uk/id/local-authority/38,Oxfordshire County Council,CHC Fast Track - Care Homes - Over 65,10/11/2022,5687,,3111295227,"-35,871.41",MARIA MALLABAND CARE GROUP
http://statistics.data.gov.uk/id/local-authority/38,Oxfordshire County Council,OPPB BLOCK PURCHASE,10/11/2022,5687,,3111291922,"-34,522.83",Vale House
http://statistics.data.gov.uk/id/local-authority/38,Oxfordshire County Council,NURSERY ED FUND,04/11/2022,5537,Payments to Other Establishments,3111279746,"-34,274.52",Culham Nursery and Pre-School
http://statistics.data.gov.uk/id/local-authority/38,Oxfordshire County Council,SEN Additional Funding,17/11/2022,5537,Payments to Other Establishments,3111298151,"-33,635.09",The Oxford Academy
http://statistics.data.gov.uk/id/local-authority/38,Oxfordshire County Council,NURSERY ED FUND,04/11/2022,5537,Payments to Other Establishments,3111279890,"-33,434.10",Roots for Life Thame
http://statistics.data.gov.uk/id/local-authority/38,Oxfordshire County Council,NURSERY ED FUND,04/11/2022,5537,Payments to Other Establishments,3111279938,"-33,434.10",Sunrise Nursery
http://statistics.data.gov.uk/id/local-authority/38,Oxfordshire County Council,CHC Fast Track - Care Homes - Over 65,10/11/2022,5687,,3111295195,"-33,262.04",SANCTUARY CARE LTD
http://statistics.data.gov.uk/id/local-authority/38,Oxfordshire County Council,NURSERY ED FUND,04/11/2022,5537,Payments to Other Establishments,3111279682,"-32,324.85",St Marys Day Nursery
http://statistics.data.gov.uk/id/local-authority/38,Oxfordshire County Council,NURSERY ED FUND,04/11/2022,5537,Payments to Other Establishments,3111279853,"-31,789.80",Millbrook Primary School
http://statistics.data.gov.uk/id/local-authority/38,Oxfordshire County Council,NURSERY ED FUND,04/11/2022,5537,Payments to Other Establishments,3111279806,"-31,453.11",Julia Durbin Day Nursery
http://statistics.data.gov.uk/id/local-authority/38,Oxfordshire County Council,PREMISES,11/11/2022,8350,Furniture & Equipment,2201048024,"-31,429.10",Radiocoms Holdings Limited
http://statistics.data.gov.uk/id/local-authority/38,Oxfordshire County Council,NURSERY ED FUND,04/11/2022,5537,Payments to Other Establishments,3111279897,"-31,398.30",Sandfield Day Nursery
http://statistics.data.gov.uk/id/local-authority/38,Oxfordshire County Council,NURSERY ED FUND,04/11/2022,5537,Payments to Other Establishments,3111279875,"-30,889.35",Pegasus Primary School
http://statistics.data.gov.uk/id/local-authority/38,Oxfordshire County Council,NURSERY ED FUND,04/11/2022,5537,Payments to Other Establishments,3111279640,"-30,693.60",Aureus Primary School Academy
http://statistics.data.gov.uk/id/local-authority/38,Oxfordshire County Council,NURSERY ED FUND,04/11/2022,5537,Payments to Other Establishments,3111279704,"-29,085.84",Busy Bees Bicester Kingsmere
http://statistics.data.gov.uk/id/local-authority/38,Oxfordshire County Council,NURSERY ED FUND,04/11/2022,5537,Payments to Other Establishments,3111279972,"-28,861.38",The Sunshine Centre
http://statistics.data.gov.uk/id/local-authority/38,Oxfordshire County Council,NURSERY ED FUND,04/11/2022,5537,Payments to Other Establishments,3111279841,"-28,566.45",LITTLE TREASURES ACADEMY
http://statistics.data.gov.uk/id/local-authority/38,Oxfordshire County Council,NURSERY ED FUND,04/11/2022,5537,Payments to Other Establishments,3111279722,"-28,509.03",Chandlings
http://statistics.data.gov.uk/id/local-authority/38,Oxfordshire County Council,NURSERY ED FUND,04/11/2022,5537,Payments to Other Establishments,3111279909,"-28,109.70",Southwold Primary School Academy
http://statistics.data.gov.uk/id/local-authority/38,Oxfordshire County Council,NURSERY ED FUND,04/11/2022,5537,Payments to Other Establishments,3111279757,"-27,953.10",Didcot Primary Academy
http://statistics.data.gov.uk/id/local-authority/38,Oxfordshire County Council,NURSERY ED FUND,04/11/2022,5537,Payments to Other Establishments,3111279839,"-27,921.78",Little Stars Nursery
http://statistics.data.gov.uk/id/local-authority/38,Oxfordshire County Council,COMM DRAWDOWN FUNDNG,14/11/2022,8004,Design Consultant,2201048974,"-27,612.69",AECOM Infrastructure & Environment
http://statistics.data.gov.uk/id/local-authority/38,Oxfordshire County Council,NURSERY ED FUND,04/11/2022,5537,Payments to Other Establishments,3111279860,"-27,488.52",NOAs Ark Nursery
http://statistics.data.gov.uk/id/local-authority/38,Oxfordshire County Council,NURSERY ED FUND,04/11/2022,5537,Payments to Other Establishments,3111279983,"-27,405.00",GEMS Wantage Primary Academy
http://statistics.data.gov.uk/id/local-authority/38,Oxfordshire County Council,NURSERY ED FUND,04/11/2022,5537,Payments to Other Establishments,3111279966,"-27,405.00",The Old Station Nursery
http://statistics.data.gov.uk/id/local-authority/38,Oxfordshire County Council,NURSERY ED FUND,04/11/2022,5537,Payments to Other Establishments,3111279994,"-27,405.00",Willowcroft Community School
http://statistics.data.gov.uk/id/local-authority/38,Oxfordshire County Council,High Cost INMSS Placements,25/11/2022,5537,Payments to Other Establishments,3111302535,"-27,323.14",Chilworth House School
http://statistics.data.gov.uk/id/local-authority/38,Oxfordshire County Council,NURSERY ED FUND,04/11/2022,5537,Payments to Other Establishments,3111279765,"-26,997.84",Edith Moorhouse Primary School
http://statistics.data.gov.uk/id/local-authority/38,Oxfordshire County Council,NURSERY ED FUND,04/11/2022,5537,Payments to Other Establishments,3111279725,"-26,856.90",Charlton Primary School Nursery
http://statistics.data.gov.uk/id/local-authority/38,Oxfordshire County Council,NURSERY ED FUND,04/11/2022,5537,Payments to Other Establishments,3111279782,"-26,308.80",Grow Learn Play Project CIC
http://statistics.data.gov.uk/id/local-authority/38,Oxfordshire County Council,NURSERY ED FUND,04/11/2022,5537,Payments to Other Establishments,3111279959,"-25,972.11",The Manor Preparatory Sc
http://statistics.data.gov.uk/id/local-authority/38,Oxfordshire County Council,Interim Funding  - Care Homes - Over 65,10/11/2022,5687,,3111292676,"-25,654.89",METHODIST HOMES
http://statistics.data.gov.uk/id/local-authority/38,Oxfordshire County Council,NURSERY ED FUND,04/11/2022,5537,Payments to Other Establishments,3111279670,"-25,431.84",Bramley Nursery Busy Bees
http://statistics.data.gov.uk/id/local-authority/38,Oxfordshire County Council,NURSERY ED FUND,04/11/2022,5537,Payments to Other Establishments,3111279911,"-24,993.36",Benson Children & Family Services
http://statistics.data.gov.uk/id/local-authority/38,Oxfordshire County Council,NURSERY ED FUND,04/11/2022,5537,Payments to Other Establishments,3111279733,"-24,847.20",Child First (Bicester)
http://statistics.data.gov.uk/id/local-authority/38,Oxfordshire County Council,NURSERY ED FUND,04/11/2022,5537,Payments to Other Establishments,3111279979,"-24,664.50",Toad Hall Day Nursery
http://statistics.data.gov.uk/id/local-authority/38,Oxfordshire County Council,NURSERY ED FUND,04/11/2022,5537,Payments to Other Establishments,3111279714,"-24,481.80",Camel Pre-School (PFSU)
http://statistics.data.gov.uk/id/local-authority/38,Oxfordshire County Council,NURSERY ED FUND,04/11/2022,5537,Payments to Other Establishments,3111279768,"-24,445.26",Eynsham Community
http://statistics.data.gov.uk/id/local-authority/38,Oxfordshire County Council,NURSERY ED FUND,04/11/2022,5537,Payments to Other Establishments,3111279804,"-24,335.64",Jack & Jill Playgroup
http://statistics.data.gov.uk/id/local-authority/38,Oxfordshire County Council,NURSERY ED FUND,04/11/2022,5537,Payments to Other Establishments,3111279889,"-24,299.10",Rockwell House Day Nursery & Sch
http://statistics.data.gov.uk/id/local-authority/38,Oxfordshire County Council,NURSERY ED FUND,04/11/2022,5537,Payments to Other Establishments,3111279833,"-24,116.40",Little Dots Daycare
http://statistics.data.gov.uk/id/local-authority/38,Oxfordshire County Council,COMM DRAWDOWN FUNDNG,25/11/2022,8102,Payments to main contractor,2201053683,"-23,718.78",Milestone Infrastructure Limited
http://statistics.data.gov.uk/id/local-authority/38,Oxfordshire County Council,NURSERY ED FUND,04/11/2022,5537,Payments to Other Establishments,3111279951,"-23,490.00",Co-Op JR Nursery
http://statistics.data.gov.uk/id/local-authority/38,Oxfordshire County Council,NURSERY ED FUND,04/11/2022,5537,Payments to Other Establishments,3111279908,"-23,458.68",Southmoor Pre-school CIO
http://statistics.data.gov.uk/id/local-authority/38,Oxfordshire County Council,COMM DRAWDOWN FUNDNG,25/11/2022,8102,Payments to main contractor,2201053680,"-23,361.81",Milestone Infrastructure Limited
http://statistics.data.gov.uk/id/local-authority/38,Oxfordshire County Council,NURSERY ED FUND,04/11/2022,5537,Payments to Other Establishments,3111279666,"-23,354.28",Bloxham Pre-School
http://statistics.data.gov.uk/id/local-authority/38,Oxfordshire County Council,NURSERY ED FUND,04/11/2022,5537,Payments to Other Establishments,3111279819,"-23,020.20",Ladybird Pre-School Limited
http://statistics.data.gov.uk/id/local-authority/38,Oxfordshire County Council,NURSERY ED FUND,04/11/2022,5537,Payments to Other Establishments,3111279947,"-22,589.55",The Close Day Nursery Opco Ltd
http://statistics.data.gov.uk/id/local-authority/38,Oxfordshire County Council,NURSERY ED FUND,04/11/2022,5537,Payments to Other Establishments,3111279674,"-22,573.89",Kids Unlimited Harwell
http://statistics.data.gov.uk/id/local-authority/38,Oxfordshire County Council,Personal Health Budgets  - U65,11/11/2022,5899,Social Care - Direct Payments,3111296389,"-22,536.92",Redacted Personal Data
http://statistics.data.gov.uk/id/local-authority/38,Oxfordshire County Council,NURSERY ED FUND,04/11/2022,5537,Payments to Other Establishments,3111279835,"-22,307.67",Little Monkeys Charlbury Limited
http://statistics.data.gov.uk/id/local-authority/38,Oxfordshire County Council,NURSERY ED FUND,04/11/2022,5537,Payments to Other Establishments,3111279823,"-22,106.70",Ladygrove Day Nursery and Nursery S
http://statistics.data.gov.uk/id/local-authority/38,Oxfordshire County Council,NURSERY ED FUND,04/11/2022,5537,Payments to Other Establishments,3111279794,"-21,814.38",Heyford Park School
http://statistics.data.gov.uk/id/local-authority/38,Oxfordshire County Council,NURSERY ED FUND,04/11/2022,5537,Payments to Other Establishments,3111279913,"-21,767.40",St Christophers Primary School -
http://statistics.data.gov.uk/id/local-authority/38,Oxfordshire County Council,NURSERY ED FUND,04/11/2022,5537,Payments to Other Establishments,3111279708,"-21,532.50",Busy Bees Day Nursery (Bicester)
http://statistics.data.gov.uk/id/local-authority/38,Oxfordshire County Council,NURSERY ED FUND,04/11/2022,5537,Payments to Other Establishments,3111279965,"-20,880.00",The Old Station Nursery Oxford
http://statistics.data.gov.uk/id/local-authority/38,Oxfordshire County Council,NURSERY ED FUND,04/11/2022,5537,Payments to Other Establishments,3111279914,"-20,853.90",St Hugh of Lincoln Nursery School
http://statistics.data.gov.uk/id/local-authority/38,Oxfordshire County Council,NURSERY ED FUND,04/11/2022,5537,Payments to Other Establishments,3111279749,"-20,827.80","Cutteslowe Primary, Cherwell School"
http://statistics.data.gov.uk/id/local-authority/38,Oxfordshire County Council,NURSERY ED FUND,04/11/2022,5537,Payments to Other Establishments,3111279755,"-20,827.80",Dashwood Banbury Academy
http://statistics.data.gov.uk/id/local-authority/38,Oxfordshire County Council,NURSERY ED FUND,04/11/2022,5537,Payments to Other Establishments,3111279764,"-20,827.80",Early Days Nursery Schoo
http://statistics.data.gov.uk/id/local-authority/38,Oxfordshire County Council,NURSERY ED FUND,04/11/2022,5537,Payments to Other Establishments,3111279829,"-20,697.30",Little Acorns
http://statistics.data.gov.uk/id/local-authority/38,Oxfordshire County Council,NURSERY ED FUND,04/11/2022,5537,Payments to Other Establishments,3111279963,"-20,684.25",The Old Station Nursery Heyford Par
http://statistics.data.gov.uk/id/local-authority/38,Oxfordshire County Council,NURSERY ED FUND,04/11/2022,5537,Payments to Other Establishments,3111279736,"-20,389.32",Cholsey Pre-School (PFSU)
http://statistics.data.gov.uk/id/local-authority/38,Oxfordshire County Council,NURSERY ED FUND,04/11/2022,5537,Payments to Other Establishments,3111279863,"-20,358.00",Northbourne CE(A) Primary School
http://statistics.data.gov.uk/id/local-authority/38,Oxfordshire County Council,NURSERY ED FUND,04/11/2022,5537,Payments to Other Establishments,3111279925,"-20,230.11",St Nicolas Pre-School and Playgroup
http://statistics.data.gov.uk/id/local-authority/38,Oxfordshire County Council,NURSERY ED FUND,04/11/2022,5537,Payments to Other Establishments,3111279858,"-20,162.25",New Marston Primary School
http://statistics.data.gov.uk/id/local-authority/38,Oxfordshire County Council,NURSERY ED FUND,04/11/2022,5537,Payments to Other Establishments,3111279881,"-19,731.60",RAFA Kidz Brize Norton
http://statistics.data.gov.uk/id/local-authority/38,Oxfordshire County Council,NURSERY ED FUND,04/11/2022,5537,Payments to Other Establishments,3111279770,"-19,621.98",Farmhouse Nursery School
http://statistics.data.gov.uk/id/local-authority/38,Oxfordshire County Council,NURSERY ED FUND,04/11/2022,5537,Payments to Other Establishments,3111279850,"-19,282.68",Marcham Little Angels
http://statistics.data.gov.uk/id/local-authority/38,Oxfordshire County Council,NURSERY ED FUND,04/11/2022,5537,Payments to Other Establishments,3111279814,"-19,183.50",Kids Planet Woodstock Road Day Nurs
http://statistics.data.gov.uk/id/local-authority/38,Oxfordshire County Council,NURSERY ED FUND,04/11/2022,5537,Payments to Other Establishments,3111279820,"-19,183.50",Ladybird Pre-School
http://statistics.data.gov.uk/id/local-authority/38,Oxfordshire County Council,NURSERY ED FUND,04/11/2022,5537,Payments to Other Establishments,3111279971,"-19,183.50",The Pod at St Frideswide CE School
http://statistics.data.gov.uk/id/local-authority/38,Oxfordshire County Council,NURSERY ED FUND,04/11/2022,5537,Payments to Other Establishments,3111279984,"-19,183.50",Watchfield Primary School - Academy
http://statistics.data.gov.uk/id/local-authority/38,Oxfordshire County Council,Support at Home 65+ Physical Support,10/11/2022,5686,,3111292168,"-19,169.45",Orders of St John
http://statistics.data.gov.uk/id/local-authority/38,Oxfordshire County Council,NURSERY ED FUND,04/11/2022,5537,Payments to Other Establishments,3111279905,"-18,985.14",Small World Nursery and
http://statistics.data.gov.uk/id/local-authority/38,Oxfordshire County Council,NURSERY ED FUND,04/11/2022,5537,Payments to Other Establishments,3111279982,"-18,964.26",Wantage CE Primary School # Academy
http://statistics.data.gov.uk/id/local-authority/38,Oxfordshire County Council,NURSERY ED FUND,04/11/2022,5537,Payments to Other Establishments,3111279910,"-18,635.40",Sparkling Minds Pre-School& Day Nur
http://statistics.data.gov.uk/id/local-authority/38,Oxfordshire County Council,CHC Fast Track - Care Homes - Over 65,10/11/2022,5687,,3111294744,"-18,500.00",St Lukes Nursing Home (Oxford)
http://statistics.data.gov.uk/id/local-authority/38,Oxfordshire County Council,NURSERY ED FUND,04/11/2022,5537,Payments to Other Establishments,3111279809,"-18,489.24",Culham After School Club
http://statistics.data.gov.uk/id/local-authority/38,Oxfordshire County Council,NURSERY ED FUND,04/11/2022,5537,Payments to Other Establishments,3111279884,"-18,457.92",Rainbow Pre-School
http://statistics.data.gov.uk/id/local-authority/38,Oxfordshire County Council,NURSERY ED FUND,04/11/2022,5537,Payments to Other Establishments,3111280000,"-18,322.20",Wolvercote Primary School
http://statistics.data.gov.uk/id/local-authority/38,Oxfordshire County Council,NURSERY ED FUND,04/11/2022,5537,Payments to Other Establishments,3111279949,"-18,270.00",Co-Op Madley Park Nursery
http://statistics.data.gov.uk/id/local-authority/38,Oxfordshire County Council,NURSERY ED FUND,04/11/2022,5537,Payments to Other Establishments,3111279756,"-18,270.00",Deddington (PFSU)
http://statistics.data.gov.uk/id/local-authority/38,Oxfordshire County Council,NURSERY ED FUND,04/11/2022,5537,Payments to Other Establishments,3111279997,"-18,220.41",Windrush Valley School
http://statistics.data.gov.uk/id/local-authority/38,Oxfordshire County Council,NURSERY ED FUND,04/11/2022,5537,Payments to Other Establishments,3111279973,"-18,155.16",The Town Nursery School
http://statistics.data.gov.uk/id/local-authority/38,Oxfordshire County Council,NURSERY ED FUND,04/11/2022,5537,Payments to Other Establishments,3111279879,"-18,152.55",PUDDLEDUCK NURSERY
http://statistics.data.gov.uk/id/local-authority/38,Oxfordshire County Council,Care Homes - Over 65 Physical Sypport,10/11/2022,5685,B*Cycle tracks,3111291952,"-17,980.07",ACER HEALTHCARE LTD
http://statistics.data.gov.uk/id/local-authority/38,Oxfordshire County Council,NURSERY ED FUND,04/11/2022,5537,Payments to Other Establishments,3111279720,"-17,813.25",Lucy McAdden
http://statistics.data.gov.uk/id/local-authority/38,Oxfordshire County Council,NURSERY ED FUND,04/11/2022,5537,Payments to Other Establishments,3111279892,"-17,539.20",Rose Hill Primary School
http://statistics.data.gov.uk/id/local-authority/38,Oxfordshire County Council,Support at Home U65 Learning Disability,10/11/2022,5690,,3111291599,"-17,414.34",Turnstyle
http://statistics.data.gov.uk/id/local-authority/38,Oxfordshire County Council,NURSERY ED FUND,04/11/2022,5537,Payments to Other Establishments,3111279800,"-17,319.96",Horspath Pre-School Nursery
http://statistics.data.gov.uk/id/local-authority/38,Oxfordshire County Council,NURSERY ED FUND,04/11/2022,5537,Payments to Other Establishments,3111279771,"-17,199.90",Filkins Nursery School
http://statistics.data.gov.uk/id/local-authority/38,Oxfordshire County Council,NURSERY ED FUND,04/11/2022,5537,Payments to Other Establishments,3111279684,"-16,991.10",Bright Start Pre-school
http://statistics.data.gov.uk/id/local-authority/38,Oxfordshire County Council,NURSERY ED FUND,04/11/2022,5537,Payments to Other Establishments,3111279798,"-16,443.00",Hook Norton Pre-School Playgroup
http://statistics.data.gov.uk/id/local-authority/38,Oxfordshire County Council,NURSERY ED FUND,04/11/2022,5537,Payments to Other Establishments,3111279867,"-16,443.00",Our Lady's Catholic Primary School
http://statistics.data.gov.uk/id/local-authority/38,Oxfordshire County Council,NURSERY ED FUND,04/11/2022,5537,Payments to Other Establishments,3111279869,"-16,372.53",Oxford Brookes University Nursery
http://statistics.data.gov.uk/id/local-authority/38,Oxfordshire County Council,NURSERY ED FUND,04/11/2022,5537,Payments to Other Establishments,3111279873,"-16,333.38",Peachcroft Pre-School
http://statistics.data.gov.uk/id/local-authority/38,Oxfordshire County Council,NURSERY ED FUND,04/11/2022,5537,Payments to Other Establishments,3111279948,"-16,294.23",Co-Op Carterton Nursery
http://statistics.data.gov.uk/id/local-authority/38,Oxfordshire County Council,NURSERY ED FUND,04/11/2022,5537,Payments to Other Establishments,3111279650,"-16,223.76",Banana Moon Day Nursery Chipping No
http://statistics.data.gov.uk/id/local-authority/38,Oxfordshire County Council,NURSERY ED FUND,04/11/2022,5537,Payments to Other Establishments,3111279766,"-16,182.00",Emmanuel Christian Schoo
http://statistics.data.gov.uk/id/local-authority/38,Oxfordshire County Council,NURSERY ED FUND,04/11/2022,5537,Payments to Other Establishments,3111279813,"-16,145.46",Kids Planet The Triangle Day Nurser
http://statistics.data.gov.uk/id/local-authority/38,Oxfordshire County Council,NURSERY ED FUND,04/11/2022,5537,Payments to Other Establishments,3111279921,"-16,114.14",St Marys Playgroup
http://statistics.data.gov.uk/id/local-authority/38,Oxfordshire County Council,NURSERY ED FUND,04/11/2022,5537,Payments to Other Establishments,3111279662,"-15,975.81",Berinsfield Early Years Pre-School
http://statistics.data.gov.uk/id/local-authority/38,Oxfordshire County Council,NURSERY ED FUND,04/11/2022,5537,Payments to Other Establishments,3111279803,"-15,921.00",Jack and Jill Pre School
http://statistics.data.gov.uk/id/local-authority/38,Oxfordshire County Council,NURSERY ED FUND,04/11/2022,5537,Payments to Other Establishments,3111279688,"-15,894.90",Brize Norton Village Pre
http://statistics.data.gov.uk/id/local-authority/38,Oxfordshire County Council,NURSERY ED FUND,04/11/2022,5537,Payments to Other Establishments,3111279939,"-15,894.90",Sutton Courtenay C of E Primary Sch
http://statistics.data.gov.uk/id/local-authority/38,Oxfordshire County Council,Care Homes - Over 65 Physical Sypport,10/11/2022,5687,,3111293871,"-15,769.31",Cedar Court Care Home
http://statistics.data.gov.uk/id/local-authority/38,Oxfordshire County Council,NURSERY ED FUND,04/11/2022,5537,Payments to Other Establishments,3111279876,"-15,675.66",Pinewood School
http://statistics.data.gov.uk/id/local-authority/38,Oxfordshire County Council,NURSERY ED FUND,04/11/2022,5537,Payments to Other Establishments,3111279826,"-15,660.00",Larkrise Primary School
http://statistics.data.gov.uk/id/local-authority/38,Oxfordshire County Council,NURSERY ED FUND,04/11/2022,5537,Payments to Other Establishments,3111279831,"-15,346.80",Bishopswood Day Nursery
http://statistics.data.gov.uk/id/local-authority/38,Oxfordshire County Council,NURSERY ED FUND,04/11/2022,5537,Payments to Other Establishments,3111279742,"-15,346.80",Complete Childcare Ltd
http://statistics.data.gov.uk/id/local-authority/38,Oxfordshire County Council,NURSERY ED FUND,04/11/2022,5537,Payments to Other Establishments,3111279743,"-15,346.80",Courtyard Pre-School
http://statistics.data.gov.uk/id/local-authority/38,Oxfordshire County Council,NURSERY ED FUND,04/11/2022,5537,Payments to Other Establishments,3111279846,"-15,338.97",Longford Park Primary School
http://statistics.data.gov.uk/id/local-authority/38,Oxfordshire County Council,NURSERY ED FUND,04/11/2022,5537,Payments to Other Establishments,3111279832,"-15,237.18",Little Dots Daycare Ltd
http://statistics.data.gov.uk/id/local-authority/38,Oxfordshire County Council,NURSERY ED FUND,04/11/2022,5537,Payments to Other Establishments,3111279900,"-15,237.18",Shelswell & Fringford Playgroup
http://statistics.data.gov.uk/id/local-authority/38,Oxfordshire County Council,Unregistered Placements,23/11/2022,2040,Agency Staff,2201052380,"-15,211.82",LEAF COMPLEX CARE LTD
http://statistics.data.gov.uk/id/local-authority/38,Oxfordshire County Council,NURSERY ED FUND,04/11/2022,5537,Payments to Other Establishments,3111279883,"-15,127.56",Rainbow Corner Day Nurse
http://statistics.data.gov.uk/id/local-authority/38,Oxfordshire County Council,NURSERY ED FUND,04/11/2022,5537,Payments to Other Establishments,3111279872,"-14,963.13",Paddocks Pre-School
http://statistics.data.gov.uk/id/local-authority/38,Oxfordshire County Council,NURSERY ED FUND,04/11/2022,5537,Payments to Other Establishments,3111279778,"-14,837.85",Gagle Brook Primary School
http://statistics.data.gov.uk/id/local-authority/38,Oxfordshire County Council,NURSERY ED FUND,04/11/2022,5537,Payments to Other Establishments,3111279918,"-14,798.70",St Joseph's Catholic Primary Carter
http://statistics.data.gov.uk/id/local-authority/38,Oxfordshire County Council,NURSERY ED FUND,04/11/2022,5537,Payments to Other Establishments,3111279919,"-14,798.70",St Josephs Catholic Primary School
http://statistics.data.gov.uk/id/local-authority/38,Oxfordshire County Council,NURSERY ED FUND,04/11/2022,5537,Payments to Other Establishments,3111279783,"-14,743.89",Hadden Hill Nursery and Pre-School
http://statistics.data.gov.uk/id/local-authority/38,Oxfordshire County Council,NURSERY ED FUND,04/11/2022,5537,Payments to Other Establishments,3111279678,"-14,626.44",Kidsunlimited Oxford Business Park
http://statistics.data.gov.uk/id/local-authority/38,Oxfordshire County Council,NURSERY ED FUND,04/11/2022,5537,Payments to Other Establishments,3111279842,"-14,616.00",Little Troopers Day Nursery Ltd
http://statistics.data.gov.uk/id/local-authority/38,Oxfordshire County Council,NURSERY ED FUND,04/11/2022,5537,Payments to Other Establishments,3111279676,"-14,597.73",Kidsunlimited (Milton Park)
http://statistics.data.gov.uk/id/local-authority/38,Oxfordshire County Council,NURSERY ED FUND,04/11/2022,5537,Payments to Other Establishments,3111279789,"-14,524.65",Hardwick Primary School Academy
http://statistics.data.gov.uk/id/local-authority/38,Oxfordshire County Council,NURSERY ED FUND,04/11/2022,5537,Payments to Other Establishments,3111279941,"-14,508.99",Thameside Primary School
http://statistics.data.gov.uk/id/local-authority/38,Oxfordshire County Council,Continuing Care - Care Homes - 65+,10/11/2022,5687,,3111292954,"-14,400.00",Chacombe Park Care Home
http://statistics.data.gov.uk/id/local-authority/38,Oxfordshire County Council,CHC Fast Track - Care Homes - Over 65,10/11/2022,5687,,3111295243,"-14,392.86",MARIA MALLABAND CARE GROUP
http://statistics.data.gov.uk/id/local-authority/38,Oxfordshire County Council,NURSERY ED FUND,04/11/2022,5537,Payments to Other Establishments,3111279987,"-14,391.54",Wheatley CE Primary School
http://statistics.data.gov.uk/id/local-authority/38,Oxfordshire County Council,NURSERY ED FUND,04/11/2022,5537,Payments to Other Establishments,3111279924,"-14,336.73",St Nicholas CE Infants'School
http://statistics.data.gov.uk/id/local-authority/38,Oxfordshire County Council,NURSERY ED FUND,04/11/2022,5537,Payments to Other Establishments,3111279754,"-14,250.60",Dalton Pre-School Nurser
http://statistics.data.gov.uk/id/local-authority/38,Oxfordshire County Council,NURSERY ED FUND,04/11/2022,5537,Payments to Other Establishments,3111279791,"-14,250.60",Harriers Banbury Academy
http://statistics.data.gov.uk/id/local-authority/38,Oxfordshire County Council,Care Homes - Over 65 Memory & Cognition,10/11/2022,5687,,3111294332,"-14,235.31",Oakenholt Care Ltd
http://statistics.data.gov.uk/id/local-authority/38,Oxfordshire County Council,NURSERY ED FUND,04/11/2022,5537,Payments to Other Establishments,3111279811,"-13,976.55",Kids Planet Jack Straws Lane Day Nu
http://statistics.data.gov.uk/id/local-authority/38,Oxfordshire County Council,NURSERY ED FUND,04/11/2022,5537,Payments to Other Establishments,3111279632,"-13,966.11",Aflah Nursery
http://statistics.data.gov.uk/id/local-authority/38,Oxfordshire County Council,NURSERY ED FUND,04/11/2022,5537,Payments to Other Establishments,3111279775,"-13,853.88",Forest Farm (Oxford Montessori Nurs
http://statistics.data.gov.uk/id/local-authority/38,Oxfordshire County Council,NURSERY ED FUND,04/11/2022,5537,Payments to Other Establishments,3111279808,"-13,702.50",Kiddies Korner
http://statistics.data.gov.uk/id/local-authority/38,Oxfordshire County Council,NURSERY ED FUND,04/11/2022,5537,Payments to Other Establishments,3111279712,"-13,665.96",Butterflies Pre-School Didcot CIO
http://statistics.data.gov.uk/id/local-authority/38,Oxfordshire County Council,NURSERY ED FUND,04/11/2022,5537,Payments to Other Establishments,3111279986,"-13,592.88",West Kidlington Primary &NurserySch
http://statistics.data.gov.uk/id/local-authority/38,Oxfordshire County Council,NURSERY ED FUND,04/11/2022,5537,Payments to Other Establishments,3111279954,"-13,577.22",The Cottage Nursery
http://statistics.data.gov.uk/id/local-authority/38,Oxfordshire County Council,NURSERY ED FUND,04/11/2022,5537,Payments to Other Establishments,3111279828,"-13,572.00",Little Acorns Pre-school Kingsmere
http://statistics.data.gov.uk/id/local-authority/38,Oxfordshire County Council,NURSERY ED FUND,04/11/2022,5537,Payments to Other Establishments,3111279738,"-13,519.80",Christopher Rawlins Primary School
http://statistics.data.gov.uk/id/local-authority/38,Oxfordshire County Council,NURSERY ED FUND,04/11/2022,5537,Payments to Other Establishments,3111279812,"-13,425.84",Kids Planet Mansion House Day Nurse
http://statistics.data.gov.uk/id/local-authority/38,Oxfordshire County Council,CHC Fast Track - Care Homes - Over 65,10/11/2022,5687,,3111293572,"-13,285.72",Freeland House
http://statistics.data.gov.uk/id/local-authority/38,Oxfordshire County Council,NURSERY ED FUND,04/11/2022,5537,Payments to Other Establishments,3111279624,"-13,271.85",A B C Nursery
http://statistics.data.gov.uk/id/local-authority/38,Oxfordshire County Council,NURSERY ED FUND,04/11/2022,5537,Payments to Other Establishments,3111279781,"-13,264.02",Grovelands Park Pre-School
http://statistics.data.gov.uk/id/local-authority/38,Oxfordshire County Council,Support at Home 65+ Physical Support,08/11/2022,5699,,3111290034,"-13,241.34",PLL Care Services
http://statistics.data.gov.uk/id/local-authority/38,Oxfordshire County Council,NURSERY ED FUND,04/11/2022,5537,Payments to Other Establishments,3111279698,"-13,154.40",Buds That Blossom
http://statistics.data.gov.uk/id/local-authority/38,Oxfordshire County Council,NURSERY ED FUND,04/11/2022,5537,Payments to Other Establishments,3111279728,"-13,154.40",Cherry Fields Primary School
http://statistics.data.gov.uk/id/local-authority/38,Oxfordshire County Council,NURSERY ED FUND,04/11/2022,5537,Payments to Other Establishments,3111279737,"-13,154.40",Christ Church Cathedral School
http://statistics.data.gov.uk/id/local-authority/38,Oxfordshire County Council,NURSERY ED FUND,04/11/2022,5537,Payments to Other Establishments,3111279740,"-13,154.40",Cogges Under 5s Associa
http://statistics.data.gov.uk/id/local-authority/38,Oxfordshire County Council,NURSERY ED FUND,04/11/2022,5537,Payments to Other Establishments,3111279805,"-13,154.40",John Henry Newman Academy
http://statistics.data.gov.uk/id/local-authority/38,Oxfordshire County Council,NURSERY ED FUND,04/11/2022,5537,Payments to Other Establishments,3111279815,"-13,154.40",Kingfisher Kindergarten
http://statistics.data.gov.uk/id/local-authority/38,Oxfordshire County Council,NURSERY ED FUND,04/11/2022,5537,Payments to Other Establishments,3111279952,"-13,050.00",Co-Op Oxford Nursery
http://statistics.data.gov.uk/id/local-authority/38,Oxfordshire County Council,NURSERY ED FUND,04/11/2022,5537,Payments to Other Establishments,3111279953,"-13,050.00",Co-Op Rose Hill Nursery
http://statistics.data.gov.uk/id/local-authority/38,Oxfordshire County Council,NURSERY ED FUND,04/11/2022,5537,Payments to Other Establishments,3111279931,"-13,044.78",Stanford in the Vale Pre School
http://statistics.data.gov.uk/id/local-authority/38,Oxfordshire County Council,Personal Health Budgets  - U65,15/11/2022,5899,Social Care - Direct Payments,3111296958,"-13,007.84",Redacted Personal Data
http://statistics.data.gov.uk/id/local-authority/38,Oxfordshire County Council,NURSERY ED FUND,04/11/2022,5537,Payments to Other Establishments,3111279706,"-12,971.70",Busy Bees at Oxford
http://statistics.data.gov.uk/id/local-authority/38,Oxfordshire County Council,NURSERY ED FUND,04/11/2022,5537,Payments to Other Establishments,3111279980,"-12,825.54",Tower Hill School
http://statistics.data.gov.uk/id/local-authority/38,Oxfordshire County Council,NURSERY ED FUND,04/11/2022,5537,Payments to Other Establishments,3111279943,"-12,789.00",The Aunties' Old School Nursery
http://statistics.data.gov.uk/id/local-authority/38,Oxfordshire County Council,NURSERY ED FUND,04/11/2022,5537,Payments to Other Establishments,3111279795,"-12,697.65",Highmoor Nursery School Ltd
http://statistics.data.gov.uk/id/local-authority/38,Oxfordshire County Council,NURSERY ED FUND,04/11/2022,5537,Payments to Other Establishments,3111279726,"-12,650.67",Chasewell Playgroup
http://statistics.data.gov.uk/id/local-authority/38,Oxfordshire County Council,NURSERY ED FUND,04/11/2022,5537,Payments to Other Establishments,3111279735,"-12,606.30",Chipping Norton Pre-school
http://statistics.data.gov.uk/id/local-authority/38,Oxfordshire County Council,NURSERY ED FUND,04/11/2022,5537,Payments to Other Establishments,3111279950,"-12,606.30",Co-op Blackbird Leys Nursery
http://statistics.data.gov.uk/id/local-authority/38,Oxfordshire County Council,NURSERY ED FUND,04/11/2022,5537,Payments to Other Establishments,3111279799,"-12,533.22",The Warriner Multi Academy Trust
http://statistics.data.gov.uk/id/local-authority/38,Oxfordshire County Council,Family Solutions Plus Non-staff - South,10/11/2022,2040,Agency Staff,2201046261,"-12,456.00",Completely Care Ltd
http://statistics.data.gov.uk/id/local-authority/38,Oxfordshire County Council,CHC Fast Track - Care Homes - Over 65,10/11/2022,5687,,3111295235,"-12,400.00",MARIA MALLABAND CARE GROUP
http://statistics.data.gov.uk/id/local-authority/38,Oxfordshire County Council,NURSERY ED FUND,04/11/2022,5537,Payments to Other Establishments,3111279896,"-12,387.06",Saltway Day Nursery
http://statistics.data.gov.uk/id/local-authority/38,Oxfordshire County Council,NURSERY ED FUND,04/11/2022,5537,Payments to Other Establishments,3111279990,"-12,350.52",Willow Cottage Nurseries Limited
http://statistics.data.gov.uk/id/local-authority/38,Oxfordshire County Council,NURSERY ED FUND,04/11/2022,5537,Payments to Other Establishments,3111279838,"-12,277.44",Little Pippins Pre-Schoo
http://statistics.data.gov.uk/id/local-authority/38,Oxfordshire County Council,NURSERY ED FUND,04/11/2022,5537,Payments to Other Establishments,3111279993,"-12,214.80",The Willow On The Farm Nursery Ltd
http://statistics.data.gov.uk/id/local-authority/38,Oxfordshire County Council,Support at Home U65 Learning Disability,10/11/2022,5688,,3111295448,"-12,171.13",Community Integrated Care
http://statistics.data.gov.uk/id/local-authority/38,Oxfordshire County Council,NURSERY ED FUND,04/11/2022,5537,Payments to Other Establishments,3111279660,"-12,167.82",Benson C of E Primary School
http://statistics.data.gov.uk/id/local-authority/38,Oxfordshire County Council,NURSERY ED FUND,04/11/2022,5537,Payments to Other Establishments,3111279668,"-12,058.20",Botley Primary School
http://statistics.data.gov.uk/id/local-authority/38,Oxfordshire County Council,NURSERY ED FUND,04/11/2022,5537,Payments to Other Establishments,3111279777,"-12,058.20",Fundamentals Childcare Ltd
http://statistics.data.gov.uk/id/local-authority/38,Oxfordshire County Council,NURSERY ED FUND,04/11/2022,5537,Payments to Other Establishments,3111279834,"-12,058.20",Little Giants Nursery (Carterton) L
http://statistics.data.gov.uk/id/local-authority/38,Oxfordshire County Council,NURSERY ED FUND,04/11/2022,5537,Payments to Other Establishments,3111279837,"-12,058.20",Little Peeple Nursery
http://statistics.data.gov.uk/id/local-authority/38,Oxfordshire County Council,NURSERY ED FUND,04/11/2022,5537,Payments to Other Establishments,3111279885,"-12,058.20",Rainbow Village Nursery
http://statistics.data.gov.uk/id/local-authority/38,Oxfordshire County Council,NURSERY ED FUND,04/11/2022,5537,Payments to Other Establishments,3111279916,"-12,058.20",St John Fisher Catholic Primary
http://statistics.data.gov.uk/id/local-authority/38,Oxfordshire County Council,NURSERY ED FUND,04/11/2022,5537,Payments to Other Establishments,3111280002,"-12,058.20",Wootton & Dry Sandford P
http://statistics.data.gov.uk/id/local-authority/38,Oxfordshire County Council,NURSERY ED FUND,04/11/2022,5537,Payments to Other Establishments,3111279760,"-11,979.90",Tiny Toes Day Nursery
http://statistics.data.gov.uk/id/local-authority/38,Oxfordshire County Council,NURSERY ED FUND,04/11/2022,5537,Payments to Other Establishments,3111279898,"-11,912.04",Sandhills Pre-School Playgroup
http://statistics.data.gov.uk/id/local-authority/38,Oxfordshire County Council,2 YEAR OLD FUNDING,04/11/2022,5537,Payments to Other Establishments,3111279621,"-11,874.24",Millbrook Primary School
http://statistics.data.gov.uk/id/local-authority/38,Oxfordshire County Council,NURSERY ED FUND,04/11/2022,5537,Payments to Other Establishments,3111279998,"-11,838.96",Witney Community Primary Nursery
http://statistics.data.gov.uk/id/local-authority/38,Oxfordshire County Council,NURSERY ED FUND,04/11/2022,5537,Payments to Other Establishments,3111279862,"-11,763.27",North Leigh Pre-School CIO
http://statistics.data.gov.uk/id/local-authority/38,Oxfordshire County Council,NURSERY ED FUND,04/11/2022,5537,Payments to Other Establishments,3111279750,"-11,755.44",Cygnet Nursery
http://statistics.data.gov.uk/id/local-authority/38,Oxfordshire County Council,NURSERY ED FUND,04/11/2022,5537,Payments to Other Establishments,3111279784,"-11,729.34",Hagbourne Pre-School
http://statistics.data.gov.uk/id/local-authority/38,Oxfordshire County Council,NURSERY ED FUND,04/11/2022,5537,Payments to Other Establishments,3111279851,"-11,729.34",Marcham Playgroup
http://statistics.data.gov.uk/id/local-authority/38,Oxfordshire County Council,NURSERY ED FUND,04/11/2022,5537,Payments to Other Establishments,3111279734,"-11,716.29",Childrey Little Ducks Pre-School
http://statistics.data.gov.uk/id/local-authority/38,Oxfordshire County Council,NURSERY ED FUND,04/11/2022,5537,Payments to Other Establishments,3111279996,"-11,651.04",Windrush Church of England Primary
http://statistics.data.gov.uk/id/local-authority/38,Oxfordshire County Council,NURSERY ED FUND,04/11/2022,5537,Payments to Other Establishments,3111279933,"-11,619.72",Steeple Aston Pre-School
http://statistics.data.gov.uk/id/local-authority/38,Oxfordshire County Council,NURSERY ED FUND,04/11/2022,5537,Payments to Other Establishments,3111279981,"-11,510.10",Treetops Nursery
http://statistics.data.gov.uk/id/local-authority/38,Oxfordshire County Council,NURSERY ED FUND,04/11/2022,5537,Payments to Other Establishments,3111279942,"-11,510.10",Wantage Preschool
http://statistics.data.gov.uk/id/local-authority/38,Oxfordshire County Council,NURSERY ED FUND,04/11/2022,5537,Payments to Other Establishments,3111279747,"-11,431.80",Culham Village Nursery and Preschoo
http://statistics.data.gov.uk/id/local-authority/38,Oxfordshire County Council,NURSERY ED FUND,04/11/2022,5537,Payments to Other Establishments,3111279859,"-11,416.14",New Trinity Pre-School
http://statistics.data.gov.uk/id/local-authority/38,Oxfordshire County Council,NURSERY ED FUND,04/11/2022,5537,Payments to Other Establishments,3111279991,"-11,327.40",Willow Cottage Kindergar
http://statistics.data.gov.uk/id/local-authority/38,Oxfordshire County Council,Continuing Care - Care Homes - 65+,10/11/2022,5687,,3111292960,"-11,292.86",Chacombe Park Care Home
http://statistics.data.gov.uk/id/local-authority/38,Oxfordshire County Council,NURSERY ED FUND,04/11/2022,5537,Payments to Other Establishments,3111279730,"-11,290.86",Cherubs Nursery and After Class Lim
http://statistics.data.gov.uk/id/local-authority/38,Oxfordshire County Council,Support at Home U65 Learning Disability,10/11/2022,5537,Payments to Other Establishments,3111295468,"-11,224.08",Derwen College
http://statistics.data.gov.uk/id/local-authority/38,Oxfordshire County Council,NURSERY ED FUND,04/11/2022,5537,Payments to Other Establishments,3111279976,"-11,212.56",The Wantage Nursery and Pre-School
http://statistics.data.gov.uk/id/local-authority/38,Oxfordshire County Council,NURSERY ED FUND,04/11/2022,5537,Payments to Other Establishments,3111279967,"-11,196.90",The Oratory Prep School
http://statistics.data.gov.uk/id/local-authority/38,Oxfordshire County Council,NURSERY ED FUND,04/11/2022,5537,Payments to Other Establishments,3111279744,"-11,165.58",Cranford House School
http://statistics.data.gov.uk/id/local-authority/38,Oxfordshire County Council,2 YEAR OLD FUNDING,04/11/2022,5537,Payments to Other Establishments,3111279697,"-11,132.10",The Pod at St Frideswide CE School
http://statistics.data.gov.uk/id/local-authority/38,Oxfordshire County Council,Continuing Care - Support at Home - U65,10/11/2022,5688,,3111295523,"-11,128.20",Fitzroy Support
http://statistics.data.gov.uk/id/local-authority/38,Oxfordshire County Council,NURSERY ED FUND,04/11/2022,5537,Payments to Other Establishments,3111279786,"-11,042.91",Hanborough Pre-School
http://statistics.data.gov.uk/id/local-authority/38,Oxfordshire County Council,NURSERY ED FUND,04/11/2022,5537,Payments to Other Establishments,3111279769,"-10,962.00",Faringdon Infant School - Adademy
http://statistics.data.gov.uk/id/local-authority/38,Oxfordshire County Council,Planned Maintenance,15/11/2022,4525,Furniture,2201049537,"-10,913.75",Combined Office Interiors Ltd
http://statistics.data.gov.uk/id/local-authority/38,Oxfordshire County Council,NURSERY ED FUND,04/11/2022,5537,Payments to Other Establishments,3111279907,"-10,852.38",South Moreton Pre-School
http://statistics.data.gov.uk/id/local-authority/38,Oxfordshire County Council,NURSERY ED FUND,04/11/2022,5537,Payments to Other Establishments,3111279961,"-10,852.38",The Nursery
http://statistics.data.gov.uk/id/local-authority/38,Oxfordshire County Council,NURSERY ED FUND,04/11/2022,5537,Payments to Other Establishments,3111279882,"-10,815.84",Rainbow (Bicester)
http://statistics.data.gov.uk/id/local-authority/38,Oxfordshire County Council,Funded Nursing Care  - Over 65,10/11/2022,5692,,3111293702,"-10,790.43",GCH (St Katherines) Ltd
http://statistics.data.gov.uk/id/local-authority/38,Oxfordshire County Council,NURSERY ED FUND,04/11/2022,5537,Payments to Other Establishments,3111279788,"-10,742.76",Hardwick & Arden Pre-School
http://statistics.data.gov.uk/id/local-authority/38,Oxfordshire County Council,NURSERY ED FUND,04/11/2022,5537,Payments to Other Establishments,3111279774,"-10,701.00",People Place & Participation LTD
http://statistics.data.gov.uk/id/local-authority/38,Oxfordshire County Council,NURSERY ED FUND,04/11/2022,5537,Payments to Other Establishments,3111279985,"-10,701.00",Watlington Primary School
http://statistics.data.gov.uk/id/local-authority/38,Oxfordshire County Council,NURSERY ED FUND,04/11/2022,5537,Payments to Other Establishments,3111279779,"-10,633.14",Glory Farm Primary School
http://statistics.data.gov.uk/id/local-authority/38,Oxfordshire County Council,NURSERY ED FUND,04/11/2022,5537,Payments to Other Establishments,3111279974,"-10,614.87",The Treehouse Thame Limited
http://statistics.data.gov.uk/id/local-authority/38,Oxfordshire County Council,NURSERY ED FUND,04/11/2022,5537,Payments to Other Establishments,3111279957,"-10,468.71",The Lighthouse Nursery
http://statistics.data.gov.uk/id/local-authority/38,Oxfordshire County Council,Care Homes - Over 65 Physical Sypport,10/11/2022,5686,,3111293023,"-10,435.44",Orders of St John
http://statistics.data.gov.uk/id/local-authority/38,Oxfordshire County Council,NURSERY ED FUND,04/11/2022,5537,Payments to Other Establishments,3111279810,"-10,413.90",Kids Planet Bradmore Road Day Nurse
http://statistics.data.gov.uk/id/local-authority/38,Oxfordshire County Council,NURSERY ED FUND,04/11/2022,5537,Payments to Other Establishments,3111279956,"-10,395.63",The Kings School
http://statistics.data.gov.uk/id/local-authority/38,Oxfordshire County Council,2 YEAR OLD FUNDING,04/11/2022,5537,Payments to Other Establishments,3111279591,"-10,389.96",Jack & Jill Playgroup
http://statistics.data.gov.uk/id/local-authority/38,Oxfordshire County Council,NURSERY ED FUND,04/11/2022,5537,Payments to Other Establishments,3111279796,"-10,374.75",Hill View Primary School
http://statistics.data.gov.uk/id/local-authority/38,Oxfordshire County Council,Support at Home 65+ Physical Support,10/11/2022,5685,B*Cycle tracks,3111292644,"-10,275.24",METHODIST HOMES
http://statistics.data.gov.uk/id/local-authority/38,Oxfordshire County Council,NURSERY ED FUND,04/11/2022,5537,Payments to Other Establishments,3111279767,"-10,139.85",EWELME PRE SCHOOL
http://statistics.data.gov.uk/id/local-authority/38,Oxfordshire County Council,NURSERY ED FUND,04/11/2022,5537,Payments to Other Establishments,3111279836,"-10,121.58",Little Oak Pre-School
http://statistics.data.gov.uk/id/local-authority/38,Oxfordshire County Council,NURSERY ED FUND,04/11/2022,5537,Payments to Other Establishments,3111279718,"-10,085.04",Chalgrove Community Primary School
http://statistics.data.gov.uk/id/local-authority/38,Oxfordshire County Council,NURSERY ED FUND,04/11/2022,5537,Payments to Other Establishments,3111279920,"-10,022.40",St Mary's Primary School
http://statistics.data.gov.uk/id/local-authority/38,Oxfordshire County Council,NURSERY ED FUND,04/11/2022,5537,Payments to Other Establishments,3111279978,"-9,988.47",Tiddlywinks Pre-School
http://statistics.data.gov.uk/id/local-authority/38,Oxfordshire County Council,NURSERY ED FUND,04/11/2022,5537,Payments to Other Establishments,3111279690,"-9,865.80",Broadhill Pre-School
http://statistics.data.gov.uk/id/local-authority/38,Oxfordshire County Council,NURSERY ED FUND,04/11/2022,5537,Payments to Other Establishments,3111279861,"-9,865.80",North Hinksey Pre School & Childcar
http://statistics.data.gov.uk/id/local-authority/38,Oxfordshire County Council,NURSERY ED FUND,04/11/2022,5537,Payments to Other Establishments,3111279866,"-9,865.80",Orchard Meadow Primary School
http://statistics.data.gov.uk/id/local-authority/38,Oxfordshire County Council,NURSERY ED FUND,04/11/2022,5537,Payments to Other Establishments,3111279989,"-9,865.80",William Morris Primary School
http://statistics.data.gov.uk/id/local-authority/38,Oxfordshire County Council,2 YEAR OLD FUNDING,04/11/2022,5537,Payments to Other Establishments,3111279721,"-9,796.25",Eynsham Community
http://statistics.data.gov.uk/id/local-authority/38,Oxfordshire County Council,NURSERY ED FUND,04/11/2022,5537,Payments to Other Establishments,3111279710,"-9,756.18",Busy Bees Playgroup (Thame)
http://statistics.data.gov.uk/id/local-authority/38,Oxfordshire County Council,NURSERY ED FUND,04/11/2022,5537,Payments to Other Establishments,3111279724,"-9,610.02",Charlbury Pre-School
http://statistics.data.gov.uk/id/local-authority/38,Oxfordshire County Council,NURSERY ED FUND,04/11/2022,5537,Payments to Other Establishments,3111279638,"-9,573.48",Ascott-under-Wychwood Pre-School
http://statistics.data.gov.uk/id/local-authority/38,Oxfordshire County Council,High Cost INMSS Placements,24/11/2022,5537,Payments to Other Establishments,3111302189,"-9,501.32",LVS Oxford
http://statistics.data.gov.uk/id/local-authority/38,Oxfordshire County Council,NURSERY ED FUND,04/11/2022,5537,Payments to Other Establishments,3111279904,"-9,427.32",Small Steps Day Nursery Ltd
http://statistics.data.gov.uk/id/local-authority/38,Oxfordshire County Council,NURSERY ED FUND,04/11/2022,5537,Payments to Other Establishments,3111279626,"-9,317.70",Abingdon Kindergarten (Loyd Close)
http://statistics.data.gov.uk/id/local-authority/38,Oxfordshire County Council,NURSERY ED FUND,04/11/2022,5537,Payments to Other Establishments,3111279642,"-9,317.70",Badgemore Preschool
http://statistics.data.gov.uk/id/local-authority/38,Oxfordshire County Council,NURSERY ED FUND,04/11/2022,5537,Payments to Other Establishments,3111279696,"-9,317.70",Buckland Primary School
http://statistics.data.gov.uk/id/local-authority/38,Oxfordshire County Council,NURSERY ED FUND,04/11/2022,5537,Payments to Other Establishments,3111279906,"-9,317.70",Sonning Common Pre-School
http://statistics.data.gov.uk/id/local-authority/38,Oxfordshire County Council,Care Homes - Over 65 Physical Sypport,10/11/2022,5687,,3111293732,"-9,163.92",GCH (St Katherines) Ltd
http://statistics.data.gov.uk/id/local-authority/38,Oxfordshire County Council,NURSERY ED FUND,04/11/2022,5537,Payments to Other Establishments,3111279848,"-9,135.00",Madley Brook Community Primary Scho
http://statistics.data.gov.uk/id/local-authority/38,Oxfordshire County Council,2 YEAR OLD FUNDING,04/11/2022,5537,Payments to Other Establishments,3111279635,"-9,103.58",Rainbow Pre-School
http://statistics.data.gov.uk/id/local-authority/38,Oxfordshire County Council,NURSERY ED FUND,04/11/2022,5537,Payments to Other Establishments,3111279857,"-9,098.46",New Marston Pre-School
http://statistics.data.gov.uk/id/local-authority/38,Oxfordshire County Council,NURSERY ED FUND,04/11/2022,5537,Payments to Other Establishments,3111279752,"-9,043.65",Cygnets Playschool
http://statistics.data.gov.uk/id/local-authority/38,Oxfordshire County Council,Support at Home U65 Learning Disability,10/11/2022,5690,,3111291681,"-9,023.91",Style Acre
http://statistics.data.gov.uk/id/local-authority/38,Oxfordshire County Council,POST18 UASC DCSF FND,28/11/2022,5785,Client Lodgings and Accommodation,3111303090,"-9,013.39",Response Organisation
http://statistics.data.gov.uk/id/local-authority/38,Oxfordshire County Council,2 YEAR OLD FUNDING,04/11/2022,5537,Payments to Other Establishments,3111279572,"-8,905.68",Dashwood Banbury Academy
http://statistics.data.gov.uk/id/local-authority/38,Oxfordshire County Council,2 YEAR OLD FUNDING,04/11/2022,5537,Payments to Other Establishments,3111279600,"-8,905.68",Kiddies Korner
http://statistics.data.gov.uk/id/local-authority/38,Oxfordshire County Council,Continuing Care - Care Homes - 65+,10/11/2022,5687,,3111292878,"-8,785.00",WT UK Opco 4 Ltd C/O Care UK
http://statistics.data.gov.uk/id/local-authority/38,Oxfordshire County Council,NURSERY ED FUND,04/11/2022,5537,Payments to Other Establishments,3111279636,"-8,769.60",Annabelles Pre-school (Longcot)
http://statistics.data.gov.uk/id/local-authority/38,Oxfordshire County Council,NURSERY ED FUND,04/11/2022,5537,Payments to Other Establishments,3111279654,"-8,769.60",Barton Park Primary School
http://statistics.data.gov.uk/id/local-authority/38,Oxfordshire County Council,NURSERY ED FUND,04/11/2022,5537,Payments to Other Establishments,3111279729,"-8,769.60",Cherry Tree Nursery (Oxford)
http://statistics.data.gov.uk/id/local-authority/38,Oxfordshire County Council,NURSERY ED FUND,04/11/2022,5537,Payments to Other Establishments,3111279915,"-8,769.60",St. James CofE Primary School
http://statistics.data.gov.uk/id/local-authority/38,Oxfordshire County Council,NURSERY ED FUND,04/11/2022,5537,Payments to Other Establishments,3111279995,"-8,769.60",Windale Community Primary School
http://statistics.data.gov.uk/id/local-authority/38,Oxfordshire County Council,Support at Home U65 Learning Disability,10/11/2022,5537,Payments to Other Establishments,3111295479,"-8,521.78",Foxes Academy Ltd
http://statistics.data.gov.uk/id/local-authority/38,Oxfordshire County Council,CHC Fast Track - Care Homes - Over 65,10/11/2022,5687,,3111293016,"-8,500.00",Chacombe Park Care Home
http://statistics.data.gov.uk/id/local-authority/38,Oxfordshire County Council,CHC Fast Track - Care Homes - Over 65,10/11/2022,5687,,3111294464,"-8,412.86",Richmond Letcombe Regis
http://statistics.data.gov.uk/id/local-authority/38,Oxfordshire County Council,NURSERY ED FUND,04/11/2022,5537,Payments to Other Establishments,3111279970,"-8,404.20",The Oxford Nursery (Summertown)
http://statistics.data.gov.uk/id/local-authority/38,Oxfordshire County Council,NURSERY ED FUND,04/11/2022,5537,Payments to Other Establishments,3111279887,"-8,378.10",Red Dragon Pre-School Gr
http://statistics.data.gov.uk/id/local-authority/38,Oxfordshire County Council,NURSERY ED FUND,04/11/2022,5537,Payments to Other Establishments,3111279840,"-8,244.99",Little Treasure Day Nursery
http://statistics.data.gov.uk/id/local-authority/38,Oxfordshire County Council,NURSERY ED FUND,04/11/2022,5537,Payments to Other Establishments,3111279849,"-8,221.50",Magpies Preschool
http://statistics.data.gov.uk/id/local-authority/38,Oxfordshire County Council,NURSERY ED FUND,04/11/2022,5537,Payments to Other Establishments,3111279962,"-8,164.08",The Old Station Nursery (Bampton)
http://statistics.data.gov.uk/id/local-authority/38,Oxfordshire County Council,Funded Nursing Care  - Over 65,10/11/2022,5692,,3111295203,"-8,151.35",SANCTUARY CARE LTD
http://statistics.data.gov.uk/id/local-authority/38,Oxfordshire County Council,NURSERY ED FUND,04/11/2022,5537,Payments to Other Establishments,3111279761,"-8,135.37",Tiny Toes Day Nursery (The Hay Barn
http://statistics.data.gov.uk/id/local-authority/38,Oxfordshire County Council,NURSERY ED FUND,04/11/2022,5537,Payments to Other Establishments,3111279825,"-8,111.88",Lake Street Nursery
http://statistics.data.gov.uk/id/local-authority/38,Oxfordshire County Council,NURSERY ED FUND,04/11/2022,5537,Payments to Other Establishments,3111279877,"-8,002.26",Polstead Preschool Oxford
http://statistics.data.gov.uk/id/local-authority/38,Oxfordshire County Council,NURSERY ED FUND,04/11/2022,5537,Payments to Other Establishments,3111279680,"-7,978.77",Kids Unlimited (Clearwater Place)
http://statistics.data.gov.uk/id/local-authority/38,Oxfordshire County Council,NURSERY ED FUND,04/11/2022,5537,Payments to Other Establishments,3111279988,"-7,892.64",Whitchurch Pre-School Group
http://statistics.data.gov.uk/id/local-authority/38,Oxfordshire County Council,2 YEAR OLD FUNDING,04/11/2022,5537,Payments to Other Establishments,3111279673,"-7,866.68",The Ace Centre
http://statistics.data.gov.uk/id/local-authority/38,Oxfordshire County Council,NURSERY ED FUND,04/11/2022,5537,Payments to Other Establishments,3111279686,"-7,845.66",Brightwell Pre-school
http://statistics.data.gov.uk/id/local-authority/38,Oxfordshire County Council,NURSERY ED FUND,04/11/2022,5537,Payments to Other Establishments,3111279739,"-7,783.02",Clanfield Pre-School
http://statistics.data.gov.uk/id/local-authority/38,Oxfordshire County Council,NURSERY ED FUND,04/11/2022,5537,Payments to Other Establishments,3111279656,"-7,673.40",Bayards Hill Primary School
http://statistics.data.gov.uk/id/local-authority/38,Oxfordshire County Council,NURSERY ED FUND,04/11/2022,5537,Payments to Other Establishments,3111279992,"-7,673.40",Willow Cottage Nurseries Limited
http://statistics.data.gov.uk/id/local-authority/38,Oxfordshire County Council,NURSERY ED FUND,04/11/2022,5537,Payments to Other Establishments,3111279937,"-7,618.59",Sunningwell Pre-School
http://statistics.data.gov.uk/id/local-authority/38,Oxfordshire County Council,NURSERY ED FUND,04/11/2022,5537,Payments to Other Establishments,3111279692,"-7,566.39",Broadshires Pre-School
http://statistics.data.gov.uk/id/local-authority/38,Oxfordshire County Council,NURSERY ED FUND,04/11/2022,5537,Payments to Other Establishments,3111279816,"-7,454.16",Kingsfield Nursery
http://statistics.data.gov.uk/id/local-authority/38,Oxfordshire County Council,2 YEAR OLD FUNDING,04/11/2022,5537,Payments to Other Establishments,3111279568,"-7,421.40",Courtyard Pre-School
http://statistics.data.gov.uk/id/local-authority/38,Oxfordshire County Council,NURSERY ED FUND,04/11/2022,5537,Payments to Other Establishments,3111279822,"-7,399.35",Ladybirds @ Riverside
http://statistics.data.gov.uk/id/local-authority/38,Oxfordshire County Council,2 YEAR OLD FUNDING,04/11/2022,5537,Payments to Other Establishments,3111279610,"-7,371.92",Little Oak Pre-School
http://statistics.data.gov.uk/id/local-authority/38,Oxfordshire County Council,NURSERY ED FUND,04/11/2022,5537,Payments to Other Establishments,3111279751,"-7,344.54",Cygnets of Henley Ltd
http://statistics.data.gov.uk/id/local-authority/38,Oxfordshire County Council,NURSERY ED FUND,04/11/2022,5537,Payments to Other Establishments,3111279827,"-7,344.54",Leafield Pre-School
http://statistics.data.gov.uk/id/local-authority/38,Oxfordshire County Council,NURSERY ED FUND,04/11/2022,5537,Payments to Other Establishments,3111279944,"-7,308.00",The Aunties' Old School Nursery
http://statistics.data.gov.uk/id/local-authority/38,Oxfordshire County Council,NURSERY ED FUND,04/11/2022,5537,Payments to Other Establishments,3111279785,"-7,234.92",Long Hanborough Playgroup
http://statistics.data.gov.uk/id/local-authority/38,Oxfordshire County Council,Support at Home 65+ Physical Support,10/11/2022,5685,B*Cycle tracks,3111292561,"-7,201.09",Orders of St John
http://statistics.data.gov.uk/id/local-authority/38,Oxfordshire County Council,NURSERY ED FUND,04/11/2022,5537,Payments to Other Establishments,3111279630,"-7,180.11",Adderbury Day Nursery
http://statistics.data.gov.uk/id/local-authority/38,Oxfordshire County Council,NURSERY ED FUND,04/11/2022,5537,Payments to Other Establishments,3111279745,"-7,125.30",Cropredy Pre-School
http://statistics.data.gov.uk/id/local-authority/38,Oxfordshire County Council,NURSERY ED FUND,04/11/2022,5537,Payments to Other Establishments,3111279844,"-7,088.76",Long Wittenham Pre-School
http://statistics.data.gov.uk/id/local-authority/38,Oxfordshire County Council,Support at Home U65 Learning Disability,10/11/2022,5688,,3111295898,"-7,059.86",The Brandon Trust
http://statistics.data.gov.uk/id/local-authority/38,Oxfordshire County Council,NURSERY ED FUND,04/11/2022,5537,Payments to Other Establishments,3111279945,"-7,047.00",Cabin Pre-School
http://statistics.data.gov.uk/id/local-authority/38,Oxfordshire County Council,NURSERY ED FUND,04/11/2022,5537,Payments to Other Establishments,3111279731,"-7,015.68",Chesterton Playgroup
http://statistics.data.gov.uk/id/local-authority/38,Oxfordshire County Council,DEPARTMENTAL MANAGE,23/11/2022,8102,Payments to main contractor,2201052725,"-6,979.11",Haysham Ltd
http://statistics.data.gov.uk/id/local-authority/38,Oxfordshire County Council,2 YEAR OLD FUNDING,04/11/2022,5537,Payments to Other Establishments,3111279611,"-6,976.12",Little Peeple Nursery
http://statistics.data.gov.uk/id/local-authority/38,Oxfordshire County Council,NURSERY ED FUND,04/11/2022,5537,Payments to Other Establishments,3111279895,"-6,968.70",Sacred Heart Pre-School
http://statistics.data.gov.uk/id/local-authority/38,Oxfordshire County Council,NURSERY ED FUND,04/11/2022,5537,Payments to Other Establishments,3111279871,"-6,955.65",Oxford's British Orchard Nursery
http://statistics.data.gov.uk/id/local-authority/38,Oxfordshire County Council,NURSERY ED FUND,04/11/2022,5537,Payments to Other Establishments,3111279968,"-6,942.60",The Orchard Pre-School
http://statistics.data.gov.uk/id/local-authority/38,Oxfordshire County Council,NURSERY ED FUND,04/11/2022,5537,Payments to Other Establishments,3111279700,"-6,832.98",Burford Pre-School
http://statistics.data.gov.uk/id/local-authority/38,Oxfordshire County Council,2 YEAR OLD FUNDING,04/11/2022,5537,Payments to Other Establishments,3111279561,"-6,679.26",Cherry Tree Nursery (Oxford)
http://statistics.data.gov.uk/id/local-authority/38,Oxfordshire County Council,NURSERY ED FUND,04/11/2022,5537,Payments to Other Establishments,3111279886,"-6,616.35",Rainbows Day Nursery
http://statistics.data.gov.uk/id/local-authority/38,Oxfordshire County Council,NURSERY ED FUND,04/11/2022,5537,Payments to Other Establishments,3111279622,"-6,577.20",Abbey Woods Academy
http://statistics.data.gov.uk/id/local-authority/38,Oxfordshire County Council,NURSERY ED FUND,04/11/2022,5537,Payments to Other Establishments,3111279644,"-6,577.20",Bainton Road Nursery
http://statistics.data.gov.uk/id/local-authority/38,Oxfordshire County Council,NURSERY ED FUND,04/11/2022,5537,Payments to Other Establishments,3111279664,"-6,577.20",Blewbury Preschool
http://statistics.data.gov.uk/id/local-authority/38,Oxfordshire County Council,NURSERY ED FUND,04/11/2022,5537,Payments to Other Establishments,3111280045,"-6,577.20",Catherine (Katey) Keeper
http://statistics.data.gov.uk/id/local-authority/38,Oxfordshire County Council,NURSERY ED FUND,04/11/2022,5537,Payments to Other Establishments,3111279929,"-6,577.20",St Thomas More Primary School - Aca
http://statistics.data.gov.uk/id/local-authority/38,Oxfordshire County Council,NURSERY ED FUND,04/11/2022,5537,Payments to Other Establishments,3111279932,"-6,577.20",Stanton Harcourt CE
http://statistics.data.gov.uk/id/local-authority/38,Oxfordshire County Council,NURSERY ED FUND,04/11/2022,5537,Payments to Other Establishments,3111279935,"-6,577.20",Stonesfield Pre-School
http://statistics.data.gov.uk/id/local-authority/38,Oxfordshire County Council,NURSERY ED FUND,04/11/2022,5537,Payments to Other Establishments,3111279977,"-6,577.20",The Warborough and Shillingford
http://statistics.data.gov.uk/id/local-authority/38,Oxfordshire County Council,Continuing Care - Support at Home - 65+,18/11/2022,5691,,3111298834,"-6,548.00",Helping Hands
http://statistics.data.gov.uk/id/local-authority/38,Oxfordshire County Council,NURSERY ED FUND,04/11/2022,5537,Payments to Other Establishments,3111279880,"-6,467.58",Queensdown Nursery School
http://statistics.data.gov.uk/id/local-authority/38,Oxfordshire County Council,Support at Home 65+ Memory & Cognition,10/11/2022,5686,,3111293070,"-6,285.72",Cheney House Care Home
http://statistics.data.gov.uk/id/local-authority/38,Oxfordshire County Council,NURSERY ED FUND,04/11/2022,5537,Payments to Other Establishments,3111279658,"-6,240.51",Begbroke Playgroup
http://statistics.data.gov.uk/id/local-authority/38,Oxfordshire County Council,Care Homes - Over 65 Memory & Cognition,10/11/2022,5687,,3111292181,"-6,224.41",Banbury Heights Nursing Home
http://statistics.data.gov.uk/id/local-authority/38,Oxfordshire County Council,NURSERY ED FUND,04/11/2022,5537,Payments to Other Establishments,3111279817,"-6,209.19",Kirtlington Pre-School (PFSU)
http://statistics.data.gov.uk/id/local-authority/38,Oxfordshire County Council,Funded Nursing Care  - Over 65,10/11/2022,5692,,3111294338,"-6,186.04",Oakenholt Care Ltd
http://statistics.data.gov.uk/id/local-authority/38,Oxfordshire County Council,CHC Fast Track - Care Homes - Over 65,10/11/2022,5687,,3111292771,"-6,116.06",Grace Care Service Ltd T/A Burford
http://statistics.data.gov.uk/id/local-authority/38,Oxfordshire County Council,NURSERY ED FUND,04/11/2022,5537,Payments to Other Establishments,3111279917,"-6,107.40",St Johns Priory School
http://statistics.data.gov.uk/id/local-authority/38,Oxfordshire County Council,POST18 UASC DCSF FND,28/11/2022,5785,Client Lodgings and Accommodation,3111303097,"-6,071.78",Response Organisation
http://statistics.data.gov.uk/id/local-authority/38,Oxfordshire County Council,NATURAL ENVIRONMENT,18/11/2022,5675,Payments to Partnerships,2201051131,"-6,000.00",BERKSHIRE BUCKINGHAMSHIRE & OXFORDS
http://statistics.data.gov.uk/id/local-authority/38,Oxfordshire County Council,NURSERY ED FUND,04/11/2022,5537,Payments to Other Establishments,3111279878,"-5,989.95",Positive Steps Day Nursery
http://statistics.data.gov.uk/id/local-authority/38,Oxfordshire County Council,NURSERY ED FUND,04/11/2022,5537,Payments to Other Establishments,3111279830,"-5,966.46",Little Bears Pre-School (PFSU)
http://statistics.data.gov.uk/id/local-authority/38,Oxfordshire County Council,2 YEAR OLD FUNDING,04/11/2022,5537,Payments to Other Establishments,3111279606,"-5,937.12",Lake Street Nursery
http://statistics.data.gov.uk/id/local-authority/38,Oxfordshire County Council,2 YEAR OLD FUNDING,04/11/2022,5537,Payments to Other Establishments,3111279609,"-5,937.12",Little Giants Nursery (Carterton) L
http://statistics.data.gov.uk/id/local-authority/38,Oxfordshire County Council,2 YEAR OLD FUNDING,04/11/2022,5537,Payments to Other Establishments,3111279580,"-5,937.12",People Place & Participation LTD
http://statistics.data.gov.uk/id/local-authority/38,Oxfordshire County Council,2 YEAR OLD FUNDING,04/11/2022,5537,Payments to Other Establishments,3111279637,"-5,937.12",Rainbow Village Nursery
http://statistics.data.gov.uk/id/local-authority/38,Oxfordshire County Council,2 YEAR OLD FUNDING,04/11/2022,5537,Payments to Other Establishments,3111279711,"-5,937.12",Windale Community Primary School
http://statistics.data.gov.uk/id/local-authority/38,Oxfordshire County Council,NURSERY ED FUND,04/11/2022,5537,Payments to Other Establishments,3111279758,"-5,919.48",Dorchester Pre-School
http://statistics.data.gov.uk/id/local-authority/38,Oxfordshire County Council,Continuing Care - Care Homes - 65+,10/11/2022,5687,,3111294364,"-5,892.86",Oxford Beaumont
http://statistics.data.gov.uk/id/local-authority/38,Oxfordshire County Council,Continuing Care - Care Homes - 65+,10/11/2022,5687,,3111292125,"-5,835.30",Elysium Neurological Services (Badb
http://statistics.data.gov.uk/id/local-authority/38,Oxfordshire County Council,NURSERY ED FUND,04/11/2022,5537,Payments to Other Establishments,3111279793,"-5,809.86",Henley Village Montessori Nursery
http://statistics.data.gov.uk/id/local-authority/38,Oxfordshire County Council,NURSERY ED FUND,04/11/2022,5537,Payments to Other Establishments,3111279854,"-5,809.86",Minster Lovell Playgroup
http://statistics.data.gov.uk/id/local-authority/38,Oxfordshire County Council,NURSERY ED FUND,04/11/2022,5537,Payments to Other Establishments,3111279928,"-5,809.86",St Thomas Day Nursery
http://statistics.data.gov.uk/id/local-authority/38,Oxfordshire County Council,NURSERY ED FUND,04/11/2022,5537,Payments to Other Establishments,3111279903,"-5,804.64",SKIPS
http://statistics.data.gov.uk/id/local-authority/38,Oxfordshire County Council,CHC Fast Track - Care Homes - Over 65,10/11/2022,5687,,3111293647,"-5,757.14",LAWTON GROUP LTD
http://statistics.data.gov.uk/id/local-authority/38,Oxfordshire County Council,Support at Home 65+ Physical Support,10/11/2022,5686,,3111292100,"-5,671.43",Orders of St John
http://statistics.data.gov.uk/id/local-authority/38,Oxfordshire County Council,NURSERY ED FUND,04/11/2022,5537,Payments to Other Establishments,3111279628,"-5,598.45",Joscas Preparatory School
http://statistics.data.gov.uk/id/local-authority/38,Oxfordshire County Council,COMM DRAWDOWN FUNDNG,25/11/2022,8102,Payments to main contractor,2201053685,"-5,523.16",Milestone Infrastructure Limited
http://statistics.data.gov.uk/id/local-authority/38,Oxfordshire County Council,NURSERY ED FUND,04/11/2022,5537,Payments to Other Establishments,3111279741,"-5,517.54",Combe Pre-school
http://statistics.data.gov.uk/id/local-authority/38,Oxfordshire County Council,NURSERY ED FUND,04/11/2022,5537,Payments to Other Establishments,3111279648,"-5,481.00",Bampton CofE School
http://statistics.data.gov.uk/id/local-authority/38,Oxfordshire County Council,NURSERY ED FUND,04/11/2022,5537,Payments to Other Establishments,3111279802,"-5,481.00",Impact Montessori Nursery
http://statistics.data.gov.uk/id/local-authority/38,Oxfordshire County Council,NURSERY ED FUND,04/11/2022,5537,Payments to Other Establishments,3111280040,"-5,481.00",Julie Harvey
http://statistics.data.gov.uk/id/local-authority/38,Oxfordshire County Council,Continuing Care - Support at Home - 65+,18/11/2022,5691,,3111298837,"-5,453.50",Helping Hands
http://statistics.data.gov.uk/id/local-authority/38,Oxfordshire County Council,NURSERY ED FUND,04/11/2022,5537,Payments to Other Establishments,3111279901,"-5,394.87",Shiplake Village Nursery
http://statistics.data.gov.uk/id/local-authority/38,Oxfordshire County Council,NURSERY ED FUND,04/11/2022,5537,Payments to Other Establishments,3111279727,"-5,371.38",Checkendon Pre-School CIO
http://statistics.data.gov.uk/id/local-authority/38,Oxfordshire County Council,NURSERY ED FUND,04/11/2022,5537,Payments to Other Establishments,3111279856,"-5,261.76",Mortimer Hall Pre-School CIO
http://statistics.data.gov.uk/id/local-authority/38,Oxfordshire County Council,NURSERY ED FUND,04/11/2022,5537,Payments to Other Establishments,3111279927,"-5,261.76",St Peters Church of England Primary
http://statistics.data.gov.uk/id/local-authority/38,Oxfordshire County Council,NURSERY ED FUND,04/11/2022,5537,Payments to Other Establishments,3111279930,"-5,235.66",Standlake CE Primary School
http://statistics.data.gov.uk/id/local-authority/38,Oxfordshire County Council,Funded Nursing Care  - Over 65,10/11/2022,5692,,3111294948,"-5,229.74",Four Seasons (Headington) Ltd
http://statistics.data.gov.uk/id/local-authority/38,Oxfordshire County Council,NURSERY ED FUND,04/11/2022,5537,Payments to Other Establishments,3111279759,"-5,220.00",Dr South's CE Primary School
http://statistics.data.gov.uk/id/local-authority/38,Oxfordshire County Council,2 YEAR OLD FUNDING,04/11/2022,5537,Payments to Other Establishments,3111279603,"-5,194.98",Ladybird Pre-School Limited
http://statistics.data.gov.uk/id/local-authority/38,Oxfordshire County Council,2 YEAR OLD FUNDING,04/11/2022,5537,Payments to Other Establishments,3111279661,"-5,194.98",St Marys Playgroup
http://statistics.data.gov.uk/id/local-authority/38,Oxfordshire County Council,NURSERY ED FUND,04/11/2022,5537,Payments to Other Establishments,3111279955,"-5,152.14",The Early Years Nursery
http://statistics.data.gov.uk/id/local-authority/38,Oxfordshire County Council,CHC Fast Track - Care Homes - Over 65,10/11/2022,5687,,3111293559,"-5,142.86",Freeland House
http://statistics.data.gov.uk/id/local-authority/38,Oxfordshire County Council,Interim Funding  - Care Homes - Over 65,10/11/2022,5687,,3111293569,"-5,142.86",Freeland House
http://statistics.data.gov.uk/id/local-authority/38,Oxfordshire County Council,Support at Home U65 Learning Disability,08/11/2022,5682,,3111288661,"-5,103.04",The Brandon Trust
http://statistics.data.gov.uk/id/local-authority/38,Oxfordshire County Council,MAINSTREAM-SECONDARY,17/11/2022,4330,Transport to School Activities,3111298322,"-5,090.70",Blunsdons Coach Travel
http://statistics.data.gov.uk/id/local-authority/38,Oxfordshire County Council,NURSERY ED FUND,04/11/2022,5537,Payments to Other Establishments,3111279893,"-5,066.01",Rush Common Pre-School
http://statistics.data.gov.uk/id/local-authority/38,Oxfordshire County Council,CHC Fast Track - Care Homes - Over 65,10/11/2022,5687,,3111292618,"-5,000.00",METHODIST HOMES
http://statistics.data.gov.uk/id/local-authority/38,Oxfordshire County Council,Unregistered Placements,25/11/2022,3942,Hire of Accommodation and Facilities,2201053458,"-4,960.00",Oxfordshire Accommodation Ltd
http://statistics.data.gov.uk/id/local-authority/38,Oxfordshire County Council,NURSERY ED FUND,04/11/2022,5537,Payments to Other Establishments,3111279646,"-4,932.90",Balliol Day Nursery
http://statistics.data.gov.uk/id/local-authority/38,Oxfordshire County Council,NURSERY ED FUND,04/11/2022,5537,Payments to Other Establishments,3111279776,"-4,932.90",Freeland Pre-School (PFSU)
http://statistics.data.gov.uk/id/local-authority/38,Oxfordshire County Council,NURSERY ED FUND,04/11/2022,5537,Payments to Other Establishments,3111279845,"-4,932.90",Longcot and Fernham CE Primary Scho
http://statistics.data.gov.uk/id/local-authority/38,Oxfordshire County Council,NURSERY ED FUND,04/11/2022,5537,Payments to Other Establishments,3111280001,"-4,932.90",Woodcote Pre-School Group
http://statistics.data.gov.uk/id/local-authority/38,Oxfordshire County Council,Support at Home 65+ Physical Support,10/11/2022,5686,,3111293930,"-4,928.57",Heathfield House Nursing Home
http://statistics.data.gov.uk/id/local-authority/38,Oxfordshire County Council,CHC Fast Track - Care Homes - Over 65,10/11/2022,5687,,3111294498,"-4,871.43",Rushcourt Nursing Home
http://statistics.data.gov.uk/id/local-authority/38,Oxfordshire County Council,Funded Nursing Care  - Over 65,10/11/2022,5692,,3111294521,"-4,841.25",SANCTUARY CARE PROPERTY (2) LTD
http://statistics.data.gov.uk/id/local-authority/38,Oxfordshire County Council,Funded Nursing Care  - Over 65,10/11/2022,5692,,3111294640,"-4,781.48",Stowford House
http://statistics.data.gov.uk/id/local-authority/38,Oxfordshire County Council,Support at Home 65+ Physical Support,10/11/2022,5686,,3111292818,"-4,764.00",Orders of St John
http://statistics.data.gov.uk/id/local-authority/38,Oxfordshire County Council,2 YEAR OLD FUNDING,04/11/2022,5537,Payments to Other Establishments,3111279675,"-4,749.70",Wantage Preschool
http://statistics.data.gov.uk/id/local-authority/38,Oxfordshire County Council,NURSERY ED FUND,04/11/2022,5537,Payments to Other Establishments,3111279868,"-4,721.49",Oxfam Workplace Nursery
http://statistics.data.gov.uk/id/local-authority/38,Oxfordshire County Council,NURSERY ED FUND,04/11/2022,5537,Payments to Other Establishments,3111280113,"-4,713.66",Jane�s Kindergarten
http://statistics.data.gov.uk/id/local-authority/38,Oxfordshire County Council,NURSERY ED FUND,04/11/2022,5537,Payments to Other Establishments,3111279870,"-4,713.66",Oxford Montessori Nursery
http://statistics.data.gov.uk/id/local-authority/38,Oxfordshire County Council,Funded Nursing Care  - Over 65,10/11/2022,5692,,3111294507,"-4,661.94",SANCTUARY CARE PROPERTY (2) LTD
http://statistics.data.gov.uk/id/local-authority/38,Oxfordshire County Council,Care Homes - Over 65 Physical Sypport,10/11/2022,5686,,3111293247,"-4,622.14",Orders of St John
http://statistics.data.gov.uk/id/local-authority/38,Oxfordshire County Council,Care Homes - Over 65 Mental Health,10/11/2022,5687,,3111294921,"-4,603.50",Four Seasons (Headington) Ltd
http://statistics.data.gov.uk/id/local-authority/38,Oxfordshire County Council,Funded Nursing Care  - Over 65,10/11/2022,5692,,3111291865,"-4,602.17",Abbey Crest Nursing Home
http://statistics.data.gov.uk/id/local-authority/38,Oxfordshire County Council,2 YEAR OLD FUNDING,04/11/2022,5537,Payments to Other Establishments,3111279614,"-4,452.84",Littlemore Playgroup
http://statistics.data.gov.uk/id/local-authority/38,Oxfordshire County Council,2 YEAR OLD FUNDING,04/11/2022,5537,Payments to Other Establishments,3111279641,"-4,452.84",Robin Playgroup
http://statistics.data.gov.uk/id/local-authority/38,Oxfordshire County Council,Funded Nursing Care  - Under 65,10/11/2022,5692,,3111292928,"-4,392.98",Chacombe Park Care Home
http://statistics.data.gov.uk/id/local-authority/38,Oxfordshire County Council,NURSERY ED FUND,04/11/2022,5537,Payments to Other Establishments,3111279762,"-4,384.80",Tiny Toes Day Nursery (Wallingford)
http://statistics.data.gov.uk/id/local-authority/38,Oxfordshire County Council,CHC Fast Track - Care Homes - Over 65,10/11/2022,5687,,3111293831,"-4,371.43",HAMBERLEY CARE 2 LIMITED
http://statistics.data.gov.uk/id/local-authority/38,Oxfordshire County Council,NURSERY ED FUND,04/11/2022,5537,Payments to Other Establishments,3111279922,"-4,290.84",St Marys School (Henley)
http://statistics.data.gov.uk/id/local-authority/38,Oxfordshire County Council,NURSERY ED FUND,04/11/2022,5537,Payments to Other Establishments,3111279940,"-4,275.18",Tackley COFE Primary School
http://statistics.data.gov.uk/id/local-authority/38,Oxfordshire County Council,POST18 UASC DCSF FND,28/11/2022,5785,Client Lodgings and Accommodation,3111303084,"-4,261.56",Response Organisation
http://statistics.data.gov.uk/id/local-authority/38,Oxfordshire County Council,Support at Home U65 Physical Support,10/11/2022,5685,B*Cycle tracks,3111294308,"-4,252.89",Mon Choisy
http://statistics.data.gov.uk/id/local-authority/38,Oxfordshire County Council,Health Acquired Brain Injury C Homes U65,10/11/2022,5687,,3111292123,"-4,250.70",Elysium Neurological Services (Badb
http://statistics.data.gov.uk/id/local-authority/38,Oxfordshire County Council,NURSERY ED FUND,04/11/2022,5537,Payments to Other Establishments,3111279936,"-4,228.20",Summertown Montessori Nursery
http://statistics.data.gov.uk/id/local-authority/38,Oxfordshire County Council,NURSERY ED FUND,04/11/2022,5537,Payments to Other Establishments,3111280074,"-4,199.49",Nicola Williams
http://statistics.data.gov.uk/id/local-authority/38,Oxfordshire County Council,SEN TRANSPORT,17/11/2022,4330,Transport to School Activities,3111298323,"-4,170.00",Airport Transfers Banbury Ltd
http://statistics.data.gov.uk/id/local-authority/38,Oxfordshire County Council,NURSERY ED FUND,04/11/2022,5537,Payments to Other Establishments,3111279748,"-4,165.56",Cumnor Pre-School Nurser
http://statistics.data.gov.uk/id/local-authority/38,Oxfordshire County Council,Care Homes - Over 65 Memory & Cognition,10/11/2022,5686,,3111294065,"-4,142.86",Kirlena House
http://statistics.data.gov.uk/id/local-authority/38,Oxfordshire County Council,Funded Nursing Care  - Over 65,10/11/2022,5692,,3111294192,"-4,124.02",Meadow View Nursing Home
http://statistics.data.gov.uk/id/local-authority/38,Oxfordshire County Council,Funded Nursing Care  - Over 65,10/11/2022,5692,,3111293028,"-4,094.14",Chacombe Park Care Home
http://statistics.data.gov.uk/id/local-authority/38,Oxfordshire County Council,SEN TRANSPORT,17/11/2022,4330,Transport to School Activities,3111298324,"-4,036.20",Airport Transfers Banbury Ltd
http://statistics.data.gov.uk/id/local-authority/38,Oxfordshire County Council,Support at Home U65 Physical Support,08/11/2022,5696,,3111289633,"-3,972.62",All Care GB Ltd
http://statistics.data.gov.uk/id/local-authority/38,Oxfordshire County Council,NURSERY ED FUND,04/11/2022,5537,Payments to Other Establishments,3111279960,"-3,946.32",The Montessori Nursery S
http://statistics.data.gov.uk/id/local-authority/38,Oxfordshire County Council,Care Homes - Over 65 Physical Sypport,10/11/2022,5687,,3111291969,"-3,942.86",ACER HEALTHCARE LTD
http://statistics.data.gov.uk/id/local-authority/38,Oxfordshire County Council,SEN TRANSPORT,17/11/2022,5227,Other Transport Arrangements,3111298325,"-3,918.60",Oxfordshire Travel Ltd
http://statistics.data.gov.uk/id/local-authority/38,Oxfordshire County Council,MAINSTREAM-SECONDARY,17/11/2022,4330,Transport to School Activities,3111298327,"-3,874.00",Barnes Coaches Ltd
http://statistics.data.gov.uk/id/local-authority/38,Oxfordshire County Council,NURSERY ED FUND,04/11/2022,5537,Payments to Other Establishments,3111279753,"-3,836.70",Daffodil Nursery Ltd
http://statistics.data.gov.uk/id/local-authority/38,Oxfordshire County Council,NURSERY ED FUND,04/11/2022,5537,Payments to Other Establishments,3111279773,"-3,836.70",Finstock CE Primary School
http://statistics.data.gov.uk/id/local-authority/38,Oxfordshire County Council,NURSERY ED FUND,04/11/2022,5537,Payments to Other Establishments,3111280024,"-3,836.70",Florence Darby
http://statistics.data.gov.uk/id/local-authority/38,Oxfordshire County Council,NURSERY ED FUND,04/11/2022,5537,Payments to Other Establishments,3111279843,"-3,836.70",Littlemore Playgroup
http://statistics.data.gov.uk/id/local-authority/38,Oxfordshire County Council,NURSERY ED FUND,04/11/2022,5537,Payments to Other Establishments,3111280062,"-3,836.70",Melanie Ford
http://statistics.data.gov.uk/id/local-authority/38,Oxfordshire County Council,2 YEAR OLD FUNDING,04/11/2022,5537,Payments to Other Establishments,3111279563,"-3,809.65",Chipping Norton Pre-school
http://statistics.data.gov.uk/id/local-authority/38,Oxfordshire County Council,Care Homes - Over 65 Physical Sypport,10/11/2022,5687,,3111293718,"-3,803.89",GCH (St Katherines) Ltd
http://statistics.data.gov.uk/id/local-authority/38,Oxfordshire County Council,High Cost INMSS Placements,25/11/2022,5537,Payments to Other Establishments,3111302700,"-3,800.53",LVS Oxford
http://statistics.data.gov.uk/id/local-authority/38,Oxfordshire County Council,Funded Nursing Care  - Over 65,10/11/2022,5692,,3111293822,"-3,795.30",HAMBERLEY CARE 2 LIMITED
http://statistics.data.gov.uk/id/local-authority/38,Oxfordshire County Council,NURSERY ED FUND,04/11/2022,5537,Payments to Other Establishments,3111280003,"-3,758.40",Woodstock Under Fives Association
http://statistics.data.gov.uk/id/local-authority/38,Oxfordshire County Council,SEN TRANSPORT,17/11/2022,4330,Transport to School Activities,3111298329,"-3,750.00",Oxfordshire Travel Ltd
http://statistics.data.gov.uk/id/local-authority/38,Oxfordshire County Council,NURSERY ED FUND,04/11/2022,5537,Payments to Other Establishments,3111280044,"-3,727.08",Kate Adams
http://statistics.data.gov.uk/id/local-authority/38,Oxfordshire County Council,NURSERY ED FUND,04/11/2022,5537,Payments to Other Establishments,3111279902,"-3,727.08",Sibford Gower Endowed Primary Schoo
http://statistics.data.gov.uk/id/local-authority/38,Oxfordshire County Council,CHC Fast Track - Sup at Homes - Over 65,15/11/2022,5691,,3111296962,"-3,711.43",CHRISTIES CARE LTD
http://statistics.data.gov.uk/id/local-authority/38,Oxfordshire County Council,2 YEAR OLD FUNDING,04/11/2022,5537,Payments to Other Establishments,3111279547,"-3,710.70",Banbury School Day Nurse
http://statistics.data.gov.uk/id/local-authority/38,Oxfordshire County Council,2 YEAR OLD FUNDING,04/11/2022,5537,Payments to Other Establishments,3111279571,"-3,710.70",Dalton Pre-School Nurser
http://statistics.data.gov.uk/id/local-authority/38,Oxfordshire County Council,2 YEAR OLD FUNDING,04/11/2022,5537,Payments to Other Establishments,3111279659,"-3,710.70",St Hugh of Lincoln Nursery School
http://statistics.data.gov.uk/id/local-authority/38,Oxfordshire County Council,NURSERY ED FUND,04/11/2022,5537,Payments to Other Establishments,3111279790,"-3,685.32",Harpsden Pre-School Playgroup
http://statistics.data.gov.uk/id/local-authority/38,Oxfordshire County Council,Support at Home 65+ Physical Support,10/11/2022,5686,,3111293979,"-3,614.28",Huntercombe Hall Ltd
http://statistics.data.gov.uk/id/local-authority/38,Oxfordshire County Council,Care Homes - Over 65 Physical Sypport,10/11/2022,5687,,3111291900,"-3,595.80",ACER HEALTHCARE LTD
http://statistics.data.gov.uk/id/local-authority/38,Oxfordshire County Council,Mainstream Res,23/11/2022,5558,,3111301852,"-3,490.00",Acorn Care & Education Ltd
http://statistics.data.gov.uk/id/local-authority/38,Oxfordshire County Council,SEN TRANSPORT,17/11/2022,5227,Other Transport Arrangements,3111298326,"-3,445.50",Oxfordshire Travel Ltd
http://statistics.data.gov.uk/id/local-authority/38,Oxfordshire County Council,2 YEAR OLD FUNDING,04/11/2022,5537,Payments to Other Establishments,3111279681,"-3,435.05",Co-Op Carterton Nursery
http://statistics.data.gov.uk/id/local-authority/38,Oxfordshire County Council,Care Homes - Over 65 Physical Sypport,10/11/2022,5686,,3111295233,"-3,393.04",MARIA MALLABAND CARE GROUP
http://statistics.data.gov.uk/id/local-authority/38,Oxfordshire County Council,Independent Foster,18/11/2022,5559,,3111298643,"-3,382.65",FOSTERPLUS LTD
http://statistics.data.gov.uk/id/local-authority/38,Oxfordshire County Council,NURSERY ED FUND,04/11/2022,5537,Payments to Other Establishments,3111279934,"-3,366.90",Stepping Stones Nursery
http://statistics.data.gov.uk/id/local-authority/38,Oxfordshire County Council,Funded Nursing Care  - Over 65,10/11/2022,5692,,3111293661,"-3,347.04",Godswell Park
http://statistics.data.gov.uk/id/local-authority/38,Oxfordshire County Council,Care Homes - Over 65 Mental Health,10/11/2022,5686,,3111292963,"-3,289.43",Orders of St John
http://statistics.data.gov.uk/id/local-authority/38,Oxfordshire County Council,NURSERY ED FUND,04/11/2022,5537,Payments to Other Establishments,3111280091,"-3,288.60",Sebrina O'Rourke
http://statistics.data.gov.uk/id/local-authority/38,Oxfordshire County Council,LEGAL BUDGET,21/11/2022,5251,Legal Costs,2201051401,"-3,276.00",Forensis Ltd
http://statistics.data.gov.uk/id/local-authority/38,Oxfordshire County Council,COMM DRAWDOWN FUNDNG,25/11/2022,8004,Design Consultant,2201053686,"-3,201.05",Milestone Infrastructure Limited
http://statistics.data.gov.uk/id/local-authority/38,Oxfordshire County Council,Continuing Care - Care Homes - 65+,10/11/2022,5687,,3111293545,"-3,197.14",Freeland House
http://statistics.data.gov.uk/id/local-authority/38,Oxfordshire County Council,SEN TRANSPORT,17/11/2022,5227,Other Transport Arrangements,3111298328,"-3,132.00",Oxfordshire Travel Ltd
http://statistics.data.gov.uk/id/local-authority/38,Oxfordshire County Council,NURSERY ED FUND,04/11/2022,5537,Payments to Other Establishments,3111280112,"-3,069.36",TRACY WOOLDRIDGE
http://statistics.data.gov.uk/id/local-authority/38,Oxfordshire County Council,Funded Nursing Care  - Over 65,10/11/2022,5692,,3111294257,"-3,048.19",Mill House Nursing Home
http://statistics.data.gov.uk/id/local-authority/38,Oxfordshire County Council,LANDLORD & TENANT,01/11/2022,5251,Legal Costs,3111277850,"-3,000.00",OCC One Time Vendor
http://statistics.data.gov.uk/id/local-authority/38,Oxfordshire County Council,Funded Nursing Care  - Over 65,10/11/2022,5692,,3111291889,"-2,988.42",Abbey Crest Nursing Home
http://statistics.data.gov.uk/id/local-authority/38,Oxfordshire County Council,Care Homes - Under 65 Memory & Cognition,10/11/2022,5686,,3111292839,"-2,985.71",CARE UK COMMUNITY PARTNERSHIPS LIMI
http://statistics.data.gov.uk/id/local-authority/38,Oxfordshire County Council,2 YEAR OLD FUNDING,04/11/2022,5537,Payments to Other Establishments,3111279551,"-2,968.56",Broadhill Pre-School
http://statistics.data.gov.uk/id/local-authority/38,Oxfordshire County Council,2 YEAR OLD FUNDING,04/11/2022,5537,Payments to Other Establishments,3111279645,"-2,968.56",Roots for Life Thame
http://statistics.data.gov.uk/id/local-authority/38,Oxfordshire County Council,MAINSTREAM-SECONDARY,17/11/2022,4330,Transport to School Activities,3111298331,"-2,967.00",Chris Gilbert Travel
http://statistics.data.gov.uk/id/local-authority/38,Oxfordshire County Council,Support at Home 65+ Physical Support,08/11/2022,5699,,3111290085,"-2,961.00",PLL Care Services
http://statistics.data.gov.uk/id/local-authority/38,Oxfordshire County Council,LANDLORD & TENANT,22/11/2022,3980,Service Charges - Premises,2201051750,"-2,960.00",Cherwell DC
http://statistics.data.gov.uk/id/local-authority/38,Oxfordshire County Council,LANDLORD & TENANT,22/11/2022,3980,Service Charges - Premises,2201051863,"-2,960.00",Cherwell DC
http://statistics.data.gov.uk/id/local-authority/38,Oxfordshire County Council,LANDLORD & TENANT,23/11/2022,3980,Service Charges - Premises,2201052707,"-2,960.00",Cherwell DC
http://statistics.data.gov.uk/id/local-authority/38,Oxfordshire County Council,LANDLORD & TENANT,23/11/2022,3980,Service Charges - Premises,2201052712,"-2,960.00",Cherwell DC
http://statistics.data.gov.uk/id/local-authority/38,Oxfordshire County Council,NURSERY ED FUND,04/11/2022,5537,Payments to Other Establishments,3111280010,"-2,959.74",Caryn Hornby
http://statistics.data.gov.uk/id/local-authority/38,Oxfordshire County Council,NURSERY ED FUND,04/11/2022,5537,Payments to Other Establishments,3111279780,"-2,959.74",Great Tew Pre-School
http://statistics.data.gov.uk/id/local-authority/38,Oxfordshire County Council,LANDLORD & TENANT,22/11/2022,3980,Service Charges - Premises,2201051752,"-2,927.11",Cherwell DC
http://statistics.data.gov.uk/id/local-authority/38,Oxfordshire County Council,2 YEAR OLD FUNDING,04/11/2022,5537,Payments to Other Establishments,3111279554,"-2,919.08",Burford Pre-School
http://statistics.data.gov.uk/id/local-authority/38,Oxfordshire County Council,NURSERY ED FUND,04/11/2022,5537,Payments to Other Establishments,3111280023,"-2,904.93",Fiona Baughan
http://statistics.data.gov.uk/id/local-authority/38,Oxfordshire County Council,CHC Fast Track - Care Homes - Over 65,10/11/2022,5687,,3111293512,"-2,857.14",Fewcott Healthcare Ltd
http://statistics.data.gov.uk/id/local-authority/38,Oxfordshire County Council,NURSERY ED FUND,04/11/2022,5537,Payments to Other Establishments,3111280084,"-2,850.12",Sally Anne Skellington
http://statistics.data.gov.uk/id/local-authority/38,Oxfordshire County Council,Support at Home 65+ Memory & Cognition,10/11/2022,5686,,3111292146,"-2,835.71",Orders of St John
http://statistics.data.gov.uk/id/local-authority/38,Oxfordshire County Council,2 YEAR OLD FUNDING,04/11/2022,5537,Payments to Other Establishments,3111279564,"-2,820.13",Cholsey Pre-School (PFSU)
http://statistics.data.gov.uk/id/local-authority/38,Oxfordshire County Council,2 YEAR OLD FUNDING,04/11/2022,5537,Payments to Other Establishments,3111279584,"-2,770.66",Grow Learn Play Project CIC
http://statistics.data.gov.uk/id/local-authority/38,Oxfordshire County Council,Care Homes - Over 65 Physical Sypport,10/11/2022,5685,B*Cycle tracks,3111292521,"-2,756.49",Orders of St John
http://statistics.data.gov.uk/id/local-authority/38,Oxfordshire County Council,NURSERY ED FUND,04/11/2022,5537,Payments to Other Establishments,3111279772,"-2,740.50",Finmere Primary School
http://statistics.data.gov.uk/id/local-authority/38,Oxfordshire County Council,NURSERY ED FUND,04/11/2022,5537,Payments to Other Establishments,3111280058,"-2,740.50",Louise Gardner
http://statistics.data.gov.uk/id/local-authority/38,Oxfordshire County Council,NURSERY ED FUND,04/11/2022,5537,Payments to Other Establishments,3111279864,"-2,740.50",ONI Nursery Alpha
http://statistics.data.gov.uk/id/local-authority/38,Oxfordshire County Council,NURSERY ED FUND,04/11/2022,5537,Payments to Other Establishments,3111279975,"-2,740.50",The Village Nursery
http://statistics.data.gov.uk/id/local-authority/38,Oxfordshire County Council,SEN TRANSPORT,02/11/2022,5227,Other Transport Arrangements,3111278690,"-2,735.37",A2B Castle Cars Ltd
http://statistics.data.gov.uk/id/local-authority/38,Oxfordshire County Council,COMMUNITY & ROAD SAFETY,14/11/2022,3103,Other Training Courses and Qualification,2201048887,"-2,700.00",The Bike Academy (South) Ltd
http://statistics.data.gov.uk/id/local-authority/38,Oxfordshire County Council,Funded Nursing Care  - Over 65,10/11/2022,5692,,3111293634,"-2,659.70",LAWTON GROUP LTD
http://statistics.data.gov.uk/id/local-authority/38,Oxfordshire County Council,Support at Home 65+ Physical Support,08/11/2022,5699,,3111289065,"-2,646.00",Calvary Care Ltd
http://statistics.data.gov.uk/id/local-authority/38,Oxfordshire County Council,NURSERY ED FUND,04/11/2022,5537,Payments to Other Establishments,3111279818,"-2,630.88",Krakatoa Pre-School
http://statistics.data.gov.uk/id/local-authority/38,Oxfordshire County Council,2 YEAR OLD FUNDING,04/11/2022,5537,Payments to Other Establishments,3111279557,"-2,629.30",Butterflies Pre-School Didcot CIO
http://statistics.data.gov.uk/id/local-authority/38,Oxfordshire County Council,2 YEAR OLD FUNDING,04/11/2022,5537,Payments to Other Establishments,3111279548,"-2,597.49",Berinsfield Early Years Pre-School
http://statistics.data.gov.uk/id/local-authority/38,Oxfordshire County Council,Support at Home 65+ Physical Support,10/11/2022,5687,,3111292775,"-2,591.12",Grace Care Service Ltd T/A Burford
http://statistics.data.gov.uk/id/local-authority/38,Oxfordshire County Council,TREE MAINT OPS,04/11/2022,5526,Payments to Private Contractors,2201044465,"-2,585.00",Jenks Oxford Ltd
http://statistics.data.gov.uk/id/local-authority/38,Oxfordshire County Council,SEN TRANSPORT,17/11/2022,5227,Other Transport Arrangements,3111298330,"-2,550.00",Oxfordshire Travel Ltd
http://statistics.data.gov.uk/id/local-authority/38,Oxfordshire County Council,Care Homes - Over 65 Memory & Cognition,10/11/2022,5687,,3111294227,"-2,507.14",Middletown Grange Care Home
http://statistics.data.gov.uk/id/local-authority/38,Oxfordshire County Council,Mainstream Res,09/11/2022,5558,,3111290993,"-2,492.86",Acorn Care & Education Ltd
http://statistics.data.gov.uk/id/local-authority/38,Oxfordshire County Council,NURSERY ED FUND,04/11/2022,5537,Payments to Other Establishments,3111279999,"-2,466.45",Wolfson College Day Nurs
http://statistics.data.gov.uk/id/local-authority/38,Oxfordshire County Council,Support at Home 65+ Physical Support,10/11/2022,5686,,3111294627,"-2,428.57",ST ANNES RESIDENTIAL  HOME
http://statistics.data.gov.uk/id/local-authority/38,Oxfordshire County Council,Care Homes - Over 65 Memory & Cognition,10/11/2022,5685,B*Cycle tracks,3111291893,"-2,399.93",ACER HEALTHCARE LTD
http://statistics.data.gov.uk/id/local-authority/38,Oxfordshire County Council,COMMUNITY & ROAD SAFETY,23/11/2022,3103,Other Training Courses and Qualification,2201052405,"-2,385.00",Windrush Bike Project CIC
http://statistics.data.gov.uk/id/local-authority/38,Oxfordshire County Council,POST18 UASC DCSF FND,28/11/2022,5785,Client Lodgings and Accommodation,3111303094,"-2,375.92",Response Organisation
http://statistics.data.gov.uk/id/local-authority/38,Oxfordshire County Council,2 YEAR OLD FUNDING,04/11/2022,5537,Payments to Other Establishments,3111279587,"-2,374.85",Horspath Pre-School Nursery
http://statistics.data.gov.uk/id/local-authority/38,Oxfordshire County Council,Care Homes - Over 65 Physical Sypport,10/11/2022,5686,,3111292845,"-2,361.50",CARE UK COMMUNITY PARTNERSHIPS LIMI
http://statistics.data.gov.uk/id/local-authority/38,Oxfordshire County Council,Continuing Care - Care Homes - 65+,10/11/2022,5687,,3111294031,"-2,342.86",The Julie Richardson Nursing Home
http://statistics.data.gov.uk/id/local-authority/38,Oxfordshire County Council,LD Continuing Care - Sup at Home - U65,16/11/2022,5691,,3111298075,"-2,311.90",THORNBURY NURSING SERVICES
http://statistics.data.gov.uk/id/local-authority/38,Oxfordshire County Council,Independent Foster,04/11/2022,5559,,2201044287,"-2,310.00",Sunbeam Fostering Agency Ltd
http://statistics.data.gov.uk/id/local-authority/38,Oxfordshire County Council,NURSERY ED FUND,04/11/2022,5537,Payments to Other Establishments,3111279958,"-2,302.02",The Little Firefly Outdoor Nursery
http://statistics.data.gov.uk/id/local-authority/38,Oxfordshire County Council,LAC PUPIL PREMIUM,21/11/2022,5537,Payments to Other Establishments,3111298780,"-2,300.00",Meldreth Manor School (Aurora)
http://statistics.data.gov.uk/id/local-authority/38,Oxfordshire County Council,2 YEAR OLD FUNDING,04/11/2022,5537,Payments to Other Establishments,3111279663,"-2,275.90",Stanford in the Vale Pre School
http://statistics.data.gov.uk/id/local-authority/38,Oxfordshire County Council,Care Homes - Over 65 Physical Sypport,10/11/2022,5686,,3111293214,"-2,268.57",Orders of St John
http://statistics.data.gov.uk/id/local-authority/38,Oxfordshire County Council,Support at Home 65+ Physical Support,10/11/2022,5686,,3111293200,"-2,268.57",OSJ Contract - Stirlings
http://statistics.data.gov.uk/id/local-authority/38,Oxfordshire County Council,CAP CHRGES-PRIM SCHS,10/11/2022,8102,Payments to main contractor,2201046380,"-2,250.00",Stantec UK Limited
http://statistics.data.gov.uk/id/local-authority/38,Oxfordshire County Council,COMMUNITY & ROAD SAFETY,15/11/2022,3103,Other Training Courses and Qualification,2201049522,"-2,250.00",The Bike Academy (South) Ltd
http://statistics.data.gov.uk/id/local-authority/38,Oxfordshire County Council,2 YEAR OLD FUNDING,04/11/2022,5537,Payments to Other Establishments,3111279542,"-2,226.42",Abingdon Kindergarten (Loyd Close)
http://statistics.data.gov.uk/id/local-authority/38,Oxfordshire County Council,2 YEAR OLD FUNDING,04/11/2022,5537,Payments to Other Establishments,3111279683,"-2,226.42",Co-op Blackbird Leys Nursery
http://statistics.data.gov.uk/id/local-authority/38,Oxfordshire County Council,2 YEAR OLD FUNDING,04/11/2022,5537,Payments to Other Establishments,3111279605,"-2,226.42",Ladygrove Day Nursery and Nursery S
http://statistics.data.gov.uk/id/local-authority/38,Oxfordshire County Council,2 YEAR OLD FUNDING,04/11/2022,5537,Payments to Other Establishments,3111279627,"-2,226.42",North Hinksey Pre School & Childcar
http://statistics.data.gov.uk/id/local-authority/38,Oxfordshire County Council,2 YEAR OLD FUNDING,04/11/2022,5537,Payments to Other Establishments,3111279651,"-2,226.42",Sonning Common Pre-School
http://statistics.data.gov.uk/id/local-authority/38,Oxfordshire County Council,2 YEAR OLD FUNDING,04/11/2022,5537,Payments to Other Establishments,3111279657,"-2,226.42",Southmoor Pre-school CIO
http://statistics.data.gov.uk/id/local-authority/38,Oxfordshire County Council,NURSERY ED FUND,04/11/2022,5537,Payments to Other Establishments,3111280029,"-2,192.40",Hayley Murdoch
http://statistics.data.gov.uk/id/local-authority/38,Oxfordshire County Council,NURSERY ED FUND,04/11/2022,5537,Payments to Other Establishments,3111280114,"-2,192.40",Jane Philpott
http://statistics.data.gov.uk/id/local-authority/38,Oxfordshire County Council,NURSERY ED FUND,04/11/2022,5537,Payments to Other Establishments,3111279807,"-2,192.40",Kennington Playgroup
http://statistics.data.gov.uk/id/local-authority/38,Oxfordshire County Council,NURSERY ED FUND,04/11/2022,5537,Payments to Other Establishments,3111279824,"-2,192.40",Ladygrove Park Primary School
http://statistics.data.gov.uk/id/local-authority/38,Oxfordshire County Council,NURSERY ED FUND,04/11/2022,5537,Payments to Other Establishments,3111280064,"-2,192.40",Michelle Jenkins
http://statistics.data.gov.uk/id/local-authority/38,Oxfordshire County Council,NURSERY ED FUND,04/11/2022,5537,Payments to Other Establishments,3111280078,"-2,192.40",Rachel Heskey
http://statistics.data.gov.uk/id/local-authority/38,Oxfordshire County Council,NURSERY ED FUND,04/11/2022,5537,Payments to Other Establishments,3111280087,"-2,192.40",Samantha Kilbee
http://statistics.data.gov.uk/id/local-authority/38,Oxfordshire County Council,NURSERY ED FUND,04/11/2022,5537,Payments to Other Establishments,3111279969,"-2,192.40",The Oxford Nursery (Eynsham)
http://statistics.data.gov.uk/id/local-authority/38,Oxfordshire County Council,NURSERY ED FUND,04/11/2022,5537,Payments to Other Establishments,3111280100,"-2,192.40",Theresa Lamble
http://statistics.data.gov.uk/id/local-authority/38,Oxfordshire County Council,NURSERY ED FUND,04/11/2022,5537,Payments to Other Establishments,3111280102,"-2,192.40",Tracey Hanwell
http://statistics.data.gov.uk/id/local-authority/38,Oxfordshire County Council,SEN TRANSPORT,17/11/2022,4330,Transport to School Activities,3111298332,"-2,190.00",Airport Transfers Banbury Ltd
http://statistics.data.gov.uk/id/local-authority/38,Oxfordshire County Council,SEN TRANSPORT,09/11/2022,4330,Transport to School Activities,3111290265,"-2,181.30",OMC GLOBAL LIMITED
http://statistics.data.gov.uk/id/local-authority/38,Oxfordshire County Council,Support at Home 65+ Physical Support,10/11/2022,5686,,3111293157,"-2,155.14",Orders of St John
http://statistics.data.gov.uk/id/local-authority/38,Oxfordshire County Council,2 YEAR OLD FUNDING,04/11/2022,5537,Payments to Other Establishments,3111279685,"-2,152.21",Co-Op JR Nursery
http://statistics.data.gov.uk/id/local-authority/38,Oxfordshire County Council,2 YEAR OLD FUNDING,04/11/2022,5537,Payments to Other Establishments,3111279589,"-2,120.40",Impact Montessori Nursery
http://statistics.data.gov.uk/id/local-authority/38,Oxfordshire County Council,Care Homes - Over 65 Memory & Cognition,10/11/2022,5686,,3111293488,"-2,100.62",Ferendune Court (Anchor Trust)
http://statistics.data.gov.uk/id/local-authority/38,Oxfordshire County Council,Care Homes - Over 65 Physical Sypport,10/11/2022,5686,,3111294291,"-2,100.62",Mon Choisy
http://statistics.data.gov.uk/id/local-authority/38,Oxfordshire County Council,Care Homes - Over 65 Memory & Cognition,10/11/2022,5686,,3111294320,"-2,085.17",Newland House
http://statistics.data.gov.uk/id/local-authority/38,Oxfordshire County Council,2 YEAR OLD FUNDING,04/11/2022,5537,Payments to Other Establishments,3111279583,"-2,077.99",Grovelands Park Pre-School
http://statistics.data.gov.uk/id/local-authority/38,Oxfordshire County Council,2 YEAR OLD FUNDING,04/11/2022,5537,Payments to Other Establishments,3111279558,"-2,053.25",Camel Pre-School (PFSU)
http://statistics.data.gov.uk/id/local-authority/38,Oxfordshire County Council,2 YEAR OLD FUNDING,04/11/2022,5537,Payments to Other Establishments,3111279643,"-1,979.04",Rockwell House Day Nursery & Sch
http://statistics.data.gov.uk/id/local-authority/38,Oxfordshire County Council,2 YEAR OLD FUNDING,08/11/2022,5537,Payments to Other Establishments,3111284526,"-1,967.70",Lucy Bourne
http://statistics.data.gov.uk/id/local-authority/38,Oxfordshire County Council,Support at Home 65+ Physical Support,10/11/2022,5686,,3111292106,"-1,928.29",Orders of St John
http://statistics.data.gov.uk/id/local-authority/38,Oxfordshire County Council,2 YEAR OLD FUNDING,04/11/2022,5537,Payments to Other Establishments,3111279550,"-1,908.36",Bright Start Pre-school
http://statistics.data.gov.uk/id/local-authority/38,Oxfordshire County Council,2 YEAR OLD FUNDING,04/11/2022,5537,Payments to Other Establishments,3111279667,"-1,908.36",Summertown Montessori Nursery
http://statistics.data.gov.uk/id/local-authority/38,Oxfordshire County Council,LAC PUPIL PREMIUM,21/11/2022,5537,Payments to Other Establishments,3111298781,"-1,900.00",Meldreth Manor School (Aurora)
http://statistics.data.gov.uk/id/local-authority/38,Oxfordshire County Council,Support at Home 65+ Physical Support,10/11/2022,5686,,3111293465,"-1,864.29",Enstone House
http://statistics.data.gov.uk/id/local-authority/38,Oxfordshire County Council,LAC PUPIL PREMIUM,21/11/2022,5537,Payments to Other Establishments,3111298782,"-1,855.00",Meldreth Manor School (Aurora)
http://statistics.data.gov.uk/id/local-authority/38,Oxfordshire County Council,Care Homes - Over 65 Physical Sypport,10/11/2022,5686,,3111292436,"-1,848.86",Orders of St John
http://statistics.data.gov.uk/id/local-authority/38,Oxfordshire County Council,Care Homes - Over 65 Physical Sypport,10/11/2022,5686,,3111291999,"-1,834.18",Acacia Lodge Care Home
http://statistics.data.gov.uk/id/local-authority/38,Oxfordshire County Council,Funded Nursing Care  - Over 65,10/11/2022,5692,,3111293665,"-1,822.94",Godswell Park
http://statistics.data.gov.uk/id/local-authority/38,Oxfordshire County Council,Funded Nursing Care  - Over 65,10/11/2022,5692,,3111294140,"-1,822.94",Lincroft Meadow
http://statistics.data.gov.uk/id/local-authority/38,Oxfordshire County Council,Care Homes - Over 65 Physical Sypport,10/11/2022,5687,,3111292238,"-1,815.99",Orders of St John
http://statistics.data.gov.uk/id/local-authority/38,Oxfordshire County Council,Care Homes - Over 65 Physical Sypport,10/11/2022,5686,,3111292357,"-1,814.86",Orders of St John
http://statistics.data.gov.uk/id/local-authority/38,Oxfordshire County Council,2 YEAR OLD FUNDING,04/11/2022,5537,Payments to Other Establishments,3111279691,"-1,781.14",The Montessori Nursery S
http://statistics.data.gov.uk/id/local-authority/38,Oxfordshire County Council,NURSERY ED FUND,04/11/2022,5537,Payments to Other Establishments,3111279926,"-1,761.75","St Pauls Nursery, Somerville"
http://statistics.data.gov.uk/id/local-authority/38,Oxfordshire County Council,Delegated Health Tasks  - Over 65,17/11/2022,5691,,3111298334,"-1,755.00",MIHOMECARE LIMITED
http://statistics.data.gov.uk/id/local-authority/38,Oxfordshire County Council,NURSERY ED FUND,04/11/2022,5537,Payments to Other Establishments,3111280105,"-1,753.92",Victoria Bishop
http://statistics.data.gov.uk/id/local-authority/38,Oxfordshire County Council,NURSERY ED FUND,04/11/2022,5537,Payments to Other Establishments,3111280111,"-1,753.92",Zoe Osunde
http://statistics.data.gov.uk/id/local-authority/38,Oxfordshire County Council,SEN Alternative Provision,10/11/2022,4861,Hired and Contracted Services,2201046373,"-1,705.00",Deddington CE Primary School
http://statistics.data.gov.uk/id/local-authority/38,Oxfordshire County Council,NURSERY ED FUND,04/11/2022,5537,Payments to Other Establishments,3111280106,"-1,699.11",Victoria Littlejohn
http://statistics.data.gov.uk/id/local-authority/38,Oxfordshire County Council,Support at Home U65 Learning Disability,08/11/2022,5682,,3111288712,"-1,694.91",The Brandon Trust
http://statistics.data.gov.uk/id/local-authority/38,Oxfordshire County Council,NURSERY ED FUND,04/11/2022,5537,Payments to Other Establishments,3111280027,"-1,680.84",Hannah Faure
http://statistics.data.gov.uk/id/local-authority/38,Oxfordshire County Council,Care Homes - Over 65 Memory & Cognition,10/11/2022,5686,,3111294629,"-1,673.29",ST ANNES RESIDENTIAL  HOME
http://statistics.data.gov.uk/id/local-authority/38,Oxfordshire County Council,NURSERY ED FUND,04/11/2022,5537,Payments to Other Establishments,3111280018,"-1,644.30",Deborah Taylor
http://statistics.data.gov.uk/id/local-authority/38,Oxfordshire County Council,NURSERY ED FUND,04/11/2022,5537,Payments to Other Establishments,3111280046,"-1,644.30",Katie McKechnie
http://statistics.data.gov.uk/id/local-authority/38,Oxfordshire County Council,NURSERY ED FUND,04/11/2022,5537,Payments to Other Establishments,3111280047,"-1,644.30",Katie Woodhouse
http://statistics.data.gov.uk/id/local-authority/38,Oxfordshire County Council,NURSERY ED FUND,04/11/2022,5537,Payments to Other Establishments,3111280050,"-1,644.30",Laura Allard
http://statistics.data.gov.uk/id/local-authority/38,Oxfordshire County Council,NURSERY ED FUND,04/11/2022,5537,Payments to Other Establishments,3111280080,"-1,644.30",Rachel Whitmore
http://statistics.data.gov.uk/id/local-authority/38,Oxfordshire County Council,NURSERY ED FUND,04/11/2022,5537,Payments to Other Establishments,3111279912,"-1,644.30",St Annes College Day Nursery
http://statistics.data.gov.uk/id/local-authority/38,Oxfordshire County Council,NURSERY ED FUND,04/11/2022,5537,Payments to Other Establishments,3111280096,"-1,644.30",Stephanie Allen
http://statistics.data.gov.uk/id/local-authority/38,Oxfordshire County Council,NURSERY ED FUND,04/11/2022,5537,Payments to Other Establishments,3111280101,"-1,644.30",Tina Farmer
http://statistics.data.gov.uk/id/local-authority/38,Oxfordshire County Council,2 YEAR OLD FUNDING,04/11/2022,5537,Payments to Other Establishments,3111279604,"-1,632.71",Ladybird Pre-School
http://statistics.data.gov.uk/id/local-authority/38,Oxfordshire County Council,Support at Home U65 Learning Disability,10/11/2022,5690,,3111291557,"-1,615.68",MacIntyre Care (Womaston)
http://statistics.data.gov.uk/id/local-authority/38,Oxfordshire County Council,NURSERY ED FUND,04/11/2022,5537,Payments to Other Establishments,3111280035,"-1,607.76",Jade Bamford
http://statistics.data.gov.uk/id/local-authority/38,Oxfordshire County Council,Care Homes - Over 65 Memory & Cognition,10/11/2022,5686,,3111294084,"-1,600.00",Leafield Rest Home
http://statistics.data.gov.uk/id/local-authority/38,Oxfordshire County Council,2 YEAR OLD FUNDING,04/11/2022,5537,Payments to Other Establishments,3111279608,"-1,590.30",Little Acorns Pre-school Kingsmere
http://statistics.data.gov.uk/id/local-authority/38,Oxfordshire County Council,Support at Home 65+ Memory & Cognition,10/11/2022,5686,,3111293312,"-1,588.00",Orders of St John
http://statistics.data.gov.uk/id/local-authority/38,Oxfordshire County Council,NURSERY ED FUND,04/11/2022,5537,Payments to Other Establishments,3111280070,"-1,563.39",Nicola Broome
http://statistics.data.gov.uk/id/local-authority/38,Oxfordshire County Council,Healthy Place Shaping,17/11/2022,4940,Other Services,2201050528,"-1,537.40",OXFORD BROOKES UNIVERSITY
http://statistics.data.gov.uk/id/local-authority/38,Oxfordshire County Council,SEN TRANSPORT,14/11/2022,4330,Transport to School Activities,3111296930,"-1,494.00",D�Arrive Ltd
http://statistics.data.gov.uk/id/local-authority/38,Oxfordshire County Council,PSYCHOLOGY SERVICE,24/11/2022,4539,"Books, DVDs and CDs",2201053166,"-1,487.75",Pearson Assessment
http://statistics.data.gov.uk/id/local-authority/38,Oxfordshire County Council,2 YEAR OLD FUNDING,04/11/2022,5537,Payments to Other Establishments,3111279556,"-1,484.28",Busy Bees at Oxford
http://statistics.data.gov.uk/id/local-authority/38,Oxfordshire County Council,2 YEAR OLD FUNDING,04/11/2022,5537,Payments to Other Establishments,3111279679,"-1,484.28",Cabin Pre-School
http://statistics.data.gov.uk/id/local-authority/38,Oxfordshire County Council,2 YEAR OLD FUNDING,04/11/2022,5537,Payments to Other Establishments,3111279586,"-1,484.28",Hook Norton Pre-School Playgroup
http://statistics.data.gov.uk/id/local-authority/38,Oxfordshire County Council,2 YEAR OLD FUNDING,04/11/2022,5537,Payments to Other Establishments,3111279596,"-1,484.28",Julia Durbin Day Nursery
http://statistics.data.gov.uk/id/local-authority/38,Oxfordshire County Council,2 YEAR OLD FUNDING,04/11/2022,5537,Payments to Other Establishments,3111279599,"-1,484.28",Kerry Wilkins
http://statistics.data.gov.uk/id/local-authority/38,Oxfordshire County Council,2 YEAR OLD FUNDING,04/11/2022,5537,Payments to Other Establishments,3111279607,"-1,484.28",Lauren Gladden-Eaves
http://statistics.data.gov.uk/id/local-authority/38,Oxfordshire County Council,2 YEAR OLD FUNDING,04/11/2022,5537,Payments to Other Establishments,3111279615,"-1,484.28",Long Wittenham Pre-School
http://statistics.data.gov.uk/id/local-authority/38,Oxfordshire County Council,2 YEAR OLD FUNDING,14/11/2022,5537,Payments to Other Establishments,3111296694,"-1,484.28",Louisa Marley
http://statistics.data.gov.uk/id/local-authority/38,Oxfordshire County Council,2 YEAR OLD FUNDING,04/11/2022,5537,Payments to Other Establishments,3111279623,"-1,484.28",Natalie Took
http://statistics.data.gov.uk/id/local-authority/38,Oxfordshire County Council,2 YEAR OLD FUNDING,04/11/2022,5537,Payments to Other Establishments,3111279669,"-1,484.28",Sunrise Nursery
http://statistics.data.gov.uk/id/local-authority/38,Oxfordshire County Council,2 YEAR OLD FUNDING,04/11/2022,5537,Payments to Other Establishments,3111279677,"-1,484.28",The Aunties' Old School Nursery
http://statistics.data.gov.uk/id/local-authority/38,Oxfordshire County Council,2 YEAR OLD FUNDING,04/11/2022,5537,Payments to Other Establishments,3111279699,"-1,484.28",Tracey Hedges Childcare
http://statistics.data.gov.uk/id/local-authority/38,Oxfordshire County Council,2 YEAR OLD FUNDING,04/11/2022,5537,Payments to Other Establishments,3111279703,"-1,484.28",Victoria Hopkins
http://statistics.data.gov.uk/id/local-authority/38,Oxfordshire County Council,2 YEAR OLD FUNDING,04/11/2022,5537,Payments to Other Establishments,3111279713,"-1,484.28",Witney Community Primary Nursery
http://statistics.data.gov.uk/id/local-authority/38,Oxfordshire County Council,Funded Nursing Care  - Over 65,10/11/2022,5692,,3111294381,"-1,464.33",Oxford Beaumont
http://statistics.data.gov.uk/id/local-authority/38,Oxfordshire County Council,NURSERY ED FUND,04/11/2022,5537,Payments to Other Establishments,3111280007,"-1,425.06",Camilla Collins
http://statistics.data.gov.uk/id/local-authority/38,Oxfordshire County Council,NURSERY ED FUND,04/11/2022,5537,Payments to Other Establishments,3111280042,"-1,425.06",Karen Lella
http://statistics.data.gov.uk/id/local-authority/38,Oxfordshire County Council,NURSERY ED FUND,04/11/2022,5537,Payments to Other Establishments,3111280081,"-1,425.06",Rebecca Sandwell
http://statistics.data.gov.uk/id/local-authority/38,Oxfordshire County Council,CONTRACEPTION,08/11/2022,4933,,3111296462,"-1,409.00",Principal Medical Ltd
http://statistics.data.gov.uk/id/local-authority/38,Oxfordshire County Council,PMO,16/11/2022,5051,Provision of Courses,2201049822,"-1,407.25",ILX GROUP PLC
http://statistics.data.gov.uk/id/local-authority/38,Oxfordshire County Council,PMO,16/11/2022,5051,Provision of Courses,2201049826,"-1,407.25",ILX GROUP PLC
http://statistics.data.gov.uk/id/local-authority/38,Oxfordshire County Council,2 YEAR OLD FUNDING,04/11/2022,5537,Payments to Other Establishments,3111279590,"-1,378.26",Jack and Jill Pre School
http://statistics.data.gov.uk/id/local-authority/38,Oxfordshire County Council,Care Homes - Over 65 Memory & Cognition,10/11/2022,5686,,3111292744,"-1,361.14",Orders of St John
http://statistics.data.gov.uk/id/local-authority/38,Oxfordshire County Council,COMMUNITY & ROAD SAFETY,10/11/2022,3103,Other Training Courses and Qualification,2201046095,"-1,350.00",Windrush Bike Project CIC
http://statistics.data.gov.uk/id/local-authority/38,Oxfordshire County Council,2 YEAR OLD FUNDING,04/11/2022,5537,Payments to Other Establishments,3111279560,"-1,335.85",Charlbury Pre-School
http://statistics.data.gov.uk/id/local-authority/38,Oxfordshire County Council,Care Homes - Over 65 Physical Sypport,10/11/2022,5686,,3111293159,"-1,335.29",Orders of St John
http://statistics.data.gov.uk/id/local-authority/38,Oxfordshire County Council,ELEC NPR ST LTG,16/11/2022,5526,Payments to Private Contractors,2201049961,"-1,324.70",VolkerHighways
http://statistics.data.gov.uk/id/local-authority/38,Oxfordshire County Council,NURSERY ED FUND,04/11/2022,5537,Payments to Other Establishments,3111280110,"-1,315.44",Zoe Heaton
http://statistics.data.gov.uk/id/local-authority/38,Oxfordshire County Council,Care Homes - Over 65 Physical Sypport,10/11/2022,5687,,3111291960,"-1,304.40",ACER HEALTHCARE LTD
http://statistics.data.gov.uk/id/local-authority/38,Oxfordshire County Council,ALTERNATIVES TO CARE,17/11/2022,2040,Agency Staff,2201050432,"-1,290.31",THORNBURY NURSING SERVICES
http://statistics.data.gov.uk/id/local-authority/38,Oxfordshire County Council,SEN TRANSPORT,14/11/2022,4330,Transport to School Activities,3111296929,"-1,274.00",D�Arrive Ltd
http://statistics.data.gov.uk/id/local-authority/38,Oxfordshire County Council,Independent Foster,17/11/2022,5559,,3111298220,"-1,270.50",Foster Care Associates Limited
http://statistics.data.gov.uk/id/local-authority/38,Oxfordshire County Council,NURSERY ED FUND,04/11/2022,5537,Payments to Other Establishments,3111279891,"-1,252.80",Rose Hill Pre-School
http://statistics.data.gov.uk/id/local-authority/38,Oxfordshire County Council,LD Continuing Care - Sup at Home - U65,24/11/2022,5691,,3111302356,"-1,252.50",Paterson Recruitment
http://statistics.data.gov.uk/id/local-authority/38,Oxfordshire County Council,MAINSTREAM-PRIMARY,14/11/2022,4330,Transport to School Activities,3111296931,"-1,248.00",D�Arrive Ltd
http://statistics.data.gov.uk/id/local-authority/38,Oxfordshire County Council,Care Homes - Over 65 Physical Sypport,10/11/2022,5686,,3111292411,"-1,247.72",Orders of St John
http://statistics.data.gov.uk/id/local-authority/38,Oxfordshire County Council,Care Homes - Over 65 Mental Health,10/11/2022,5686,,3111292513,"-1,247.71",Orders of St John
http://statistics.data.gov.uk/id/local-authority/38,Oxfordshire County Council,Care Homes - Over 65 Physical Sypport,10/11/2022,5686,,3111292724,"-1,247.71",Orders of St John
http://statistics.data.gov.uk/id/local-authority/38,Oxfordshire County Council,2 YEAR OLD FUNDING,09/11/2022,5537,Payments to Other Establishments,3111290845,"-1,236.90",Dalton Pre-School Nurser
http://statistics.data.gov.uk/id/local-authority/38,Oxfordshire County Council,2 YEAR OLD FUNDING,04/11/2022,5537,Payments to Other Establishments,3111279598,"-1,236.90",Karen Hynds
http://statistics.data.gov.uk/id/local-authority/38,Oxfordshire County Council,NURSERY ED FUND,04/11/2022,5537,Payments to Other Establishments,3111280014,"-1,224.09",Claire Dow
http://statistics.data.gov.uk/id/local-authority/38,Oxfordshire County Council,Funded Nursing Care  - Over 65,10/11/2022,5692,,3111295055,"-1,195.37",The Triangle Nursing Home
http://statistics.data.gov.uk/id/local-authority/38,Oxfordshire County Council,2 YEAR OLD FUNDING,04/11/2022,5537,Payments to Other Establishments,3111279544,"-1,187.42",Ascott-under-Wychwood Pre-School
http://statistics.data.gov.uk/id/local-authority/38,Oxfordshire County Council,2 YEAR OLD FUNDING,09/11/2022,5537,Payments to Other Establishments,3111290814,"-1,180.64",Lucy Bourne
http://statistics.data.gov.uk/id/local-authority/38,Oxfordshire County Council,NURSERY ED FUND,09/11/2022,5537,Payments to Other Establishments,3111290828,"-1,174.50",Ladybird Pre-School Limited
http://statistics.data.gov.uk/id/local-authority/38,Oxfordshire County Council,Procurement Rebates & Income,21/11/2022,7203,Other Miscellaneous Income,3111299230,"-1,156.30",BARCHESTER HEALTHCARE LTD
http://statistics.data.gov.uk/id/local-authority/38,Oxfordshire County Council,2 YEAR OLD FUNDING,04/11/2022,5537,Payments to Other Establishments,3111279715,"-1,145.02",Woodstock Under Fives Association
http://statistics.data.gov.uk/id/local-authority/38,Oxfordshire County Council,Support at Home 65+ Physical Support,08/11/2022,5699,,3111290026,"-1,136.52",PLL Care Services
http://statistics.data.gov.uk/id/local-authority/38,Oxfordshire County Council,Funded Nursing Care  - Over 65,10/11/2022,5692,,3111292952,"-1,135.60",Chacombe Park Care Home
http://statistics.data.gov.uk/id/local-authority/38,Oxfordshire County Council,NURSERY ED FUND,04/11/2022,5537,Payments to Other Establishments,3111280025,"-1,132.74",Gemma Westlake
http://statistics.data.gov.uk/id/local-authority/38,Oxfordshire County Council,POST 16 SEN,24/11/2022,4330,Transport to School Activities,3111302187,"-1,117.18",Redacted Personal Data
http://statistics.data.gov.uk/id/local-authority/38,Oxfordshire County Council,NURSERY ED FUND,04/11/2022,5537,Payments to Other Establishments,3111280005,"-1,096.20",Anna Fraser
http://statistics.data.gov.uk/id/local-authority/38,Oxfordshire County Council,NURSERY ED FUND,04/11/2022,5537,Payments to Other Establishments,3111280008,"-1,096.20",Carole Hickman
http://statistics.data.gov.uk/id/local-authority/38,Oxfordshire County Council,NURSERY ED FUND,04/11/2022,5537,Payments to Other Establishments,3111280009,"-1,096.20",Carrole Forde
http://statistics.data.gov.uk/id/local-authority/38,Oxfordshire County Council,NURSERY ED FUND,04/11/2022,5537,Payments to Other Establishments,3111280021,"-1,096.20",Donna Slack
http://statistics.data.gov.uk/id/local-authority/38,Oxfordshire County Council,NURSERY ED FUND,04/11/2022,5537,Payments to Other Establishments,3111280038,"-1,096.20",Jolandi Hester
http://statistics.data.gov.uk/id/local-authority/38,Oxfordshire County Council,NURSERY ED FUND,04/11/2022,5537,Payments to Other Establishments,3111280048,"-1,096.20",Kerry Lydiate
http://statistics.data.gov.uk/id/local-authority/38,Oxfordshire County Council,NURSERY ED FUND,04/11/2022,5537,Payments to Other Establishments,3111280051,"-1,096.20",Laura Dix
http://statistics.data.gov.uk/id/local-authority/38,Oxfordshire County Council,NURSERY ED FUND,04/11/2022,5537,Payments to Other Establishments,3111280053,"-1,096.20",Leah Kernan
http://statistics.data.gov.uk/id/local-authority/38,Oxfordshire County Council,NURSERY ED FUND,04/11/2022,5537,Payments to Other Establishments,3111280059,"-1,096.20",Madelein van Helsdingen
http://statistics.data.gov.uk/id/local-authority/38,Oxfordshire County Council,NURSERY ED FUND,04/11/2022,5537,Payments to Other Establishments,3111280061,"-1,096.20",Maureen Sim
http://statistics.data.gov.uk/id/local-authority/38,Oxfordshire County Council,NURSERY ED FUND,04/11/2022,5537,Payments to Other Establishments,3111280066,"-1,096.20",Nadine Gager
http://statistics.data.gov.uk/id/local-authority/38,Oxfordshire County Council,NURSERY ED FUND,04/11/2022,5537,Payments to Other Establishments,3111280077,"-1,096.20",Rachael Shaer
http://statistics.data.gov.uk/id/local-authority/38,Oxfordshire County Council,NURSERY ED FUND,04/11/2022,5537,Payments to Other Establishments,3111280089,"-1,096.20",Sarah Peterson
http://statistics.data.gov.uk/id/local-authority/38,Oxfordshire County Council,NURSERY ED FUND,04/11/2022,5537,Payments to Other Establishments,3111280094,"-1,096.20",Sophie Blizzard
http://statistics.data.gov.uk/id/local-authority/38,Oxfordshire County Council,NURSERY ED FUND,04/11/2022,5537,Payments to Other Establishments,3111280098,"-1,096.20",Susan Neal
http://statistics.data.gov.uk/id/local-authority/38,Oxfordshire County Council,NURSERY ED FUND,04/11/2022,5537,Payments to Other Establishments,3111280056,"-1,070.10",Lisa Hamilton
http://statistics.data.gov.uk/id/local-authority/38,Oxfordshire County Council,Funded Nursing Care  - Over 65,03/11/2022,5692,,3111279191,"-1,062.04",LAWTON GROUP LTD
http://statistics.data.gov.uk/id/local-authority/38,Oxfordshire County Council,NURSERY ED FUND,04/11/2022,5537,Payments to Other Establishments,3111280013,"-1,059.66",Little Sky Childminding
http://statistics.data.gov.uk/id/local-authority/38,Oxfordshire County Council,YPSH Int Prop Management,28/11/2022,5785,Client Lodgings and Accommodation,3111303062,"-1,034.63",Response Organisation
http://statistics.data.gov.uk/id/local-authority/38,Oxfordshire County Council,SEN TRANSPORT,07/11/2022,4330,Transport to School Activities,3111280275,"-1,033.78",The Oxfordshire Taxi Company Ltd T/
http://statistics.data.gov.uk/id/local-authority/38,Oxfordshire County Council,NURSERY ED FUND,04/11/2022,5537,Payments to Other Establishments,3111280060,"-1,023.12",Marisa Corcoran
http://statistics.data.gov.uk/id/local-authority/38,Oxfordshire County Council,NURSERY ED FUND,04/11/2022,5537,Payments to Other Establishments,3111280071,"-1,023.12",Nicola Henshaw
http://statistics.data.gov.uk/id/local-authority/38,Oxfordshire County Council,NURSERY ED FUND,04/11/2022,5537,Payments to Other Establishments,3111280006,"-1,017.90",Anna-Marie Bennett
http://statistics.data.gov.uk/id/local-authority/38,Oxfordshire County Council,Funded Nursing Care  - Over 65,10/11/2022,5692,,3111293633,"-1,016.06",LAWTON GROUP LTD
http://statistics.data.gov.uk/id/local-authority/38,Oxfordshire County Council,Support at Home U65 Physical Support,18/11/2022,5227,Other Transport Arrangements,3111298648,"-1,004.80",Excelsior Taxis Ltd
http://statistics.data.gov.uk/id/local-authority/38,Oxfordshire County Council,Support at Home U65 Learning Disability,18/11/2022,5227,Other Transport Arrangements,3111298649,"-1,004.80",Excelsior Taxis Ltd
http://statistics.data.gov.uk/id/local-authority/38,Oxfordshire County Council,NURSERY ED FUND,04/11/2022,5537,Payments to Other Establishments,3111280019,-986.58,Donna Mercer
http://statistics.data.gov.uk/id/local-authority/38,Oxfordshire County Council,NURSERY ED FUND,04/11/2022,5537,Payments to Other Establishments,3111280030,-986.58,Helen Burridge
http://statistics.data.gov.uk/id/local-authority/38,Oxfordshire County Council,Support at Home 65+ Physical Support,08/11/2022,5699,,3111289057,-957.60,All Care GB Ltd
http://statistics.data.gov.uk/id/local-authority/38,Oxfordshire County Council,NURSERY ED FUND,04/11/2022,5537,Payments to Other Establishments,3111280015,-950.04,Clare Davis
http://statistics.data.gov.uk/id/local-authority/38,Oxfordshire County Council,NURSERY ED FUND,04/11/2022,5537,Payments to Other Establishments,3111280020,-950.04,Donna Mulligan
http://statistics.data.gov.uk/id/local-authority/38,Oxfordshire County Council,Support at Home 65+ Physical Support,08/11/2022,5699,,3111290149,-932.40,YOD Ltd
http://statistics.data.gov.uk/id/local-authority/38,Oxfordshire County Council,Care Homes - Over 65 Physical Sypport,10/11/2022,5687,,3111292866,-928.57,CARE UK COMMUNITY PARTNERSHIPS LIMI
http://statistics.data.gov.uk/id/local-authority/38,Oxfordshire County Council,NURSERY ED FUND,09/11/2022,5537,Payments to Other Establishments,3111290842,-913.50,Southwold Primary School Academy
http://statistics.data.gov.uk/id/local-authority/38,Oxfordshire County Council,Care Homes - Over 65 Mental Health,10/11/2022,5687,,3111292763,-906.27,Grace Care Service Ltd T/A Burford
http://statistics.data.gov.uk/id/local-authority/38,Oxfordshire County Council,NURSERY ED FUND,04/11/2022,5537,Payments to Other Establishments,3111280012,-905.67,Charlotte Saxby
http://statistics.data.gov.uk/id/local-authority/38,Oxfordshire County Council,2 YEAR OLD FUNDING,09/11/2022,5537,Payments to Other Establishments,3111290830,-883.50,Millbrook Primary School
http://statistics.data.gov.uk/id/local-authority/38,Oxfordshire County Council,LANDLORD & TENANT,11/11/2022,8510,Other expenses,2201046717,-873.45,Falcon Signs
http://statistics.data.gov.uk/id/local-authority/38,Oxfordshire County Council,NURSERY ED FUND,04/11/2022,5537,Payments to Other Establishments,3111280017,-803.88,Cordelia McInerney
http://statistics.data.gov.uk/id/local-authority/38,Oxfordshire County Council,NURSERY ED FUND,04/11/2022,5537,Payments to Other Establishments,3111280026,-803.88,Gillian Wright
http://statistics.data.gov.uk/id/local-authority/38,Oxfordshire County Council,RBWM Adoption Support Fund,17/11/2022,4861,Hired and Contracted Services,2201050437,-800.00,Charlotte Davis
http://statistics.data.gov.uk/id/local-authority/38,Oxfordshire County Council,Funded Nursing Care  - Over 65,10/11/2022,5692,,3111291866,-776.99,Abbey Crest Nursing Home
http://statistics.data.gov.uk/id/local-authority/38,Oxfordshire County Council,2 YEAR OLD FUNDING,04/11/2022,5537,Payments to Other Establishments,3111279545,-742.14,Badgemore Preschool
http://statistics.data.gov.uk/id/local-authority/38,Oxfordshire County Council,2 YEAR OLD FUNDING,04/11/2022,5537,Payments to Other Establishments,3111279546,-742.14,Bampton CofE School
http://statistics.data.gov.uk/id/local-authority/38,Oxfordshire County Council,2 YEAR OLD FUNDING,04/11/2022,5537,Payments to Other Establishments,3111279639,-742.14,Becky's Childminding Services
http://statistics.data.gov.uk/id/local-authority/38,Oxfordshire County Council,2 YEAR OLD FUNDING,04/11/2022,5537,Payments to Other Establishments,3111279553,-742.14,Buds That Blossom
http://statistics.data.gov.uk/id/local-authority/38,Oxfordshire County Council,2 YEAR OLD FUNDING,04/11/2022,5537,Payments to Other Establishments,3111279555,-742.14,Busy Bees Bicester Kingsmere
http://statistics.data.gov.uk/id/local-authority/38,Oxfordshire County Council,2 YEAR OLD FUNDING,04/11/2022,5537,Payments to Other Establishments,3111279559,-742.14,Carrole Forde
http://statistics.data.gov.uk/id/local-authority/38,Oxfordshire County Council,2 YEAR OLD FUNDING,04/11/2022,5537,Payments to Other Establishments,3111279723,-742.14,Catherine Scate
http://statistics.data.gov.uk/id/local-authority/38,Oxfordshire County Council,2 YEAR OLD FUNDING,04/11/2022,5537,Payments to Other Establishments,3111279562,-742.14,Cherubs Nursery and After Class Lim
http://statistics.data.gov.uk/id/local-authority/38,Oxfordshire County Council,2 YEAR OLD FUNDING,04/11/2022,5537,Payments to Other Establishments,3111279565,-742.14,Cogges Under 5s Associa
http://statistics.data.gov.uk/id/local-authority/38,Oxfordshire County Council,2 YEAR OLD FUNDING,04/11/2022,5537,Payments to Other Establishments,3111279566,-742.14,Combe Pre-school
http://statistics.data.gov.uk/id/local-authority/38,Oxfordshire County Council,2 YEAR OLD FUNDING,04/11/2022,5537,Payments to Other Establishments,3111279567,-742.14,Complete Childcare Ltd
http://statistics.data.gov.uk/id/local-authority/38,Oxfordshire County Council,2 YEAR OLD FUNDING,04/11/2022,5537,Payments to Other Establishments,3111279573,-742.14,Deborah Barlow
http://statistics.data.gov.uk/id/local-authority/38,Oxfordshire County Council,2 YEAR OLD FUNDING,04/11/2022,5537,Payments to Other Establishments,3111279574,-742.14,Deddington Village Nursery
http://statistics.data.gov.uk/id/local-authority/38,Oxfordshire County Council,2 YEAR OLD FUNDING,04/11/2022,5537,Payments to Other Establishments,3111279575,-742.14,Donna Price
http://statistics.data.gov.uk/id/local-authority/38,Oxfordshire County Council,2 YEAR OLD FUNDING,04/11/2022,5537,Payments to Other Establishments,3111279577,-742.14,Early Days Nursery Schoo
http://statistics.data.gov.uk/id/local-authority/38,Oxfordshire County Council,2 YEAR OLD FUNDING,04/11/2022,5537,Payments to Other Establishments,3111279578,-742.14,Emma Chambers
http://statistics.data.gov.uk/id/local-authority/38,Oxfordshire County Council,2 YEAR OLD FUNDING,04/11/2022,5537,Payments to Other Establishments,3111279579,-742.14,Fiona Baughan
http://statistics.data.gov.uk/id/local-authority/38,Oxfordshire County Council,2 YEAR OLD FUNDING,04/11/2022,5537,Payments to Other Establishments,3111279581,-742.14,Fundamentals Childcare Ltd
http://statistics.data.gov.uk/id/local-authority/38,Oxfordshire County Council,2 YEAR OLD FUNDING,04/11/2022,5537,Payments to Other Establishments,3111279707,-742.14,GEMS Wantage Primary Academy
http://statistics.data.gov.uk/id/local-authority/38,Oxfordshire County Council,2 YEAR OLD FUNDING,04/11/2022,5537,Payments to Other Establishments,3111279719,-742.14,Gill Jones
http://statistics.data.gov.uk/id/local-authority/38,Oxfordshire County Council,2 YEAR OLD FUNDING,04/11/2022,5537,Payments to Other Establishments,3111279588,-742.14,Imogen Mason
http://statistics.data.gov.uk/id/local-authority/38,Oxfordshire County Council,2 YEAR OLD FUNDING,04/11/2022,5537,Payments to Other Establishments,3111279592,-742.14,Jemma Bridge
http://statistics.data.gov.uk/id/local-authority/38,Oxfordshire County Council,2 YEAR OLD FUNDING,04/11/2022,5537,Payments to Other Establishments,3111279593,-742.14,Joanne Moulder
http://statistics.data.gov.uk/id/local-authority/38,Oxfordshire County Council,2 YEAR OLD FUNDING,04/11/2022,5537,Payments to Other Establishments,3111279594,-742.14,Jourdan Sessegnon
http://statistics.data.gov.uk/id/local-authority/38,Oxfordshire County Council,2 YEAR OLD FUNDING,04/11/2022,5537,Payments to Other Establishments,3111279595,-742.14,Joy Townsend
http://statistics.data.gov.uk/id/local-authority/38,Oxfordshire County Council,2 YEAR OLD FUNDING,04/11/2022,5537,Payments to Other Establishments,3111279597,-742.14,Julie Harvey
http://statistics.data.gov.uk/id/local-authority/38,Oxfordshire County Council,2 YEAR OLD FUNDING,04/11/2022,5537,Payments to Other Establishments,3111279601,-742.14,Kids Planet Bradmore Road Day Nurse
http://statistics.data.gov.uk/id/local-authority/38,Oxfordshire County Council,2 YEAR OLD FUNDING,04/11/2022,5537,Payments to Other Establishments,3111279613,-742.14,Little Troopers Day Nursery Ltd
http://statistics.data.gov.uk/id/local-authority/38,Oxfordshire County Council,2 YEAR OLD FUNDING,04/11/2022,5537,Payments to Other Establishments,3111279616,-742.14,Louise Moralee
http://statistics.data.gov.uk/id/local-authority/38,Oxfordshire County Council,2 YEAR OLD FUNDING,04/11/2022,5537,Payments to Other Establishments,3111279617,-742.14,Louise Tucker
http://statistics.data.gov.uk/id/local-authority/38,Oxfordshire County Council,2 YEAR OLD FUNDING,04/11/2022,5537,Payments to Other Establishments,3111279618,-742.14,Margarete Paz
http://statistics.data.gov.uk/id/local-authority/38,Oxfordshire County Council,2 YEAR OLD FUNDING,04/11/2022,5537,Payments to Other Establishments,3111279620,-742.14,Michelle Williams
http://statistics.data.gov.uk/id/local-authority/38,Oxfordshire County Council,2 YEAR OLD FUNDING,04/11/2022,5537,Payments to Other Establishments,3111279625,-742.14,Nicola Williams
http://statistics.data.gov.uk/id/local-authority/38,Oxfordshire County Council,2 YEAR OLD FUNDING,04/11/2022,5537,Payments to Other Establishments,3111279629,-742.14,Peachcroft Pre-School
http://statistics.data.gov.uk/id/local-authority/38,Oxfordshire County Council,2 YEAR OLD FUNDING,04/11/2022,5537,Payments to Other Establishments,3111279631,-742.14,Rabia Sharma
http://statistics.data.gov.uk/id/local-authority/38,Oxfordshire County Council,2 YEAR OLD FUNDING,04/11/2022,5537,Payments to Other Establishments,3111279647,-742.14,Sandfield Day Nursery
http://statistics.data.gov.uk/id/local-authority/38,Oxfordshire County Council,2 YEAR OLD FUNDING,04/11/2022,5537,Payments to Other Establishments,3111279649,-742.14,Sasha Harris
http://statistics.data.gov.uk/id/local-authority/38,Oxfordshire County Council,2 YEAR OLD FUNDING,04/11/2022,5537,Payments to Other Establishments,3111279653,-742.14,Sophie Blizzard
http://statistics.data.gov.uk/id/local-authority/38,Oxfordshire County Council,2 YEAR OLD FUNDING,04/11/2022,5537,Payments to Other Establishments,3111279655,-742.14,South Moreton Pre-School
http://statistics.data.gov.uk/id/local-authority/38,Oxfordshire County Council,2 YEAR OLD FUNDING,04/11/2022,5537,Payments to Other Establishments,3111279665,-742.14,Stonesfield Pre-School
http://statistics.data.gov.uk/id/local-authority/38,Oxfordshire County Council,2 YEAR OLD FUNDING,04/11/2022,5537,Payments to Other Establishments,3111279689,-742.14,The Lighthouse Nursery
http://statistics.data.gov.uk/id/local-authority/38,Oxfordshire County Council,2 YEAR OLD FUNDING,04/11/2022,5537,Payments to Other Establishments,3111279695,-742.14,The Oxford Nursery (Eynsham)
http://statistics.data.gov.uk/id/local-authority/38,Oxfordshire County Council,2 YEAR OLD FUNDING,04/11/2022,5537,Payments to Other Establishments,3111279705,-742.14,Victoria Littlejohn
http://statistics.data.gov.uk/id/local-authority/38,Oxfordshire County Council,2 YEAR OLD FUNDING,04/11/2022,5537,Payments to Other Establishments,3111279709,-742.14,Willow Cottage Kindergar
http://statistics.data.gov.uk/id/local-authority/38,Oxfordshire County Council,2 YEAR OLD FUNDING,04/11/2022,5537,Payments to Other Establishments,3111279717,-742.14,Zoe Heaton
http://statistics.data.gov.uk/id/local-authority/38,Oxfordshire County Council,Unregistered Placements,16/11/2022,2040,Agency Staff,2201049952,-710.40,LEAF COMPLEX CARE LTD
http://statistics.data.gov.uk/id/local-authority/38,Oxfordshire County Council,2 YEAR OLD FUNDING,04/11/2022,5537,Payments to Other Establishments,3111279687,-706.80,Co-Op Oxford Nursery
http://statistics.data.gov.uk/id/local-authority/38,Oxfordshire County Council,PLACEMENTS-FRELEVANT,09/11/2022,5688,,3111291019,-687.89,KEY2 FUTURES LTD
http://statistics.data.gov.uk/id/local-authority/38,Oxfordshire County Council,Funded Nursing Care  - Over 65,10/11/2022,5692,,3111291863,-687.34,Abbey Crest Nursing Home
http://statistics.data.gov.uk/id/local-authority/38,Oxfordshire County Council,Funded Nursing Care  - Over 65,10/11/2022,5692,,3111293562,-687.34,Freeland House
http://statistics.data.gov.uk/id/local-authority/38,Oxfordshire County Council,Care Homes - Over 65 Memory & Cognition,10/11/2022,5686,,3111293177,-680.57,OSJ Contract - Stirlings
http://statistics.data.gov.uk/id/local-authority/38,Oxfordshire County Council,NURSERY ED FUND,04/11/2022,5537,Payments to Other Establishments,3111280109,-675.99,Wendy Dawson
http://statistics.data.gov.uk/id/local-authority/38,Oxfordshire County Council,COMMUNITY & ROAD SAFETY,23/11/2022,3103,Other Training Courses and Qualification,2201052408,-675.00,Windrush Bike Project CIC
http://statistics.data.gov.uk/id/local-authority/38,Oxfordshire County Council,MAINSTREAM-PRIMARY,14/11/2022,4330,Transport to School Activities,3111296928,-672.00,D�Arrive Ltd
http://statistics.data.gov.uk/id/local-authority/38,Oxfordshire County Council,PLACEMENTS-FRELEVANT,09/11/2022,5688,,3111291018,-665.70,KEY2 FUTURES LTD
http://statistics.data.gov.uk/id/local-authority/38,Oxfordshire County Council,NURSERY ED FUND,04/11/2022,5537,Payments to Other Establishments,3111280049,-657.72,Kim Joslyn
http://statistics.data.gov.uk/id/local-authority/38,Oxfordshire County Council,NURSERY ED FUND,04/11/2022,5537,Payments to Other Establishments,3111280052,-657.72,Laura Greenwood
http://statistics.data.gov.uk/id/local-authority/38,Oxfordshire County Council,NURSERY ED FUND,04/11/2022,5537,Payments to Other Establishments,3111280055,-657.72,Lisa Davies
http://statistics.data.gov.uk/id/local-authority/38,Oxfordshire County Council,NURSERY ED FUND,04/11/2022,5537,Payments to Other Establishments,3111280088,-657.72,Sarah Cooksley
http://statistics.data.gov.uk/id/local-authority/38,Oxfordshire County Council,NURSERY ED FUND,04/11/2022,5537,Payments to Other Establishments,3111280090,-657.72,Sarah Threlfall
http://statistics.data.gov.uk/id/local-authority/38,Oxfordshire County Council,NURSERY ED FUND,04/11/2022,5537,Payments to Other Establishments,3111280107,-657.72,Victoria Murray
http://statistics.data.gov.uk/id/local-authority/38,Oxfordshire County Council,NURSERY ED FUND,04/11/2022,5537,Payments to Other Establishments,3111280108,-657.72,Virginie Rayner
http://statistics.data.gov.uk/id/local-authority/38,Oxfordshire County Council,Support at Home 65+ Mental Health,10/11/2022,5686,,3111293025,-642.00,Orders of St John
http://statistics.data.gov.uk/id/local-authority/38,Oxfordshire County Council,2 YEAR OLD FUNDING,04/11/2022,5537,Payments to Other Establishments,3111279671,-636.12,Susan Walsh
http://statistics.data.gov.uk/id/local-authority/38,Oxfordshire County Council,Care Homes - Over 65 Physical Sypport,10/11/2022,5686,,3111293514,-628.57,Fewcott Healthcare Ltd
http://statistics.data.gov.uk/id/local-authority/38,Oxfordshire County Council,COMM DRAWDOWN FUNDNG,25/11/2022,8102,Payments to main contractor,2201053684,-628.56,Milestone Infrastructure Limited
http://statistics.data.gov.uk/id/local-authority/38,Oxfordshire County Council,Funded Nursing Care  - Over 65,10/11/2022,5692,,3111294704,-627.57,St. Lukes Oxford - Free Nursing
http://statistics.data.gov.uk/id/local-authority/38,Oxfordshire County Council,NURSERY ED FUND,04/11/2022,5537,Payments to Other Establishments,3111280041,-626.40,Karen Fowler
http://statistics.data.gov.uk/id/local-authority/38,Oxfordshire County Council,LD Continuing Care - Sup at Home - U65,29/11/2022,5691,,3111304036,-625.75,THORNBURY NURSING SERVICES
http://statistics.data.gov.uk/id/local-authority/38,Oxfordshire County Council,NURSERY ED FUND,04/11/2022,5537,Payments to Other Establishments,3111280079,-610.74,Rachel Mobbs
http://statistics.data.gov.uk/id/local-authority/38,Oxfordshire County Council,LAC PUPIL PREMIUM,18/11/2022,5537,Payments to Other Establishments,3111298642,-600.00,Maylandsea Primary School
http://statistics.data.gov.uk/id/local-authority/38,Oxfordshire County Council,COMM DRAWDOWN FUNDNG,04/11/2022,8004,Design Consultant,2201044256,-597.00,Oxford Direct Services Ltd
http://statistics.data.gov.uk/id/local-authority/38,Oxfordshire County Council,2 YEAR OLD FUNDING,04/11/2022,5537,Payments to Other Establishments,3111279582,-593.71,Gemma Westlake
http://statistics.data.gov.uk/id/local-authority/38,Oxfordshire County Council,2 YEAR OLD FUNDING,04/11/2022,5537,Payments to Other Establishments,3111279693,-593.71,The Orchard Pre-School
http://statistics.data.gov.uk/id/local-authority/38,Oxfordshire County Council,2 YEAR OLD FUNDING,04/11/2022,5537,Payments to Other Establishments,3111279633,-572.51,Rachael Shaer
http://statistics.data.gov.uk/id/local-authority/38,Oxfordshire County Council,COMM DRAWDOWN FUNDNG,25/11/2022,8102,Payments to main contractor,2201053679,-568.86,Milestone Infrastructure Limited
http://statistics.data.gov.uk/id/local-authority/38,Oxfordshire County Council,Care Homes - Over 65 Physical Sypport,10/11/2022,5686,,3111293300,-567.14,Orders of St John
http://statistics.data.gov.uk/id/local-authority/38,Oxfordshire County Council,NURSERY ED FUND,09/11/2022,5537,Payments to Other Establishments,3111290838,-563.76,St Hugh of Lincoln Nursery School
http://statistics.data.gov.uk/id/local-authority/38,Oxfordshire County Council,NURSERY ED FUND,09/11/2022,5537,Payments to Other Establishments,3111291233,-561.15,Positive Steps Day Nursery
http://statistics.data.gov.uk/id/local-authority/38,Oxfordshire County Council,FOSTERING MAIN,22/11/2022,5549,B*Fostering Allowance - Regulation 38,3111299597,-560.00,Redacted Personal Data
http://statistics.data.gov.uk/id/local-authority/38,Oxfordshire County Council,Support at Home U65 Other /Soc Isolation,09/11/2022,5688,,3111290364,-558.00,KEY2 FUTURES LTD
http://statistics.data.gov.uk/id/local-authority/38,Oxfordshire County Council,Care Homes - Over 65 Physical Sypport,10/11/2022,5686,,3111294542,-556.05,The Shrublands Centre
http://statistics.data.gov.uk/id/local-authority/38,Oxfordshire County Council,NURSERY ED FUND,04/11/2022,5537,Payments to Other Establishments,3111280004,-548.10,Amanda Sinclair
http://statistics.data.gov.uk/id/local-authority/38,Oxfordshire County Council,NURSERY ED FUND,04/11/2022,5537,Payments to Other Establishments,3111280082,-548.10,Becky's Childminding Services
http://statistics.data.gov.uk/id/local-authority/38,Oxfordshire County Council,NURSERY ED FUND,11/11/2022,5537,Payments to Other Establishments,3111296412,-548.10,Carol Pohlman
http://statistics.data.gov.uk/id/local-authority/38,Oxfordshire County Council,NURSERY ED FUND,04/11/2022,5537,Payments to Other Establishments,3111280016,-548.10,Clares Childcare Services
http://statistics.data.gov.uk/id/local-authority/38,Oxfordshire County Council,NURSERY ED FUND,04/11/2022,5537,Payments to Other Establishments,3111280028,-548.10,Hayley Brooks
http://statistics.data.gov.uk/id/local-authority/38,Oxfordshire County Council,NURSERY ED FUND,04/11/2022,5537,Payments to Other Establishments,3111280031,-548.10,Helen Dimmick
http://statistics.data.gov.uk/id/local-authority/38,Oxfordshire County Council,NURSERY ED FUND,04/11/2022,5537,Payments to Other Establishments,3111280039,-548.10,Joy Townsend
http://statistics.data.gov.uk/id/local-authority/38,Oxfordshire County Council,NURSERY ED FUND,04/11/2022,5537,Payments to Other Establishments,3111280057,-548.10,Lisa Rafferty
http://statistics.data.gov.uk/id/local-authority/38,Oxfordshire County Council,NURSERY ED FUND,04/11/2022,5537,Payments to Other Establishments,3111280065,-548.10,Muge Barker
http://statistics.data.gov.uk/id/local-authority/38,Oxfordshire County Council,NURSERY ED FUND,04/11/2022,5537,Payments to Other Establishments,3111280067,-548.10,Natalie Velaj
http://statistics.data.gov.uk/id/local-authority/38,Oxfordshire County Council,NURSERY ED FUND,04/11/2022,5537,Payments to Other Establishments,3111280069,-548.10,Nichola Philip
http://statistics.data.gov.uk/id/local-authority/38,Oxfordshire County Council,NURSERY ED FUND,04/11/2022,5537,Payments to Other Establishments,3111280072,-548.10,Nicola Playford
http://statistics.data.gov.uk/id/local-authority/38,Oxfordshire County Council,NURSERY ED FUND,04/11/2022,5537,Payments to Other Establishments,3111280073,-548.10,Nicola Rogers
http://statistics.data.gov.uk/id/local-authority/38,Oxfordshire County Council,NURSERY ED FUND,04/11/2022,5537,Payments to Other Establishments,3111280076,-548.10,Rachael Hall
http://statistics.data.gov.uk/id/local-authority/38,Oxfordshire County Council,NURSERY ED FUND,04/11/2022,5537,Payments to Other Establishments,3111280083,-548.10,Rebecca Tapping
http://statistics.data.gov.uk/id/local-authority/38,Oxfordshire County Council,NURSERY ED FUND,04/11/2022,5537,Payments to Other Establishments,3111280086,-548.10,Sally Rosoman
http://statistics.data.gov.uk/id/local-authority/38,Oxfordshire County Council,NURSERY ED FUND,04/11/2022,5537,Payments to Other Establishments,3111280092,-548.10,Sharon Humphrey
http://statistics.data.gov.uk/id/local-authority/38,Oxfordshire County Council,NURSERY ED FUND,04/11/2022,5537,Payments to Other Establishments,3111280093,-548.10,Sharon Maddox
http://statistics.data.gov.uk/id/local-authority/38,Oxfordshire County Council,NURSERY ED FUND,04/11/2022,5537,Payments to Other Establishments,3111280095,-548.10,Sophie Cushing
http://statistics.data.gov.uk/id/local-authority/38,Oxfordshire County Council,NURSERY ED FUND,04/11/2022,5537,Payments to Other Establishments,3111280099,-548.10,Teresa Channer
http://statistics.data.gov.uk/id/local-authority/38,Oxfordshire County Council,NURSERY ED FUND,04/11/2022,5537,Payments to Other Establishments,3111280103,-548.10,Tracey Hedges Childcare
http://statistics.data.gov.uk/id/local-authority/38,Oxfordshire County Council,NURSERY ED FUND,04/11/2022,5537,Payments to Other Establishments,3111280104,-548.10,Tracey Tricker
http://statistics.data.gov.uk/id/local-authority/38,Oxfordshire County Council,Funded Nursing Care  - Over 65,10/11/2022,5692,,3111294898,-537.92,The Grange Care Centre
http://statistics.data.gov.uk/id/local-authority/38,Oxfordshire County Council,2 YEAR OLD FUNDING,09/11/2022,5537,Payments to Other Establishments,3111291232,-537.17,Positive Steps Day Nursery
http://statistics.data.gov.uk/id/local-authority/38,Oxfordshire County Council,2 YEAR OLD FUNDING,09/11/2022,5537,Payments to Other Establishments,3111291231,-530.10,Little Oak Pre-School
http://statistics.data.gov.uk/id/local-authority/38,Oxfordshire County Council,NURSERY ED FUND,09/11/2022,5537,Payments to Other Establishments,3111290824,-522.00,Farmhouse Nursery School
http://statistics.data.gov.uk/id/local-authority/38,Oxfordshire County Council,NURSERY ED FUND,04/11/2022,5537,Payments to Other Establishments,3111280022,-511.56,Esther Ibbotson
http://statistics.data.gov.uk/id/local-authority/38,Oxfordshire County Council,NURSERY ED FUND,04/11/2022,5537,Payments to Other Establishments,3111280033,-511.56,Helen Rains
http://statistics.data.gov.uk/id/local-authority/38,Oxfordshire County Council,NURSERY ED FUND,04/11/2022,5537,Payments to Other Establishments,3111280085,-511.56,Sally Harvey
http://statistics.data.gov.uk/id/local-authority/38,Oxfordshire County Council,Voice of Oxfordshire Youth,15/11/2022,4940,Other Services,2201049210,-500.00,Zuhura Plummer
http://statistics.data.gov.uk/id/local-authority/38,Oxfordshire County Council,Delegated Health Tasks  - Over 65,04/11/2022,5691,,3111280152,500.00,1 to 1 Care
http://statistics.data.gov.uk/id/local-authority/38,Oxfordshire County Council,Delegated Health Tasks  - Under 65,04/11/2022,5691,,3111280153,500.00,1 to 1 Care
http://statistics.data.gov.uk/id/local-authority/38,Oxfordshire County Council,Delegated Health Tasks  - Over 65,04/11/2022,5691,,3111280154,500.00,1 to 1 Care
http://statistics.data.gov.uk/id/local-authority/38,Oxfordshire County Council,Housing & Growth Deal Capacity Funding,16/11/2022,4940,Other Services,2201049724,500.00,Catalyst Collective Limited
http://statistics.data.gov.uk/id/local-authority/38,Oxfordshire County Council,Children in Care Non-staffing - North,24/11/2022,5227,Other Transport Arrangements,3111302197,500.00,Cherwell Cars
http://statistics.data.gov.uk/id/local-authority/38,Oxfordshire County Council,"Marketing, Communications & Engagement",02/11/2022,4407,Equipment,2201043087,500.00,Cherwell District Council
http://statistics.data.gov.uk/id/local-authority/38,Oxfordshire County Council,FPT CITY,22/11/2022,4525,Furniture,3111299611,500.00,Redacted Personal Data
http://statistics.data.gov.uk/id/local-authority/38,Oxfordshire County Council,OXFORD LOCALITY,25/11/2022,4861,Hired and Contracted Services,2201053532,500.00,DJS Research Ltd
http://statistics.data.gov.uk/id/local-authority/38,Oxfordshire County Council,LEGAL SERVICES,22/11/2022,5251,Legal Costs,2201051842,500.00,Emma Wilson
http://statistics.data.gov.uk/id/local-authority/38,Oxfordshire County Council,Fostering Panel,03/11/2022,4861,Hired and Contracted Services,2201043730,500.00,Green Light People Solutions
http://statistics.data.gov.uk/id/local-authority/38,Oxfordshire County Council,Fostering Panel,03/11/2022,4861,Hired and Contracted Services,2201043732,500.00,Green Light People Solutions
http://statistics.data.gov.uk/id/local-authority/38,Oxfordshire County Council,Fostering Panel,03/11/2022,4861,Hired and Contracted Services,2201043733,500.00,Green Light People Solutions
http://statistics.data.gov.uk/id/local-authority/38,Oxfordshire County Council,OXFORD LOCALITY,15/11/2022,4861,Hired and Contracted Services,2201049222,500.00,Headline Media UK
http://statistics.data.gov.uk/id/local-authority/38,Oxfordshire County Council,Housing & Growth Deal Capacity Funding,24/11/2022,4940,Other Services,2201052799,500.00,Lee Hecht Harrison Penna Limited
http://statistics.data.gov.uk/id/local-authority/38,Oxfordshire County Council,SEN TRANSPORT,16/11/2022,4330,Transport to School Activities,3111297926,500.00,Lightway Services Ltd
http://statistics.data.gov.uk/id/local-authority/38,Oxfordshire County Council,SEN TRANSPORT,16/11/2022,4330,Transport to School Activities,3111298597,500.00,Lightway Services Ltd
http://statistics.data.gov.uk/id/local-authority/38,Oxfordshire County Council,LEGAL SERVICES,16/11/2022,5251,Legal Costs,2201049655,500.00,Louise Harvey
http://statistics.data.gov.uk/id/local-authority/38,Oxfordshire County Council,SKILLS & LEARNING,18/11/2022,4790,"Publicity, Promotions and Advertisement",2201051047,500.00,Mark Bassett Ltd
http://statistics.data.gov.uk/id/local-authority/38,Oxfordshire County Council,RECRUITMENT+MEDICALS,11/11/2022,5460,Entertainment Expenses,2201046826,500.00,NETWORKING WOMEN IN THE FIRE SERVIC
http://statistics.data.gov.uk/id/local-authority/38,Oxfordshire County Council,,09/11/2022,1441,Uncleared Misc Income Receipts,2201045830,500.00,OCC Bicester Lib Bank
http://statistics.data.gov.uk/id/local-authority/38,Oxfordshire County Council,HIGHWAYS GENERAL,01/11/2022,5055,Insurance Costs,3111277853,500.00,OCC One Time Vendor
http://statistics.data.gov.uk/id/local-authority/38,Oxfordshire County Council,HIGHWAYS GENERAL,02/11/2022,5055,Insurance Costs,3111279066,500.00,OCC One Time Vendor
http://statistics.data.gov.uk/id/local-authority/38,Oxfordshire County Council,HIGHWAYS GENERAL,16/11/2022,5055,Insurance Costs,3111297984,500.00,OCC One Time Vendor
http://statistics.data.gov.uk/id/local-authority/38,Oxfordshire County Council,Children in Care Non-staffing - Centrl 1,02/11/2022,5415,Residential Activities,9300057744,500.00,OCC SS Oxford City Div 1 Bank
http://statistics.data.gov.uk/id/local-authority/38,Oxfordshire County Council,SCHOOLS H&S,11/11/2022,3105,Training related expenditure,2201046560,500.00,OCCUPATIONAL SAFETY & HEALTH
http://statistics.data.gov.uk/id/local-authority/38,Oxfordshire County Council,WIDER TOBACCO CONTRL,30/11/2022,4790,"Publicity, Promotions and Advertisement",2201054840,500.00,Process Black
http://statistics.data.gov.uk/id/local-authority/38,Oxfordshire County Council,LAC PUPIL PREMIUM,15/11/2022,5537,Payments to Other Establishments,3111296851,500.00,Queen Emma's primary School
http://statistics.data.gov.uk/id/local-authority/38,Oxfordshire County Council,Reactive Maintenance,23/11/2022,3787,Premises Repairs,2201052734,500.00,SMS Environmental Limited
http://statistics.data.gov.uk/id/local-authority/38,Oxfordshire County Council,Councillors Priorities Fund,28/11/2022,4940,Other Services,3111302979,500.00,The Christmas Lunch
http://statistics.data.gov.uk/id/local-authority/38,Oxfordshire County Council,ADOPTION ALLOWANCES,25/11/2022,5664,B*Holiday Allowance,3111302570,500.00,Redacted Personal Data
http://statistics.data.gov.uk/id/local-authority/38,Oxfordshire County Council,Family Solutions Plus Non-staff - North,04/11/2022,5394,Other Expenses,3500089475,500.00,Redacted Personal Data
http://statistics.data.gov.uk/id/local-authority/38,Oxfordshire County Council,Voice of Oxfordshire Youth,09/11/2022,4940,Other Services,2201045905,500.00,Zuhura Plummer
http://statistics.data.gov.uk/id/local-authority/38,Oxfordshire County Council,,16/11/2022,1531,Cash Allocation Control Account,3111298153,500.00,Redacted Personal Data
http://statistics.data.gov.uk/id/local-authority/38,Oxfordshire County Council,Support at Home 65+ Memory & Cognition,08/11/2022,5699,,3111289994,500.22,Pechiv Ltd
http://statistics.data.gov.uk/id/local-authority/38,Oxfordshire County Council,SEN Inclusion Fund,09/11/2022,5537,Payments to Other Establishments,3111290752,500.50,Aureus Primary School Academy
http://statistics.data.gov.uk/id/local-authority/38,Oxfordshire County Council,SEN Inclusion Fund,09/11/2022,5537,Payments to Other Establishments,3111290746,500.50,Culham After School Club
http://statistics.data.gov.uk/id/local-authority/38,Oxfordshire County Council,SEN Inclusion Fund,09/11/2022,5537,Payments to Other Establishments,3111290749,500.50,Culham After School Club
http://statistics.data.gov.uk/id/local-authority/38,Oxfordshire County Council,SEN Inclusion Fund,09/11/2022,5537,Payments to Other Establishments,3111290510,500.50,Kiddies Korner
http://statistics.data.gov.uk/id/local-authority/38,Oxfordshire County Council,SEN Inclusion Fund,09/11/2022,5537,Payments to Other Establishments,3111290652,500.50,Ladybird Pre-School Limited
http://statistics.data.gov.uk/id/local-authority/38,Oxfordshire County Council,SEN Inclusion Fund,09/11/2022,5537,Payments to Other Establishments,3111290738,500.50,Longford Park Primary School
http://statistics.data.gov.uk/id/local-authority/38,Oxfordshire County Council,SEN Inclusion Fund,09/11/2022,5537,Payments to Other Establishments,3111290808,500.50,Magpies Preschool
http://statistics.data.gov.uk/id/local-authority/38,Oxfordshire County Council,SEN Inclusion Fund,09/11/2022,5537,Payments to Other Establishments,3111290623,500.50,New Marston Pre-School
http://statistics.data.gov.uk/id/local-authority/38,Oxfordshire County Council,SEN Inclusion Fund,09/11/2022,5537,Payments to Other Establishments,3111290728,500.50,St Christophers Primary School -
http://statistics.data.gov.uk/id/local-authority/38,Oxfordshire County Council,SEN Inclusion Fund,09/11/2022,5537,Payments to Other Establishments,3111290674,500.50,Stanford in the Vale Pre School
http://statistics.data.gov.uk/id/local-authority/38,Oxfordshire County Council,SEN Inclusion Fund,09/11/2022,5537,Payments to Other Establishments,3111290709,500.50,Windale Community Primary School
http://statistics.data.gov.uk/id/local-authority/38,Oxfordshire County Council,Support at Home U65 Learning Disability,10/11/2022,5690,,3111291770,500.66,MacIntyre Care (Womaston)
http://statistics.data.gov.uk/id/local-authority/38,Oxfordshire County Council,Consultation & Engagement,09/11/2022,3942,Hire of Accommodation and Facilities,2201045873,501.00,Hill End Outdoor Education
http://statistics.data.gov.uk/id/local-authority/38,Oxfordshire County Council,Support at Home U65 Memory & Cognition,22/11/2022,5899,Social Care - Direct Payments,3111300280,501.24,Redacted Personal Data
http://statistics.data.gov.uk/id/local-authority/38,Oxfordshire County Council,Children in Care Non-staffing - Centrl 2,15/11/2022,5394,Other Expenses,3111297520,501.43,Redacted Personal Data
http://statistics.data.gov.uk/id/local-authority/38,Oxfordshire County Council,,17/11/2022,1531,Cash Allocation Control Account,3111302191,501.59,Chubb Systems Ltd
http://statistics.data.gov.uk/id/local-authority/38,Oxfordshire County Council,FOSTERING MAIN,08/11/2022,5548,B*Fostering - Special Rates & Plus Amou,3111288338,501.98,Redacted Personal Data
http://statistics.data.gov.uk/id/local-authority/38,Oxfordshire County Council,FOSTERING MAIN,29/11/2022,5548,B*Fostering - Special Rates & Plus Amou,3111303861,501.98,Redacted Personal Data
http://statistics.data.gov.uk/id/local-authority/38,Oxfordshire County Council,Youth Justice & Exploitation,16/11/2022,5394,Other Expenses,9300057907,502.15,OCC SS Oxford City Div 1 Cash
http://statistics.data.gov.uk/id/local-authority/38,Oxfordshire County Council,NURSERY ED FUND,08/11/2022,5537,Payments to Other Establishments,3111282687,502.43,Early Days Nursery Schoo
http://statistics.data.gov.uk/id/local-authority/38,Oxfordshire County Council,SM QUALITY ASSURANCE,22/11/2022,5227,Other Transport Arrangements,3111301517,502.50,OCC One Time Vendor
http://statistics.data.gov.uk/id/local-authority/38,Oxfordshire County Council,Support at Home 65+ Physical Support,24/11/2022,5696,,3111302001,502.74,Orders of St John Care Trust
http://statistics.data.gov.uk/id/local-authority/38,Oxfordshire County Council,Support at Home 65+ Physical Support,08/11/2022,5698,,3111289676,502.78,Oxford Private Care
http://statistics.data.gov.uk/id/local-authority/38,Oxfordshire County Council,Support at Home U65 Learning Disability,08/11/2022,5696,,3111289636,503.50,All Care GB Ltd
http://statistics.data.gov.uk/id/local-authority/38,Oxfordshire County Council,Support at Home U65 Physical Support,09/11/2022,5693,,3111290370,504.00,HEALTHCARE ACCESS LTD
http://statistics.data.gov.uk/id/local-authority/38,Oxfordshire County Council,Support at Home U65 Learning Disability,04/11/2022,5693,,3111279498,504.00,The Care Workshop Limited
http://statistics.data.gov.uk/id/local-authority/38,Oxfordshire County Council,Support at Home U65 Learning Disability,30/11/2022,5693,,3111304159,504.00,The Care Workshop Limited
http://statistics.data.gov.uk/id/local-authority/38,Oxfordshire County Council,Support at Home 65+ Learning Disability,10/11/2022,5690,,3111291752,504.26,HF TRUST Ltd
http://statistics.data.gov.uk/id/local-authority/38,Oxfordshire County Council,Support at Home U65 HFA,22/11/2022,5899,Social Care - Direct Payments,3111300164,504.32,Connection Support (Oxford)
http://statistics.data.gov.uk/id/local-authority/38,Oxfordshire County Council,Oxfordshire Adoption Support Fund,03/11/2022,4861,Hired and Contracted Services,2201043886,505.00,The Playworks.org
http://statistics.data.gov.uk/id/local-authority/38,Oxfordshire County Council,FOSTERING MAIN,22/11/2022,5532,B*Fostering - Loan Equipment,3111300015,505.15,Redacted Personal Data
http://statistics.data.gov.uk/id/local-authority/38,Oxfordshire County Council,SERVICE DELIVERY,29/11/2022,4685,Clothing and Uniforms,2201054591,506.10,Oxford Safety Supplies
http://statistics.data.gov.uk/id/local-authority/38,Oxfordshire County Council,Support at Home 65+ Physical Support,08/11/2022,5689,,3111289282,506.22,Goldsmith Personnel Ltd
http://statistics.data.gov.uk/id/local-authority/38,Oxfordshire County Council,FAM GRP CONFERENCES,28/11/2022,4940,Other Services,2201054304,506.47,Shellie Keen
http://statistics.data.gov.uk/id/local-authority/38,Oxfordshire County Council,ELEC NPR ST LTG,11/11/2022,5526,Payments to Private Contractors,2201046600,506.74,VolkerHighways
http://statistics.data.gov.uk/id/local-authority/38,Oxfordshire County Council,Family Solutions Plus Non-staff - North,18/11/2022,5227,Other Transport Arrangements,9300057976,507.00,OCC SS Banbury Area Off Cash
http://statistics.data.gov.uk/id/local-authority/38,Oxfordshire County Council,Support at Home U65 Memory & Cognition,01/11/2022,5899,Social Care - Direct Payments,3111277858,507.43,Redacted Personal Data
http://statistics.data.gov.uk/id/local-authority/38,Oxfordshire County Council,MEADOWBROOK TRANSPT,10/11/2022,4314,"Other Trans Contract Costs (CRB, Car Sea",3111291305,507.54,The Oxfordshire Taxi Company Ltd T/
http://statistics.data.gov.uk/id/local-authority/38,Oxfordshire County Council,40 THE MOORS,25/11/2022,4270,HTM / Other Vehicle - Hire Charges,2201053475,507.80,The Oxfordshire Taxi Co Ltd T/A
http://statistics.data.gov.uk/id/local-authority/38,Oxfordshire County Council,Support at Home U65 Learning Disability,22/11/2022,5899,Social Care - Direct Payments,3111301105,507.84,Purple Conversation Com In Co (DP)
http://statistics.data.gov.uk/id/local-authority/38,Oxfordshire County Council,Afghanistan settler holding hotel fund,24/11/2022,3942,Hire of Accommodation and Facilities,2201052802,508.00,Hill End Outdoor Education
http://statistics.data.gov.uk/id/local-authority/38,Oxfordshire County Council,FOSTERING MAIN,15/11/2022,5549,B*Fostering Allowance - Regulation 38,3111297295,508.00,Redacted Personal Data
http://statistics.data.gov.uk/id/local-authority/38,Oxfordshire County Council,LAC PUPIL PREMIUM,15/11/2022,5537,Payments to Other Establishments,3111296904,508.00,New Marston Primary School
http://statistics.data.gov.uk/id/local-authority/38,Oxfordshire County Council,Funded Nursing Care  - Over 65,10/11/2022,5692,,3111294649,508.03,Stowford House
http://statistics.data.gov.uk/id/local-authority/38,Oxfordshire County Council,Support at Home 65+ Physical Support,10/11/2022,5685,B*Cycle tracks,3111292722,508.04,Orders of St John
http://statistics.data.gov.uk/id/local-authority/38,Oxfordshire County Council,40 THE MOORS,21/11/2022,5394,Other Expenses,9300057984,508.43,OCC SS Oxford City Div 1 Cash
http://statistics.data.gov.uk/id/local-authority/38,Oxfordshire County Council,Support at Home U65 HFA,22/11/2022,5899,Social Care - Direct Payments,3111300665,508.80,Redacted Personal Data
http://statistics.data.gov.uk/id/local-authority/38,Oxfordshire County Council,NURSERY ED FUND,08/11/2022,5537,Payments to Other Establishments,3111282719,508.95,Edith Moorhouse Primary School
http://statistics.data.gov.uk/id/local-authority/38,Oxfordshire County Council,NURSERY ED FUND,08/11/2022,5537,Payments to Other Establishments,3111286561,508.95,Wantage Preschool
http://statistics.data.gov.uk/id/local-authority/38,Oxfordshire County Council,FAM GRP CONFERENCES,22/11/2022,4940,Other Services,2201052091,509.73,Emma O'Regan
http://statistics.data.gov.uk/id/local-authority/38,Oxfordshire County Council,ON ST PARK OXFD P&D,21/11/2022,4861,Hired and Contracted Services,2201051402,510.00,Flowbird Smart City
http://statistics.data.gov.uk/id/local-authority/38,Oxfordshire County Council,TRANSPORT COSTS,23/11/2022,4330,Transport to School Activities,3111301735,510.00,Her Ride Limited
http://statistics.data.gov.uk/id/local-authority/38,Oxfordshire County Council,MEADOWBROOK TRANSPT,07/11/2022,4330,Transport to School Activities,3111280561,510.00,The Oxfordshire Taxi Company Ltd T/
http://statistics.data.gov.uk/id/local-authority/38,Oxfordshire County Council,Support at Home 65+ Physical Support,11/11/2022,5693,,3111296342,510.30,Oxford Private Care
http://statistics.data.gov.uk/id/local-authority/38,Oxfordshire County Council,Support at Home U65 Learning Disability,08/11/2022,5689,,3111289317,510.72,Greigcare Home Service
http://statistics.data.gov.uk/id/local-authority/38,Oxfordshire County Council,FOSTERING MAIN,08/11/2022,5227,Other Transport Arrangements,3111288423,510.85,Redacted Personal Data
http://statistics.data.gov.uk/id/local-authority/38,Oxfordshire County Council,Support at Home U65 Learning Disability,10/11/2022,5690,,3111291728,511.07,ADVANCE HOUSING & SUPPORT LTD
http://statistics.data.gov.uk/id/local-authority/38,Oxfordshire County Council,Support at Home U65 Physical Support,10/11/2022,5690,,3111291746,511.07,ADVANCE HOUSING & SUPPORT LTD
http://statistics.data.gov.uk/id/local-authority/38,Oxfordshire County Council,LANDLORD & TENANT,28/11/2022,8102,Payments to main contractor,2201053718,511.77,Comensura Ltd
http://statistics.data.gov.uk/id/local-authority/38,Oxfordshire County Council,Support at Home 65+ Other /Soc Isolation,23/11/2022,5693,,3111301599,512.00,Redacted Personal Data
http://statistics.data.gov.uk/id/local-authority/38,Oxfordshire County Council,HN SPECIAL SCH TOPUP,21/11/2022,5537,Payments to Other Establishments,3111299338,512.00,The Gallery Trust
http://statistics.data.gov.uk/id/local-authority/38,Oxfordshire County Council,Support at Home U65 Physical Support,03/11/2022,5227,Other Transport Arrangements,3111280216,512.00,TOOTS TAXIS LTD
http://statistics.data.gov.uk/id/local-authority/38,Oxfordshire County Council,Support at Home U65 Learning Disability,22/11/2022,5899,Social Care - Direct Payments,3111300878,512.16,Purple Conversation Com In Co (DP)
http://statistics.data.gov.uk/id/local-authority/38,Oxfordshire County Council,Community Support Service Oxford,21/11/2022,2040,Agency Staff,2201051414,512.40,Completely Care Ltd
http://statistics.data.gov.uk/id/local-authority/38,Oxfordshire County Council,2 YEAR OLD FUNDING,15/11/2022,5537,Payments to Other Establishments,3111297730,512.43,Sandhills Pre-School Playgroup
http://statistics.data.gov.uk/id/local-authority/38,Oxfordshire County Council,Support at Home U65 Learning Disability,22/11/2022,5899,Social Care - Direct Payments,3111300454,514.12,Redacted Personal Data
http://statistics.data.gov.uk/id/local-authority/38,Oxfordshire County Council,Support at Home U65 Learning Disability,07/11/2022,5227,Other Transport Arrangements,3111280387,514.86,The Oxfordshire Taxi Company Ltd T/
http://statistics.data.gov.uk/id/local-authority/38,Oxfordshire County Council,Support at Home 65+ Memory & Cognition,09/11/2022,5693,,3111290387,514.92,Pioneering Care Bicester Limited
http://statistics.data.gov.uk/id/local-authority/38,Oxfordshire County Council,FAMILY TIME TEAM,16/11/2022,5394,Other Expenses,2201049857,515.00,The Salvation Army
http://statistics.data.gov.uk/id/local-authority/38,Oxfordshire County Council,2 YEAR OLD FUNDING,08/11/2022,5537,Payments to Other Establishments,3111285483,515.38,Robin Playgroup
http://statistics.data.gov.uk/id/local-authority/38,Oxfordshire County Council,Support at Home U65 Mental Health,22/11/2022,5899,Social Care - Direct Payments,3111301243,515.68,Purple Conversation Com In Co (DP)
http://statistics.data.gov.uk/id/local-authority/38,Oxfordshire County Council,DEPARTMENTAL MANAGE,18/11/2022,8102,Payments to main contractor,2201051072,515.73,Falcon Signs
http://statistics.data.gov.uk/id/local-authority/38,Oxfordshire County Council,Oxfordshire Adoption Support Fund,09/11/2022,4861,Hired and Contracted Services,2201045924,516.00,SWAAY
http://statistics.data.gov.uk/id/local-authority/38,Oxfordshire County Council,Support at Home U65 Learning Disability,10/11/2022,5690,,3111291699,516.11,Style Acre
http://statistics.data.gov.uk/id/local-authority/38,Oxfordshire County Council,Support at Home U65 Other /Soc Isolation,22/11/2022,5899,Social Care - Direct Payments,3111301180,516.24,Purple Conversation Com In Co (DP)
http://statistics.data.gov.uk/id/local-authority/38,Oxfordshire County Council,LAC PUPIL PREMIUM,11/11/2022,5380,"Author, Speaker and Lecturer Fees",2201046647,517.00,Teaching Personnel Ltd
http://statistics.data.gov.uk/id/local-authority/38,Oxfordshire County Council,LIBRARY COLLECTIONS,01/11/2022,4539,"Books, DVDs and CDs",3111278604,517.49,ASKEWS & HOLTS LIBRARY SERVICES LTD
http://statistics.data.gov.uk/id/local-authority/38,Oxfordshire County Council,Support at Home U65 Learning Disability,22/11/2022,5899,Social Care - Direct Payments,3111300706,517.56,Redacted Personal Data
http://statistics.data.gov.uk/id/local-authority/38,Oxfordshire County Council,NURSERY ED FUND,08/11/2022,5537,Payments to Other Establishments,3111280814,517.65,Annabelles Nursery
http://statistics.data.gov.uk/id/local-authority/38,Oxfordshire County Council,NURSERY ED FUND,08/11/2022,5537,Payments to Other Establishments,3111284834,517.65,Nicola Pike
http://statistics.data.gov.uk/id/local-authority/38,Oxfordshire County Council,FOSTERING MAIN,08/11/2022,5227,Other Transport Arrangements,3111288401,517.66,Redacted Personal Data
http://statistics.data.gov.uk/id/local-authority/38,Oxfordshire County Council,Children in Care Non-staffing - Centrl 2,09/11/2022,5394,Other Expenses,9300057838,517.85,OCC SS Oxford City Div 1 Cash
http://statistics.data.gov.uk/id/local-authority/38,Oxfordshire County Council,Support at Home 65+ Physical Support,09/11/2022,5693,,3111290404,518.70,AVR (Oxon) Ltd
http://statistics.data.gov.uk/id/local-authority/38,Oxfordshire County Council,FAM GRP CONFERENCES,21/11/2022,4940,Other Services,2201051455,518.79,Shellie Keen
http://statistics.data.gov.uk/id/local-authority/38,Oxfordshire County Council,Support at Home 65+ Physical Support,08/11/2022,5689,,3111289339,518.85,Greigcare Home Service
http://statistics.data.gov.uk/id/local-authority/38,Oxfordshire County Council,Support at Home U65 Learning Disability,24/11/2022,5696,,3111301967,519.24,Orders of St John Care Trust
http://statistics.data.gov.uk/id/local-authority/38,Oxfordshire County Council,Support at Home U65 Physical Support,24/11/2022,5696,,3111301979,519.24,Orders of St John Care Trust
http://statistics.data.gov.uk/id/local-authority/38,Oxfordshire County Council,Support at Home 65+ Learning Disability,24/11/2022,5696,,3111301985,519.24,Orders of St John Care Trust
http://statistics.data.gov.uk/id/local-authority/38,Oxfordshire County Council,Support at Home 65+ Mental Health,22/11/2022,5899,Social Care - Direct Payments,3111300176,519.84,Redacted Personal Data
http://statistics.data.gov.uk/id/local-authority/38,Oxfordshire County Council,Support at Home U65 Learning Disability,22/11/2022,5899,Social Care - Direct Payments,3111300845,519.88,Purple Conversation Com In Co (DP)
http://statistics.data.gov.uk/id/local-authority/38,Oxfordshire County Council,Support at Home U65 MH OBC Contract,22/11/2022,5899,Social Care - Direct Payments,3111301453,519.92,Purple Conversation Com In Co (DP)
http://statistics.data.gov.uk/id/local-authority/38,Oxfordshire County Council,Delegated Health Tasks  - Over 65,02/11/2022,5691,,3111278956,520.00,1 to 1 Care
http://statistics.data.gov.uk/id/local-authority/38,Oxfordshire County Council,West Berkshire Adoption Support Fund,24/11/2022,4861,Hired and Contracted Services,2201053264,520.00,Amanda Bailey - Relax Kids
http://statistics.data.gov.uk/id/local-authority/38,Oxfordshire County Council,POST 16 SEN,02/11/2022,5227,Other Transport Arrangements,3111279083,520.00,Oxford Cab LTD
http://statistics.data.gov.uk/id/local-authority/38,Oxfordshire County Council,Support at Home 65+ Mental Health,02/11/2022,5693,,3111278883,520.00,Star Projections
http://statistics.data.gov.uk/id/local-authority/38,Oxfordshire County Council,Support at Home 65+ Mental Health,30/11/2022,5693,,3111304148,520.00,Star Projections
http://statistics.data.gov.uk/id/local-authority/38,Oxfordshire County Council,Reading Adoption Support Fund,25/11/2022,4861,Hired and Contracted Services,2201053328,520.00,The Cherrycroft Practice Limited
http://statistics.data.gov.uk/id/local-authority/38,Oxfordshire County Council,Wokingham Adoption Support Fund,25/11/2022,4861,Hired and Contracted Services,2201053332,520.00,The Cherrycroft Practice Limited
http://statistics.data.gov.uk/id/local-authority/38,Oxfordshire County Council,Family Solutions Plus Non-staff - North,18/11/2022,5227,Other Transport Arrangements,3111298910,520.00,The Oxfordshire Taxi Company Ltd T/
http://statistics.data.gov.uk/id/local-authority/38,Oxfordshire County Council,POST 16 SEN,18/11/2022,4330,Transport to School Activities,3111299108,520.00,The Oxfordshire Taxi Company Ltd T/
http://statistics.data.gov.uk/id/local-authority/38,Oxfordshire County Council,Support at Home 65+ Learning Disability,10/11/2022,5690,,3111291544,520.46,The Ice Centre
http://statistics.data.gov.uk/id/local-authority/38,Oxfordshire County Council,Mockingbird,08/11/2022,5394,Other Expenses,3111288405,520.53,Redacted Personal Data
http://statistics.data.gov.uk/id/local-authority/38,Oxfordshire County Council,Support at Home U65 HFA,22/11/2022,5899,Social Care - Direct Payments,3111301134,520.56,Purple Conversation Com In Co (DP)
http://statistics.data.gov.uk/id/local-authority/38,Oxfordshire County Council,Support at Home U65 HFA,22/11/2022,5899,Social Care - Direct Payments,3111301201,520.56,Purple Conversation Com In Co (DP)
http://statistics.data.gov.uk/id/local-authority/38,Oxfordshire County Council,Support at Home U65 MH OBC Contract,22/11/2022,5899,Social Care - Direct Payments,3111301282,520.56,Purple Conversation Com In Co (DP)
http://statistics.data.gov.uk/id/local-authority/38,Oxfordshire County Council,Support at Home 65+ Learning Disability,22/11/2022,5899,Social Care - Direct Payments,3111301368,520.56,Purple Conversation Com In Co (DP)
http://statistics.data.gov.uk/id/local-authority/38,Oxfordshire County Council,Support at Home U65 Physical Support,22/11/2022,5899,Social Care - Direct Payments,3111301414,520.56,Purple Conversation Com In Co (DP)
http://statistics.data.gov.uk/id/local-authority/38,Oxfordshire County Council,Support at Home U65 Physical Support,24/11/2022,5696,,3111302035,521.37,Orders of St John Care Trust
http://statistics.data.gov.uk/id/local-authority/38,Oxfordshire County Council,FOSTERING MAIN,01/11/2022,5227,Other Transport Arrangements,3111278206,521.46,Redacted Personal Data
http://statistics.data.gov.uk/id/local-authority/38,Oxfordshire County Council,Support at Home U65 Learning Disability,18/11/2022,5227,Other Transport Arrangements,3111299097,521.56,The Oxfordshire Taxi Company Ltd T/
http://statistics.data.gov.uk/id/local-authority/38,Oxfordshire County Council,REAL COST ALLOWANCES,29/11/2022,5662,B*Christmas Allowance,3111303954,521.83,Redacted Personal Data
http://statistics.data.gov.uk/id/local-authority/38,Oxfordshire County Council,FLEET MAINTENANCE,02/11/2022,4495,IT Software,2201043328,522.00,C Track UK
http://statistics.data.gov.uk/id/local-authority/38,Oxfordshire County Council,NURSERY ED FUND,08/11/2022,5537,Payments to Other Establishments,3111283799,522.00,Kids Planet Woodstock Road Day Nurs
http://statistics.data.gov.uk/id/local-authority/38,Oxfordshire County Council,NURSERY ED FUND,08/11/2022,5537,Payments to Other Establishments,3111284191,522.00,Little Dots Daycare Ltd
http://statistics.data.gov.uk/id/local-authority/38,Oxfordshire County Council,NURSERY ED FUND,08/11/2022,5537,Payments to Other Establishments,3111285501,522.00,Robin Playgroup
http://statistics.data.gov.uk/id/local-authority/38,Oxfordshire County Council,Support at Home U65 Mental Health,24/11/2022,5696,,3111302013,522.22,Orders of St John Care Trust
http://statistics.data.gov.uk/id/local-authority/38,Oxfordshire County Council,Support at Home 65+ Physical Support,24/11/2022,5696,,3111301938,522.33,Orders of St John Care Trust
http://statistics.data.gov.uk/id/local-authority/38,Oxfordshire County Council,LIBRARY COLLECTIONS,03/11/2022,4539,"Books, DVDs and CDs",3111279323,522.81,ASKEWS & HOLTS LIBRARY SERVICES LTD
http://statistics.data.gov.uk/id/local-authority/38,Oxfordshire County Council,WASTE REDUCTION GEN,14/11/2022,4270,HTM / Other Vehicle - Hire Charges,2201048582,522.83,L & F Plant Hire Co Ltd (T/A Tipper
http://statistics.data.gov.uk/id/local-authority/38,Oxfordshire County Council,SEN Inclusion Fund,09/11/2022,5537,Payments to Other Establishments,3111290805,523.60,Charlton Primary School Nursery
http://statistics.data.gov.uk/id/local-authority/38,Oxfordshire County Council,Early Years SEN Funding,04/11/2022,5537,Payments to Other Establishments,3111279366,523.60,Cygnets Playschool
http://statistics.data.gov.uk/id/local-authority/38,Oxfordshire County Council,Early Years SEN Funding,18/11/2022,5537,Payments to Other Establishments,3111298558,523.60,Filkins Nursery School
http://statistics.data.gov.uk/id/local-authority/38,Oxfordshire County Council,Support at Home U65 Learning Disability,08/11/2022,5689,,3111289844,523.72,PLL Care Services
http://statistics.data.gov.uk/id/local-authority/38,Oxfordshire County Council,Planned Maintenance,17/11/2022,3787,Premises Repairs,2201050799,523.88,CEF
http://statistics.data.gov.uk/id/local-authority/38,Oxfordshire County Council,Support at Home 65+ Physical Support,08/11/2022,5689,,3111289545,524.16,My Carer Ltd
http://statistics.data.gov.uk/id/local-authority/38,Oxfordshire County Council,MOUNT HOUSE,17/11/2022,4042,Fixtures and Fittings,2201050845,524.33,Sherfield Flooring Ltd
http://statistics.data.gov.uk/id/local-authority/38,Oxfordshire County Council,,21/11/2022,1448,Blackfield Inc & Exp A/c,3111299204,524.51,OCC One Time Vendor
http://statistics.data.gov.uk/id/local-authority/38,Oxfordshire County Council,SM DISABILITIES,25/11/2022,5554,Childrens' Social Care - Direct Payments,3111302870,524.52,Purple Conversation Com In Co (DP)
http://statistics.data.gov.uk/id/local-authority/38,Oxfordshire County Council,SM DISABILITIES,25/11/2022,5554,Childrens' Social Care - Direct Payments,3111302846,524.56,Purple Conversation Com In Co (DP)
http://statistics.data.gov.uk/id/local-authority/38,Oxfordshire County Council,Management,24/11/2022,5161,Adoption Expenses - Fees and Expenses,2201052944,525.00,Didcot Civic Hall
http://statistics.data.gov.uk/id/local-authority/38,Oxfordshire County Council,WIDER TOBACCO CONTRL,24/11/2022,4042,Fixtures and Fittings,2201053040,525.00,ICE Creates Ltd
http://statistics.data.gov.uk/id/local-authority/38,Oxfordshire County Council,DISABILITIES TEAM-C,07/11/2022,5227,Other Transport Arrangements,3111280361,525.00,The Oxfordshire Taxi Company Ltd T/
http://statistics.data.gov.uk/id/local-authority/38,Oxfordshire County Council,Support at Home 65+ Physical Support,08/11/2022,5689,,3111289828,525.29,PLL Care Services
http://statistics.data.gov.uk/id/local-authority/38,Oxfordshire County Council,LIBRARY COLLECTIONS,01/11/2022,4539,"Books, DVDs and CDs",3111277838,526.26,ASKEWS & HOLTS LIBRARY SERVICES LTD
http://statistics.data.gov.uk/id/local-authority/38,Oxfordshire County Council,Support at Home U65 Autism /Abated,10/11/2022,5690,,3111291764,526.50,Autism at Kingwood Limited
http://statistics.data.gov.uk/id/local-authority/38,Oxfordshire County Council,SM DISABILITIES,25/11/2022,5554,Childrens' Social Care - Direct Payments,3111302801,526.61,Redacted Personal Data
http://statistics.data.gov.uk/id/local-authority/38,Oxfordshire County Council,FOSTERING MAIN,15/11/2022,5549,B*Fostering Allowance - Regulation 38,3111297210,527.00,Redacted Personal Data
http://statistics.data.gov.uk/id/local-authority/38,Oxfordshire County Council,Support at Home U65 Learning Disability,10/11/2022,5690,,3111291634,527.14,Turnstyle
http://statistics.data.gov.uk/id/local-authority/38,Oxfordshire County Council,POST 16 SEN,11/11/2022,4330,Transport to School Activities,3111296514,527.50,Go Green Taxis
http://statistics.data.gov.uk/id/local-authority/38,Oxfordshire County Council,Support at Home 65+ Physical Support,08/11/2022,5689,,3111289180,527.78,Elite Care Agency
http://statistics.data.gov.uk/id/local-authority/38,Oxfordshire County Council,SHARED LIVES,10/11/2022,5555,Payments to Carers,3111292455,527.85,Redacted Personal Data
http://statistics.data.gov.uk/id/local-authority/38,Oxfordshire County Council,SHARED LIVES,10/11/2022,5555,Payments to Carers,3111292340,527.88,Redacted Personal Data
http://statistics.data.gov.uk/id/local-authority/38,Oxfordshire County Council,SHARED LIVES B & L,10/11/2022,5555,Payments to Carers,3111292502,527.90,Redacted Personal Data
http://statistics.data.gov.uk/id/local-authority/38,Oxfordshire County Council,Children in Care Council,10/11/2022,5380,"Author, Speaker and Lecturer Fees",2201046295,528.00,The Cirdan Sailing Trust Ltd
http://statistics.data.gov.uk/id/local-authority/38,Oxfordshire County Council,SERVICE DELIVERY,28/11/2022,4685,Clothing and Uniforms,2201053792,528.35,Oxford Safety Supplies
http://statistics.data.gov.uk/id/local-authority/38,Oxfordshire County Council,Support at Home 65+ Physical Support,08/11/2022,5696,,3111289538,528.68,Radis Community Care
http://statistics.data.gov.uk/id/local-authority/38,Oxfordshire County Council,Support at Home 65+ Physical Support,08/11/2022,5696,,3111289549,528.68,Radis Community Care
http://statistics.data.gov.uk/id/local-authority/38,Oxfordshire County Council,Support at Home 65+ Memory & Cognition,02/11/2022,5693,,3111278759,529.00,Angel Care Group
http://statistics.data.gov.uk/id/local-authority/38,Oxfordshire County Council,FOSTERING MAIN,01/11/2022,5549,B*Fostering Allowance - Regulation 38,3111278267,529.00,Redacted Personal Data
http://statistics.data.gov.uk/id/local-authority/38,Oxfordshire County Council,FOSTERING MAIN,08/11/2022,5549,B*Fostering Allowance - Regulation 38,3111288485,529.00,Redacted Personal Data
http://statistics.data.gov.uk/id/local-authority/38,Oxfordshire County Council,FOSTERING MAIN,15/11/2022,5549,B*Fostering Allowance - Regulation 38,3111297234,529.00,Redacted Personal Data
http://statistics.data.gov.uk/id/local-authority/38,Oxfordshire County Council,FOSTERING MAIN,22/11/2022,5549,B*Fostering Allowance - Regulation 38,3111299751,529.00,Redacted Personal Data
http://statistics.data.gov.uk/id/local-authority/38,Oxfordshire County Council,FOSTERING MAIN,29/11/2022,5549,B*Fostering Allowance - Regulation 38,3111303663,529.00,Redacted Personal Data
http://statistics.data.gov.uk/id/local-authority/38,Oxfordshire County Council,Support at Home 65+ Physical Support,08/11/2022,5699,,3111288876,529.20,Adult Transition Services Ltd (ATrS
http://statistics.data.gov.uk/id/local-authority/38,Oxfordshire County Council,Support at Home 65+ Physical Support,08/11/2022,5699,,3111289173,529.20,Agincare UK Ltd
http://statistics.data.gov.uk/id/local-authority/38,Oxfordshire County Council,Support at Home 65+ Physical Support,08/11/2022,5699,,3111289076,529.20,All Care GB Ltd
http://statistics.data.gov.uk/id/local-authority/38,Oxfordshire County Council,Support at Home 65+ Physical Support,08/11/2022,5699,,3111289130,529.20,All Care GB Ltd
http://statistics.data.gov.uk/id/local-authority/38,Oxfordshire County Council,Support at Home 65+ Physical Support,16/11/2022,5693,,3111297789,529.20,BETTER LIFE CARE LTD
http://statistics.data.gov.uk/id/local-authority/38,Oxfordshire County Council,Support at Home U65 Physical Support,02/11/2022,5693,,3111278770,529.20,Boateng Care Ltd
http://statistics.data.gov.uk/id/local-authority/38,Oxfordshire County Council,Support at Home U65 Physical Support,08/11/2022,5699,,3111289058,529.20,Calvary Care Ltd
http://statistics.data.gov.uk/id/local-authority/38,Oxfordshire County Council,Support at Home U65 Physical Support,08/11/2022,5699,,3111289420,529.20,CaringPlus Healthcare Services Ltd
http://statistics.data.gov.uk/id/local-authority/38,Oxfordshire County Council,Support at Home U65 Physical Support,08/11/2022,5699,,3111289425,529.20,CaringPlus Healthcare Services Ltd
http://statistics.data.gov.uk/id/local-authority/38,Oxfordshire County Council,Support at Home 65+ Physical Support,16/11/2022,5693,,3111297804,529.20,Direct Link Care Ltd
http://statistics.data.gov.uk/id/local-authority/38,Oxfordshire County Council,Support at Home 65+ Physical Support,08/11/2022,5699,,3111289018,529.20,Eleanor Nursing & Social Care Ltd
http://statistics.data.gov.uk/id/local-authority/38,Oxfordshire County Council,Support at Home 65+ Physical Support,16/11/2022,5693,,3111297844,529.20,GAIN HEALTHCARE LTD
http://statistics.data.gov.uk/id/local-authority/38,Oxfordshire County Council,Support at Home U65 Physical Support,16/11/2022,5693,,3111297858,529.20,GET CARE LIMITED
http://statistics.data.gov.uk/id/local-authority/38,Oxfordshire County Council,Support at Home U65 Learning Disability,08/11/2022,5689,,3111289268,529.20,Golden Services Care Ltd
http://statistics.data.gov.uk/id/local-authority/38,Oxfordshire County Council,Support at Home 65+ Physical Support,08/11/2022,5699,,3111289799,529.20,Greigcare Home Service
http://statistics.data.gov.uk/id/local-authority/38,Oxfordshire County Council,Support at Home 65+ Physical Support,09/11/2022,5693,,3111290353,529.20,HEALTHCARE ACCESS LTD
http://statistics.data.gov.uk/id/local-authority/38,Oxfordshire County Council,Support at Home 65+ Physical Support,09/11/2022,5693,,3111290373,529.20,HEALTHCARE ACCESS LTD
http://statistics.data.gov.uk/id/local-authority/38,Oxfordshire County Council,Support at Home 65+ Physical Support,30/11/2022,5693,,3111304127,529.20,Kwikfix Recruitment Services Ltd
http://statistics.data.gov.uk/id/local-authority/38,Oxfordshire County Council,Support at Home 65+ Physical Support,08/11/2022,5699,,3111289932,529.20,Mega Resources Ltd
http://statistics.data.gov.uk/id/local-authority/38,Oxfordshire County Council,Support at Home 65+ Memory & Cognition,08/11/2022,5699,,3111289977,529.20,Mega Resources Ltd
http://statistics.data.gov.uk/id/local-authority/38,Oxfordshire County Council,Support at Home 65+ Physical Support,02/11/2022,5693,,3111278833,529.20,My Carer Ltd
http://statistics.data.gov.uk/id/local-authority/38,Oxfordshire County Council,Support at Home 65+ Memory & Cognition,08/11/2022,5699,,3111290035,529.20,PLL Care Services
http://statistics.data.gov.uk/id/local-authority/38,Oxfordshire County Council,Support at Home 65+ Physical Support,08/11/2022,5699,,3111290036,529.20,PLL Care Services
http://statistics.data.gov.uk/id/local-authority/38,Oxfordshire County Council,Support at Home U65 Physical Support,08/11/2022,5699,,3111290047,529.20,PLL Care Services
http://statistics.data.gov.uk/id/local-authority/38,Oxfordshire County Council,Support at Home 65+ Memory & Cognition,08/11/2022,5699,,3111290048,529.20,PLL Care Services
http://statistics.data.gov.uk/id/local-authority/38,Oxfordshire County Council,Support at Home 65+ Physical Support,08/11/2022,5699,,3111290067,529.20,PLL Care Services
http://statistics.data.gov.uk/id/local-authority/38,Oxfordshire County Council,Support at Home 65+ Physical Support,08/11/2022,5699,,3111290076,529.20,PLL Care Services
http://statistics.data.gov.uk/id/local-authority/38,Oxfordshire County Council,Support at Home 65+ Physical Support,08/11/2022,5699,,3111290092,529.20,PLL Care Services
http://statistics.data.gov.uk/id/local-authority/38,Oxfordshire County Council,Support at Home 65+ Physical Support,08/11/2022,5699,,3111290096,529.20,PLL Care Services
http://statistics.data.gov.uk/id/local-authority/38,Oxfordshire County Council,Support at Home 65+ Physical Support,02/11/2022,5693,,3111278868,529.20,Same Ways Care Ltd
http://statistics.data.gov.uk/id/local-authority/38,Oxfordshire County Council,Support at Home 65+ Physical Support,16/11/2022,5693,,3111297867,529.20,SureCare Oxfordshire
http://statistics.data.gov.uk/id/local-authority/38,Oxfordshire County Council,Support at Home U65 Physical Support,08/11/2022,5699,,3111290143,529.20,YOD Ltd
http://statistics.data.gov.uk/id/local-authority/38,Oxfordshire County Council,Support at Home 65+ Memory & Cognition,08/11/2022,5699,,3111290175,529.20,YOD Ltd
http://statistics.data.gov.uk/id/local-authority/38,Oxfordshire County Council,Support at Home U65 Physical Support,08/11/2022,5699,,3111290183,529.20,YOD Ltd
http://statistics.data.gov.uk/id/local-authority/38,Oxfordshire County Council,Support at Home 65+ Physical Support,08/11/2022,5699,,3111290187,529.20,YOD Ltd
http://statistics.data.gov.uk/id/local-authority/38,Oxfordshire County Council,Support at Home 65+ Physical Support,11/11/2022,5699,,3111296239,529.20,YOD Ltd
http://statistics.data.gov.uk/id/local-authority/38,Oxfordshire County Council,Support at Home 65+ Mental Health,11/11/2022,5699,,3111296247,529.20,YOD Ltd
http://statistics.data.gov.uk/id/local-authority/38,Oxfordshire County Council,Support at Home 65+ Physical Support,11/11/2022,5699,,3111296266,529.20,YOD Ltd
http://statistics.data.gov.uk/id/local-authority/38,Oxfordshire County Council,Support at Home U65 Physical Support,08/11/2022,5689,,3111289493,529.92,My Carer Ltd
http://statistics.data.gov.uk/id/local-authority/38,Oxfordshire County Council,FOSTERING MAIN,08/11/2022,5532,B*Fostering - Loan Equipment,3111288355,530.00,Redacted Personal Data
http://statistics.data.gov.uk/id/local-authority/38,Oxfordshire County Council,COMMUNICATIONS,23/11/2022,4122,Other premises related costs,2201052293,530.00,CAV (Oxford) Limited
http://statistics.data.gov.uk/id/local-authority/38,Oxfordshire County Council,TRADING STANDARDS,28/11/2022,5668,Technical and Professional Consultant F,2201053727,530.40,ACF Secretarial
http://statistics.data.gov.uk/id/local-authority/38,Oxfordshire County Council,SEN Inclusion Fund,09/11/2022,5537,Payments to Other Establishments,3111290700,531.30,St Thomas More Primary School - Aca
http://statistics.data.gov.uk/id/local-authority/38,Oxfordshire County Council,Support at Home U65 Learning Disability,10/11/2022,5690,,3111291732,531.51,ADVANCE HOUSING & SUPPORT LTD
http://statistics.data.gov.uk/id/local-authority/38,Oxfordshire County Council,DEVELOPMENT MANAGEME,01/11/2022,4790,"Publicity, Promotions and Advertisement",2201042755,531.60,PEOPLESCOUT LIMITED
http://statistics.data.gov.uk/id/local-authority/38,Oxfordshire County Council,Support at Home 65+ Physical Support,08/11/2022,5698,,3111289433,531.85,KCARE NURSING AGENCY
http://statistics.data.gov.uk/id/local-authority/38,Oxfordshire County Council,ON ST PARK OXFD SPA,10/11/2022,5091,Postage and Delivery,2201046389,531.93,Royal Mail Retail
http://statistics.data.gov.uk/id/local-authority/38,Oxfordshire County Council,Delegated Health Tasks  - Over 65,11/11/2022,5691,,3111296594,532.00,Prime Social Care Services Ltd
http://statistics.data.gov.uk/id/local-authority/38,Oxfordshire County Council,NURSERY ED FUND,08/11/2022,5537,Payments to Other Establishments,3111280729,532.44,Aflah Nursery
http://statistics.data.gov.uk/id/local-authority/38,Oxfordshire County Council,Support at Home U65 Physical Support,22/11/2022,5899,Social Care - Direct Payments,3111300741,532.44,Redacted Personal Data
http://statistics.data.gov.uk/id/local-authority/38,Oxfordshire County Council,NURSERY ED FUND,08/11/2022,5537,Payments to Other Establishments,3111286073,532.44,St. James CofE Primary School
http://statistics.data.gov.uk/id/local-authority/38,Oxfordshire County Council,NURSERY ED FUND,08/11/2022,5537,Payments to Other Establishments,3111287453,532.44,Tower Hill School
http://statistics.data.gov.uk/id/local-authority/38,Oxfordshire County Council,NURSERY ED FUND,08/11/2022,5537,Payments to Other Establishments,3111286476,532.88,Susan Hazell
http://statistics.data.gov.uk/id/local-authority/38,Oxfordshire County Council,Support at Home U65 Learning Disability,16/11/2022,5697,,3111297891,533.06,Go For It
http://statistics.data.gov.uk/id/local-authority/38,Oxfordshire County Council,Support at Home U65 Learning Disability,16/11/2022,5697,,3111297893,533.06,Go For It
http://statistics.data.gov.uk/id/local-authority/38,Oxfordshire County Council,Delegated Health Tasks  - Over 65,11/11/2022,5691,,3111296569,533.20,Bluebird Care (Oxford South & West)
http://statistics.data.gov.uk/id/local-authority/38,Oxfordshire County Council,Delegated Health Tasks  - Over 65,24/11/2022,5691,,3111302385,533.20,Bluebird Care (Oxford South & West)
http://statistics.data.gov.uk/id/local-authority/38,Oxfordshire County Council,WASTE REDUCTION GEN,14/11/2022,5500,Payments to Other Local Authorities,2201048590,533.56,West Oxfordshire District Council
http://statistics.data.gov.uk/id/local-authority/38,Oxfordshire County Council,Family Solutions Plus Non-staff - Centra,06/11/2022,5394,Other Expenses,3500089480,534.00,Redacted Personal Data
http://statistics.data.gov.uk/id/local-authority/38,Oxfordshire County Council,SM DISABILITIES,25/11/2022,5554,Childrens' Social Care - Direct Payments,3111302740,534.06,Connection Support (Oxford)
http://statistics.data.gov.uk/id/local-authority/38,Oxfordshire County Council,Support at Home U65 Physical Support,04/11/2022,5693,,3111279491,534.08,Helping Hands
http://statistics.data.gov.uk/id/local-authority/38,Oxfordshire County Council,Support at Home U65 Sensory Support,22/11/2022,5899,Social Care - Direct Payments,3111300500,534.24,Redacted Personal Data
http://statistics.data.gov.uk/id/local-authority/38,Oxfordshire County Council,SEN Miscellaneous Expenditure,11/11/2022,4859,Medical and Counselling Fees,3111296372,534.60,Children in motion Ltd
http://statistics.data.gov.uk/id/local-authority/38,Oxfordshire County Council,Support at Home U65 Physical Support,22/11/2022,5899,Social Care - Direct Payments,3111301205,534.76,Purple Conversation Com In Co (DP)
http://statistics.data.gov.uk/id/local-authority/38,Oxfordshire County Council,FOSTERING MAIN,01/11/2022,5541,B*Foster Parents,3111278450,535.00,Redacted Personal Data
http://statistics.data.gov.uk/id/local-authority/38,Oxfordshire County Council,FOSTERING MAIN,08/11/2022,5541,B*Foster Parents,3111288571,535.00,Redacted Personal Data
http://statistics.data.gov.uk/id/local-authority/38,Oxfordshire County Council,FOSTERING MAIN,15/11/2022,5541,B*Foster Parents,3111297407,535.00,Redacted Personal Data
http://statistics.data.gov.uk/id/local-authority/38,Oxfordshire County Council,FOSTERING MAIN,22/11/2022,5541,B*Foster Parents,3111299916,535.00,Redacted Personal Data
http://statistics.data.gov.uk/id/local-authority/38,Oxfordshire County Council,FOSTERING MAIN,29/11/2022,5541,B*Foster Parents,3111303863,535.00,Redacted Personal Data
http://statistics.data.gov.uk/id/local-authority/38,Oxfordshire County Council,SEN Alternative Provision,28/11/2022,4878,Hired and Contracted Services (Curricul,3111303019,535.20,FreshStart in Education
http://statistics.data.gov.uk/id/local-authority/38,Oxfordshire County Council,Support at Home U65 Learning Disability,22/11/2022,5899,Social Care - Direct Payments,3111300466,535.68,Redacted Personal Data
http://statistics.data.gov.uk/id/local-authority/38,Oxfordshire County Council,Support at Home U65 Mental Health,22/11/2022,5899,Social Care - Direct Payments,3111301240,535.80,Purple Conversation Com In Co (DP)
http://statistics.data.gov.uk/id/local-authority/38,Oxfordshire County Council,LANDLORD & TENANT,28/11/2022,4001,Uniform Business Rates,3500090129,536.00,Oxford City Council
http://statistics.data.gov.uk/id/local-authority/38,Oxfordshire County Council,Support at Home 65+ Physical Support,08/11/2022,5689,,3111289374,536.34,Home Helpers Care Ltd
http://statistics.data.gov.uk/id/local-authority/38,Oxfordshire County Council,,21/11/2022,1448,Blackfield Inc & Exp A/c,3111299228,536.40,OCC One Time Vendor
http://statistics.data.gov.uk/id/local-authority/38,Oxfordshire County Council,SHARED LIVES,10/11/2022,5394,Other Expenses,3111292325,536.48,Redacted Personal Data
http://statistics.data.gov.uk/id/local-authority/38,Oxfordshire County Council,ICT Operations & Maintenance,02/11/2022,8102,Payments to main contractor,2201043040,537.60,iCoTech Services
http://statistics.data.gov.uk/id/local-authority/38,Oxfordshire County Council,TRANSLATION,14/11/2022,5668,Technical and Professional Consultant F,2201048449,538.03,K International PLC
http://statistics.data.gov.uk/id/local-authority/38,Oxfordshire County Council,Support at Home U65 Physical Support,24/11/2022,5696,,3111301943,538.71,Orders of St John Care Trust
http://statistics.data.gov.uk/id/local-authority/38,Oxfordshire County Council,Support at Home U65 MH OBC Contract,22/11/2022,5899,Social Care - Direct Payments,3111300345,538.88,Redacted Personal Data
http://statistics.data.gov.uk/id/local-authority/38,Oxfordshire County Council,SEN Inclusion Fund,09/11/2022,5537,Payments to Other Establishments,3111290511,539.00,Annabelles Nursery
http://statistics.data.gov.uk/id/local-authority/38,Oxfordshire County Council,SEN Inclusion Fund,09/11/2022,5537,Payments to Other Establishments,3111290512,539.00,Annabelles Nursery
http://statistics.data.gov.uk/id/local-authority/38,Oxfordshire County Council,SEN Inclusion Fund,09/11/2022,5537,Payments to Other Establishments,3111290513,539.00,Annabelles Nursery
http://statistics.data.gov.uk/id/local-authority/38,Oxfordshire County Council,SEN Inclusion Fund,09/11/2022,5537,Payments to Other Establishments,3111290514,539.00,Annabelles Nursery
http://statistics.data.gov.uk/id/local-authority/38,Oxfordshire County Council,SEN Inclusion Fund,09/11/2022,5537,Payments to Other Establishments,3111290542,539.00,Banbury School Day Nurse
http://statistics.data.gov.uk/id/local-authority/38,Oxfordshire County Council,SEN Inclusion Fund,09/11/2022,5537,Payments to Other Establishments,3111290732,539.00,Bayards Hill Primary School
http://statistics.data.gov.uk/id/local-authority/38,Oxfordshire County Council,SEN Inclusion Fund,09/11/2022,5537,Payments to Other Establishments,3111290733,539.00,Bayards Hill Primary School
http://statistics.data.gov.uk/id/local-authority/38,Oxfordshire County Council,SEN Inclusion Fund,09/11/2022,5537,Payments to Other Establishments,3111290734,539.00,Bayards Hill Primary School
http://statistics.data.gov.uk/id/local-authority/38,Oxfordshire County Council,SEN Inclusion Fund,09/11/2022,5537,Payments to Other Establishments,3111290607,539.00,Bloxham Pre-School
http://statistics.data.gov.uk/id/local-authority/38,Oxfordshire County Council,SEN Inclusion Fund,09/11/2022,5537,Payments to Other Establishments,3111290608,539.00,Bloxham Pre-School
http://statistics.data.gov.uk/id/local-authority/38,Oxfordshire County Council,SEN Inclusion Fund,09/11/2022,5537,Payments to Other Establishments,3111290609,539.00,Bloxham Pre-School
http://statistics.data.gov.uk/id/local-authority/38,Oxfordshire County Council,SEN Inclusion Fund,09/11/2022,5537,Payments to Other Establishments,3111290610,539.00,Bloxham Pre-School
http://statistics.data.gov.uk/id/local-authority/38,Oxfordshire County Council,SEN Inclusion Fund,09/11/2022,5537,Payments to Other Establishments,3111290611,539.00,Bloxham Pre-School
http://statistics.data.gov.uk/id/local-authority/38,Oxfordshire County Council,SEN Inclusion Fund,09/11/2022,5537,Payments to Other Establishments,3111290612,539.00,Bloxham Pre-School
http://statistics.data.gov.uk/id/local-authority/38,Oxfordshire County Council,SEN Inclusion Fund,09/11/2022,5537,Payments to Other Establishments,3111290613,539.00,Bloxham Pre-School
http://statistics.data.gov.uk/id/local-authority/38,Oxfordshire County Council,SEN Inclusion Fund,09/11/2022,5537,Payments to Other Establishments,3111290614,539.00,Bloxham Pre-School
http://statistics.data.gov.uk/id/local-authority/38,Oxfordshire County Council,SEN Inclusion Fund,09/11/2022,5537,Payments to Other Establishments,3111290615,539.00,Bloxham Pre-School
http://statistics.data.gov.uk/id/local-authority/38,Oxfordshire County Council,SEN Inclusion Fund,09/11/2022,5537,Payments to Other Establishments,3111290616,539.00,Bloxham Pre-School
